Workbook

Sheet 【記載例】福祉用具
C1: （参考様式） | G1: 従業者の勤務の体制及び勤務形態一覧表 | AN1: サービス種別 | AO1: ( | AP1: 福祉用具貸与 | BE1: ）
W2: 令和 | X2: 2 | Z2: ( | AA2: =IF(X2=0,"",YEAR(DATE(2018+X2,1,1))) -> 2020 | AC2: ) | AD2: 年 | AE2: 4 | AG2: 月 | AN2: 事業所名 | AO2: ( | BE2: ）
BB3: (1) | BC3: 計画
B4: (2)事業所の営業日
B5: 月 | C5: 火 | D5: 水 | E5: 木 | F5: 金 | G5: 土 | H5: 日 | I5: 祝 | K5: 営業時間 | AG5: (3)事業所における常勤の従業者が勤務すべき時間数 | AS5: 8 | AU5: 時間/日 | AW5: 40 | AY5: 時間/週 | BA5: 160 | BC5: 時間/月
B6: ○ | C6: ○ | D6: ○ | E6: ○ | F6: ○ | G6: － | H6: － | I6: ○ | J6: ⇒ | K6: 09:00:00 | N6: ～ | O6: 17:00:00 | R6: （計 | S6: =(O6-K6)*24 -> 8 | U6: 時間）
B7: － | C7: － | D7: － | E7: － | F7: － | G7: － | H7: － | I7: － | J7: ⇒ | N7: ～ | R7: （計 | S7: =(O7-K7)*24 -> 0 | U7: 時間） | AX7: 当月の日数 | BA7: =DAY(EOMONTH(DATE(AA2,AE2,1),0)) -> 30 | BC7: 日
B8: 備考（休業日等）
B9: 休業日：12/30～1/3（年末年始）
B11: No | C11: (4) 職種 | E11: (5) 勤務 形態 | G11: (6) 資格 | L11: (7) 氏 名 | S11: (8) 勤 務 時 間 数 | AX11: =IF(BC3="計画","(9)1～4週目の勤務時間数合計","(9)1か月の勤務時間数合計") -> (9)1～4週目の勤務時間数合計 | AZ11: (10) 週平均 勤務時間数 | BB11: (11) 兼務状況 （兼務先／兼務する職務の内容 ／兼務先の勤務時間数）
S12: 1週目 | Z12: 2週目 | AG12: 3週目 | AN12: 4週目 | AU12: 5週目
S13: =DAY(DATE($AA$2,$AE$2,1)) -> 1 | T13: =DAY(DATE($AA$2,$AE$2,2)) -> 2 | U13: =DAY(DATE($AA$2,$AE$2,3)) -> 3 | V13: =DAY(DATE($AA$2,$AE$2,4)) -> 4 | W13: =DAY(DATE($AA$2,$AE$2,5)) -> 5 | X13: =DAY(DATE($AA$2,$AE$2,6)) -> 6 | Y13: =DAY(DATE($AA$2,$AE$2,7)) -> 7 | Z13: =DAY(DATE($AA$2,$AE$2,8)) -> 8 | AA13: =DAY(DATE($AA$2,$AE$2,9)) -> 9 | AB13: =DAY(DATE($AA$2,$AE$2,10)) -> 10 | AC13: =DAY(DATE($AA$2,$AE$2,11)) -> 11 | AD13: =DAY(DATE($AA$2,$AE$2,12)) -> 12 | AE13: =DAY(DATE($AA$2,$AE$2,13)) -> 13 | AF13: =DAY(DATE($AA$2,$AE$2,14)) -> 14 | AG13: =DAY(DATE($AA$2,$AE$2,15)) -> 15 | AH13: =DAY(DATE($AA$2,$AE$2,16)) -> 16 | AI13: =DAY(DATE($AA$2,$AE$2,17)) -> 17 | AJ13: =DAY(DATE($AA$2,$AE$2,18)) -> 18 | AK13: =DAY(DATE($AA$2,$AE$2,19)) -> 19 | AL13: =DAY(DATE($AA$2,$AE$2,20)) -> 20 | AM13: =DAY(DATE($AA$2,$AE$2,21)) -> 21 | AN13: =DAY(DATE($AA$2,$AE$2,22)) -> 22 | AO13: =DAY(DATE($AA$2,$AE$2,23)) -> 23 | AP13: =DAY(DATE($AA$2,$AE$2,24)) -> 24 | AQ13: =DAY(DATE($AA$2,$AE$2,25)) -> 25 | AR13: =DAY(DATE($AA$2,$AE$2,26)) -> 26 | AS13: =DAY(DATE($AA$2,$AE$2,27)) -> 27 | AT13: =DAY(DATE($AA$2,$AE$2,28)) -> 28 | AU13: =IF(BC3="実績",IF(DAY(DATE($AA$2,$AE$2,29))=29,29,""),"") ->  | AV13: =IF(BC3="実績",IF(DAY(DATE($AA$2,$AE$2,30))=30,30,""),"") ->  | AW13: =IF(BC3="実績",IF(DAY(DATE($AA$2,$AE$2,31))=31,31,""),"") -> 
S14: =WEEKDAY(DATE($AA$2,$AE$2,1)) -> 4 | T14: =WEEKDAY(DATE($AA$2,$AE$2,2)) -> 5 | U14: =WEEKDAY(DATE($AA$2,$AE$2,3)) -> 6 | V14: =WEEKDAY(DATE($AA$2,$AE$2,4)) -> 7 | W14: =WEEKDAY(DATE($AA$2,$AE$2,5)) -> 1 | X14: =WEEKDAY(DATE($AA$2,$AE$2,6)) -> 2 | Y14: =WEEKDAY(DATE($AA$2,$AE$2,7)) -> 3 | Z14: =WEEKDAY(DATE($AA$2,$AE$2,8)) -> 4 | AA14: =WEEKDAY(DATE($AA$2,$AE$2,9)) -> 5 | AB14: =WEEKDAY(DATE($AA$2,$AE$2,10)) -> 6 | AC14: =WEEKDAY(DATE($AA$2,$AE$2,11)) -> 7 | AD14: =WEEKDAY(DATE($AA$2,$AE$2,12)) -> 1 | AE14: =WEEKDAY(DATE($AA$2,$AE$2,13)) -> 2 | AF14: =WEEKDAY(DATE($AA$2,$AE$2,14)) -> 3 | AG14: =WEEKDAY(DATE($AA$2,$AE$2,15)) -> 4 | AH14: =WEEKDAY(DATE($AA$2,$AE$2,16)) -> 5 | AI14: =WEEKDAY(DATE($AA$2,$AE$2,17)) -> 6 | AJ14: =WEEKDAY(DATE($AA$2,$AE$2,18)) -> 7 | AK14: =WEEKDAY(DATE($AA$2,$AE$2,19)) -> 1 | AL14: =WEEKDAY(DATE($AA$2,$AE$2,20)) -> 2 | AM14: =WEEKDAY(DATE($AA$2,$AE$2,21)) -> 3 | AN14: =WEEKDAY(DATE($AA$2,$AE$2,22)) -> 4 | AO14: =WEEKDAY(DATE($AA$2,$AE$2,23)) -> 5 | AP14: =WEEKDAY(DATE($AA$2,$AE$2,24)) -> 6 | AQ14: =WEEKDAY(DATE($AA$2,$AE$2,25)) -> 7 | AR14: =WEEKDAY(DATE($AA$2,$AE$2,26)) -> 1 | AS14: =WEEKDAY(DATE($AA$2,$AE$2,27)) -> 2 | AT14: =WEEKDAY(DATE($AA$2,$AE$2,28)) -> 3 | AU14: =IF(AU13=29,WEEKDAY(DATE($AA$2,$AE$2,29)),0) -> 0 | AV14: =IF(AV13=30,WEEKDAY(DATE($AA$2,$AE$2,30)),0) -> 0 | AW14: =IF(AW13=31,WEEKDAY(DATE($AA$2,$AE$2,31)),0) -> 0
S15: =IF(S14=1,"日",IF(S14=2,"月",IF(S14=3,"火",IF(S14=4,"水",IF(S14=5,"木",IF(S14=6,"金","土")))))) -> 水 | T15: =IF(T14=1,"日",IF(T14=2,"月",IF(T14=3,"火",IF(T14=4,"水",IF(T14=5,"木",IF(T14=6,"金","土")))))) -> 木 | U15: 金 | V15: 土 | W15: 日 | X15: 月 | Y15: 火 | Z15: 水 | AA15: 木 | AB15: 金 | AC15: 土 | AD15: 日 | AE15: 月 | AF15: 火 | AG15: 水 | AH15: 木 | AI15: 金 | AJ15: 土 | AK15: 日 | AL15: 月 | AM15: 火 | AN15: 水 | AO15: 木 | AP15: 金 | AQ15: 土 | AR15: 日 | AS15: 月 | AT15: 火 | AU15: =IF(AU14=1,"日",IF(AU14=2,"月",IF(AU14=3,"火",IF(AU14=4,"水",IF(AU14=5,"木",IF(AU14=6,"金",IF(AU14=0,"","土"))))))) ->  | AV15: =IF(AV14=1,"日",IF(AV14=2,"月",IF(AV14=3,"火",IF(AV14=4,"水",IF(AV14=5,"木",IF(AV14=6,"金",IF(AV14=0,"","土"))))))) ->  | AW15: =IF(AW14=1,"日",IF(AW14=2,"月",IF(AW14=3,"火",IF(AW14=4,"水",IF(AW14=5,"木",IF(AW14=6,"金",IF(AW14=0,"","土"))))))) -> 
B16: 1 | C16: 管理者 | E16: B | G16: ー | L16: 厚労 太郎 | P16: シフト記号 | S16: r | T16: r | U16: r | V16: 休 | W16: 休 | X16: r | Y16: r | Z16: r | AA16: r | AB16: r | AC16: 休 | AD16: 休 | AE16: r | AF16: r | AG16: r | AH16: r | AI16: r | AJ16: 休 | AK16: 休 | AL16: r | AM16: r | AN16: r | AO16: r | AP16: r | AQ16: 休 | AR16: 休 | AS16: r | AT16: r | AX16: =IF($BC$3="計画",SUM(S17:AT17),IF($BC$3="実績",SUM(S17:AW17),"")) -> 80 | AZ16: =IF($BC$3="計画",AX16/4,IF($BC$3="実績",AX16/($BA$7/7),"")) -> 20 | BB16: 福祉用具専門相談員
P17: 勤務時間数 | S17: =IF(S16="","",VLOOKUP(S16,'【記載例】シフト記号表（勤務時間帯）'!$C$4:$K$35,9,FALSE)) -> 4 | T17: =IF(T16="","",VLOOKUP(T16,'【記載例】シフト記号表（勤務時間帯）'!$C$4:$K$35,9,FALSE)) -> 4 | U17: =IF(U16="","",VLOOKUP(U16,'【記載例】シフト記号表（勤務時間帯）'!$C$4:$K$35,9,FALSE)) -> 4 | V17: =IF(V16="","",VLOOKUP(V16,'【記載例】シフト記号表（勤務時間帯）'!$C$4:$K$35,9,FALSE)) -> - | W17: =IF(W16="","",VLOOKUP(W16,'【記載例】シフト記号表（勤務時間帯）'!$C$4:$K$35,9,FALSE)) -> - | X17: =IF(X16="","",VLOOKUP(X16,'【記載例】シフト記号表（勤務時間帯）'!$C$4:$K$35,9,FALSE)) -> 4 | Y17: =IF(Y16="","",VLOOKUP(Y16,'【記載例】シフト記号表（勤務時間帯）'!$C$4:$K$35,9,FALSE)) -> 4 | Z17: =IF(Z16="","",VLOOKUP(Z16,'【記載例】シフト記号表（勤務時間帯）'!$C$4:$K$35,9,FALSE)) -> 4 | AA17: =IF(AA16="","",VLOOKUP(AA16,'【記載例】シフト記号表（勤務時間帯）'!$C$4:$K$35,9,FALSE)) -> 4 | AB17: =IF(AB16="","",VLOOKUP(AB16,'【記載例】シフト記号表（勤務時間帯）'!$C$4:$K$35,9,FALSE)) -> 4 | AC17: =IF(AC16="","",VLOOKUP(AC16,'【記載例】シフト記号表（勤務時間帯）'!$C$4:$K$35,9,FALSE)) -> - | AD17: =IF(AD16="","",VLOOKUP(AD16,'【記載例】シフト記号表（勤務時間帯）'!$C$4:$K$35,9,FALSE)) -> - | AE17: =IF(AE16="","",VLOOKUP(AE16,'【記載例】シフト記号表（勤務時間帯）'!$C$4:$K$35,9,FALSE)) -> 4 | AF17: =IF(AF16="","",VLOOKUP(AF16,'【記載例】シフト記号表（勤務時間帯）'!$C$4:$K$35,9,FALSE)) -> 4 | AG17: =IF(AG16="","",VLOOKUP(AG16,'【記載例】シフト記号表（勤務時間帯）'!$C$4:$K$35,9,FALSE)) -> 4 | AH17: =IF(AH16="","",VLOOKUP(AH16,'【記載例】シフト記号表（勤務時間帯）'!$C$4:$K$35,9,FALSE)) -> 4 | AI17: =IF(AI16="","",VLOOKUP(AI16,'【記載例】シフト記号表（勤務時間帯）'!$C$4:$K$35,9,FALSE)) -> 4 | AJ17: =IF(AJ16="","",VLOOKUP(AJ16,'【記載例】シフト記号表（勤務時間帯）'!$C$4:$K$35,9,FALSE)) -> - | AK17: =IF(AK16="","",VLOOKUP(AK16,'【記載例】シフト記号表（勤務時間帯）'!$C$4:$K$35,9,FALSE)) -> - | AL17: =IF(AL16="","",VLOOKUP(AL16,'【記載例】シフト記号表（勤務時間帯）'!$C$4:$K$35,9,FALSE)) -> 4 | AM17: =IF(AM16="","",VLOOKUP(AM16,'【記載例】シフト記号表（勤務時間帯）'!$C$4:$K$35,9,FALSE)) -> 4 | AN17: =IF(AN16="","",VLOOKUP(AN16,'【記載例】シフト記号表（勤務時間帯）'!$C$4:$K$35,9,FALSE)) -> 4 | AO17: =IF(AO16="","",VLOOKUP(AO16,'【記載例】シフト記号表（勤務時間帯）'!$C$4:$K$35,9,FALSE)) -> 4 | AP17: =IF(AP16="","",VLOOKUP(AP16,'【記載例】シフト記号表（勤務時間帯）'!$C$4:$K$35,9,FALSE)) -> 4 | AQ17: =IF(AQ16="","",VLOOKUP(AQ16,'【記載例】シフト記号表（勤務時間帯）'!$C$4:$K$35,9,FALSE)) -> - | AR17: =IF(AR16="","",VLOOKUP(AR16,'【記載例】シフト記号表（勤務時間帯）'!$C$4:$K$35,9,FALSE)) -> - | AS17: =IF(AS16="","",VLOOKUP(AS16,'【記載例】シフト記号表（勤務時間帯）'!$C$4:$K$35,9,FALSE)) -> 4 | AT17: =IF(AT16="","",VLOOKUP(AT16,'【記載例】シフト記号表（勤務時間帯）'!$C$4:$K$35,9,FALSE)) -> 4 | AU17: =IF(AU16="","",VLOOKUP(AU16,'【記載例】シフト記号表（勤務時間帯）'!$C$4:$K$35,9,FALSE)) ->  | AV17: =IF(AV16="","",VLOOKUP(AV16,'【記載例】シフト記号表（勤務時間帯）'!$C$4:$K$35,9,FALSE)) ->  | AW17: =IF(AW16="","",VLOOKUP(AW16,'【記載例】シフト記号表（勤務時間帯）'!$C$4:$K$35,9,FALSE)) -> 
B18: =B16+1 -> 2 | C18: 福祉用具専門相談員 | E18: B | G18: 福祉用具専門相談員指定講習修了者 | L18: 厚労 太郎 | P18: シフト記号 | S18: r | T18: r | U18: r | V18: 休 | W18: 休 | X18: r | Y18: r | Z18: r | AA18: r | AB18: r | AC18: 休 | AD18: 休 | AE18: r | AF18: r | AG18: r | AH18: r | AI18: r | AJ18: 休 | AK18: 休 | AL18: r | AM18: r | AN18: r | AO18: r | AP18: r | AQ18: 休 | AR18: 休 | AS18: r | AT18: r | AX18: =IF($BC$3="計画",SUM(S19:AT19),IF($BC$3="実績",SUM(S19:AW19),"")) -> 80 | AZ18: =IF($BC$3="計画",AX18/4,IF($BC$3="実績",AX18/($BA$7/7),"")) -> 20 | BB18: 管理者
P19: 勤務時間数 | S19: =IF(S18="","",VLOOKUP(S18,'【記載例】シフト記号表（勤務時間帯）'!$C$4:$K$35,9,FALSE)) -> 4 | T19: =IF(T18="","",VLOOKUP(T18,'【記載例】シフト記号表（勤務時間帯）'!$C$4:$K$35,9,FALSE)) -> 4 | U19: =IF(U18="","",VLOOKUP(U18,'【記載例】シフト記号表（勤務時間帯）'!$C$4:$K$35,9,FALSE)) -> 4 | V19: =IF(V18="","",VLOOKUP(V18,'【記載例】シフト記号表（勤務時間帯）'!$C$4:$K$35,9,FALSE)) -> - | W19: =IF(W18="","",VLOOKUP(W18,'【記載例】シフト記号表（勤務時間帯）'!$C$4:$K$35,9,FALSE)) -> - | X19: =IF(X18="","",VLOOKUP(X18,'【記載例】シフト記号表（勤務時間帯）'!$C$4:$K$35,9,FALSE)) -> 4 | Y19: =IF(Y18="","",VLOOKUP(Y18,'【記載例】シフト記号表（勤務時間帯）'!$C$4:$K$35,9,FALSE)) -> 4 | Z19: =IF(Z18="","",VLOOKUP(Z18,'【記載例】シフト記号表（勤務時間帯）'!$C$4:$K$35,9,FALSE)) -> 4 | AA19: =IF(AA18="","",VLOOKUP(AA18,'【記載例】シフト記号表（勤務時間帯）'!$C$4:$K$35,9,FALSE)) -> 4 | AB19: =IF(AB18="","",VLOOKUP(AB18,'【記載例】シフト記号表（勤務時間帯）'!$C$4:$K$35,9,FALSE)) -> 4 | AC19: =IF(AC18="","",VLOOKUP(AC18,'【記載例】シフト記号表（勤務時間帯）'!$C$4:$K$35,9,FALSE)) -> - | AD19: =IF(AD18="","",VLOOKUP(AD18,'【記載例】シフト記号表（勤務時間帯）'!$C$4:$K$35,9,FALSE)) -> - | AE19: =IF(AE18="","",VLOOKUP(AE18,'【記載例】シフト記号表（勤務時間帯）'!$C$4:$K$35,9,FALSE)) -> 4 | AF19: =IF(AF18="","",VLOOKUP(AF18,'【記載例】シフト記号表（勤務時間帯）'!$C$4:$K$35,9,FALSE)) -> 4 | AG19: =IF(AG18="","",VLOOKUP(AG18,'【記載例】シフト記号表（勤務時間帯）'!$C$4:$K$35,9,FALSE)) -> 4 | AH19: =IF(AH18="","",VLOOKUP(AH18,'【記載例】シフト記号表（勤務時間帯）'!$C$4:$K$35,9,FALSE)) -> 4 | AI19: =IF(AI18="","",VLOOKUP(AI18,'【記載例】シフト記号表（勤務時間帯）'!$C$4:$K$35,9,FALSE)) -> 4 | AJ19: =IF(AJ18="","",VLOOKUP(AJ18,'【記載例】シフト記号表（勤務時間帯）'!$C$4:$K$35,9,FALSE)) -> - | AK19: =IF(AK18="","",VLOOKUP(AK18,'【記載例】シフト記号表（勤務時間帯）'!$C$4:$K$35,9,FALSE)) -> - | AL19: =IF(AL18="","",VLOOKUP(AL18,'【記載例】シフト記号表（勤務時間帯）'!$C$4:$K$35,9,FALSE)) -> 4 | AM19: =IF(AM18="","",VLOOKUP(AM18,'【記載例】シフト記号表（勤務時間帯）'!$C$4:$K$35,9,FALSE)) -> 4 | AN19: =IF(AN18="","",VLOOKUP(AN18,'【記載例】シフト記号表（勤務時間帯）'!$C$4:$K$35,9,FALSE)) -> 4 | AO19: =IF(AO18="","",VLOOKUP(AO18,'【記載例】シフト記号表（勤務時間帯）'!$C$4:$K$35,9,FALSE)) -> 4 | AP19: =IF(AP18="","",VLOOKUP(AP18,'【記載例】シフト記号表（勤務時間帯）'!$C$4:$K$35,9,FALSE)) -> 4 | AQ19: =IF(AQ18="","",VLOOKUP(AQ18,'【記載例】シフト記号表（勤務時間帯）'!$C$4:$K$35,9,FALSE)) -> - | AR19: =IF(AR18="","",VLOOKUP(AR18,'【記載例】シフト記号表（勤務時間帯）'!$C$4:$K$35,9,FALSE)) -> - | AS19: =IF(AS18="","",VLOOKUP(AS18,'【記載例】シフト記号表（勤務時間帯）'!$C$4:$K$35,9,FALSE)) -> 4 | AT19: =IF(AT18="","",VLOOKUP(AT18,'【記載例】シフト記号表（勤務時間帯）'!$C$4:$K$35,9,FALSE)) -> 4 | AU19: =IF(AU18="","",VLOOKUP(AU18,'【記載例】シフト記号表（勤務時間帯）'!$C$4:$K$35,9,FALSE)) ->  | AV19: =IF(AV18="","",VLOOKUP(AV18,'【記載例】シフト記号表（勤務時間帯）'!$C$4:$K$35,9,FALSE)) ->  | AW19: =IF(AW18="","",VLOOKUP(AW18,'【記載例】シフト記号表（勤務時間帯）'!$C$4:$K$35,9,FALSE)) -> 
B20: =B18+1 -> 3 | C20: 福祉用具専門相談員 | E20: A | G20: 保健師 | L20: ○○ A郎 | P20: シフト記号 | S20: a | T20: a | U20: a | V20: 休 | W20: 休 | X20: a | Y20: a | Z20: a | AA20: a | AB20: a | AC20: 休 | AD20: 休 | AE20: a | AF20: a | AG20: a | AH20: a | AI20: a | AJ20: 休 | AK20: 休 | AL20: a | AM20: a | AN20: a | AO20: a | AP20: a | AQ20: 休 | AR20: 休 | AS20: a | AT20: a | AX20: =IF($BC$3="計画",SUM(S21:AT21),IF($BC$3="実績",SUM(S21:AW21),"")) -> 160 | AZ20: =IF($BC$3="計画",AX20/4,IF($BC$3="実績",AX20/($BA$7/7),"")) -> 40
P21: 勤務時間数 | S21: =IF(S20="","",VLOOKUP(S20,'【記載例】シフト記号表（勤務時間帯）'!$C$4:$K$35,9,FALSE)) -> 8 | T21: =IF(T20="","",VLOOKUP(T20,'【記載例】シフト記号表（勤務時間帯）'!$C$4:$K$35,9,FALSE)) -> 8 | U21: =IF(U20="","",VLOOKUP(U20,'【記載例】シフト記号表（勤務時間帯）'!$C$4:$K$35,9,FALSE)) -> 8 | V21: =IF(V20="","",VLOOKUP(V20,'【記載例】シフト記号表（勤務時間帯）'!$C$4:$K$35,9,FALSE)) -> - | W21: =IF(W20="","",VLOOKUP(W20,'【記載例】シフト記号表（勤務時間帯）'!$C$4:$K$35,9,FALSE)) -> - | X21: =IF(X20="","",VLOOKUP(X20,'【記載例】シフト記号表（勤務時間帯）'!$C$4:$K$35,9,FALSE)) -> 8 | Y21: =IF(Y20="","",VLOOKUP(Y20,'【記載例】シフト記号表（勤務時間帯）'!$C$4:$K$35,9,FALSE)) -> 8 | Z21: =IF(Z20="","",VLOOKUP(Z20,'【記載例】シフト記号表（勤務時間帯）'!$C$4:$K$35,9,FALSE)) -> 8 | AA21: =IF(AA20="","",VLOOKUP(AA20,'【記載例】シフト記号表（勤務時間帯）'!$C$4:$K$35,9,FALSE)) -> 8 | AB21: =IF(AB20="","",VLOOKUP(AB20,'【記載例】シフト記号表（勤務時間帯）'!$C$4:$K$35,9,FALSE)) -> 8 | AC21: =IF(AC20="","",VLOOKUP(AC20,'【記載例】シフト記号表（勤務時間帯）'!$C$4:$K$35,9,FALSE)) -> - | AD21: =IF(AD20="","",VLOOKUP(AD20,'【記載例】シフト記号表（勤務時間帯）'!$C$4:$K$35,9,FALSE)) -> - | AE21: =IF(AE20="","",VLOOKUP(AE20,'【記載例】シフト記号表（勤務時間帯）'!$C$4:$K$35,9,FALSE)) -> 8 | AF21: =IF(AF20="","",VLOOKUP(AF20,'【記載例】シフト記号表（勤務時間帯）'!$C$4:$K$35,9,FALSE)) -> 8 | AG21: =IF(AG20="","",VLOOKUP(AG20,'【記載例】シフト記号表（勤務時間帯）'!$C$4:$K$35,9,FALSE)) -> 8 | AH21: =IF(AH20="","",VLOOKUP(AH20,'【記載例】シフト記号表（勤務時間帯）'!$C$4:$K$35,9,FALSE)) -> 8 | AI21: =IF(AI20="","",VLOOKUP(AI20,'【記載例】シフト記号表（勤務時間帯）'!$C$4:$K$35,9,FALSE)) -> 8 | AJ21: =IF(AJ20="","",VLOOKUP(AJ20,'【記載例】シフト記号表（勤務時間帯）'!$C$4:$K$35,9,FALSE)) -> - | AK21: =IF(AK20="","",VLOOKUP(AK20,'【記載例】シフト記号表（勤務時間帯）'!$C$4:$K$35,9,FALSE)) -> - | AL21: =IF(AL20="","",VLOOKUP(AL20,'【記載例】シフト記号表（勤務時間帯）'!$C$4:$K$35,9,FALSE)) -> 8 | AM21: =IF(AM20="","",VLOOKUP(AM20,'【記載例】シフト記号表（勤務時間帯）'!$C$4:$K$35,9,FALSE)) -> 8 | AN21: =IF(AN20="","",VLOOKUP(AN20,'【記載例】シフト記号表（勤務時間帯）'!$C$4:$K$35,9,FALSE)) -> 8 | AO21: =IF(AO20="","",VLOOKUP(AO20,'【記載例】シフト記号表（勤務時間帯）'!$C$4:$K$35,9,FALSE)) -> 8 | AP21: =IF(AP20="","",VLOOKUP(AP20,'【記載例】シフト記号表（勤務時間帯）'!$C$4:$K$35,9,FALSE)) -> 8 | AQ21: =IF(AQ20="","",VLOOKUP(AQ20,'【記載例】シフト記号表（勤務時間帯）'!$C$4:$K$35,9,FALSE)) -> - | AR21: =IF(AR20="","",VLOOKUP(AR20,'【記載例】シフト記号表（勤務時間帯）'!$C$4:$K$35,9,FALSE)) -> - | AS21: =IF(AS20="","",VLOOKUP(AS20,'【記載例】シフト記号表（勤務時間帯）'!$C$4:$K$35,9,FALSE)) -> 8 | AT21: =IF(AT20="","",VLOOKUP(AT20,'【記載例】シフト記号表（勤務時間帯）'!$C$4:$K$35,9,FALSE)) -> 8 | AU21: =IF(AU20="","",VLOOKUP(AU20,'【記載例】シフト記号表（勤務時間帯）'!$C$4:$K$35,9,FALSE)) ->  | AV21: =IF(AV20="","",VLOOKUP(AV20,'【記載例】シフト記号表（勤務時間帯）'!$C$4:$K$35,9,FALSE)) ->  | AW21: =IF(AW20="","",VLOOKUP(AW20,'【記載例】シフト記号表（勤務時間帯）'!$C$4:$K$35,9,FALSE)) -> 
B22: =B20+1 -> 4 | C22: 福祉用具専門相談員 | E22: C | G22: 准看護師 | L22: ○○ B子 | P22: シフト記号 | S22: 休 | T22: a | U22: a | V22: 休 | W22: 休 | X22: a | Y22: a | Z22: 休 | AA22: a | AB22: a | AC22: 休 | AD22: 休 | AE22: a | AF22: a | AG22: 休 | AH22: a | AI22: a | AJ22: 休 | AK22: 休 | AL22: a | AM22: a | AN22: 休 | AO22: a | AP22: a | AQ22: 休 | AR22: 休 | AS22: a | AT22: a | AX22: =IF($BC$3="計画",SUM(S23:AT23),IF($BC$3="実績",SUM(S23:AW23),"")) -> 128 | AZ22: =IF($BC$3="計画",AX22/4,IF($BC$3="実績",AX22/($BA$7/7),"")) -> 32
P23: 勤務時間数 | S23: =IF(S22="","",VLOOKUP(S22,'【記載例】シフト記号表（勤務時間帯）'!$C$4:$K$35,9,FALSE)) -> - | T23: =IF(T22="","",VLOOKUP(T22,'【記載例】シフト記号表（勤務時間帯）'!$C$4:$K$35,9,FALSE)) -> 8 | U23: =IF(U22="","",VLOOKUP(U22,'【記載例】シフト記号表（勤務時間帯）'!$C$4:$K$35,9,FALSE)) -> 8 | V23: =IF(V22="","",VLOOKUP(V22,'【記載例】シフト記号表（勤務時間帯）'!$C$4:$K$35,9,FALSE)) -> - | W23: =IF(W22="","",VLOOKUP(W22,'【記載例】シフト記号表（勤務時間帯）'!$C$4:$K$35,9,FALSE)) -> - | X23: =IF(X22="","",VLOOKUP(X22,'【記載例】シフト記号表（勤務時間帯）'!$C$4:$K$35,9,FALSE)) -> 8 | Y23: =IF(Y22="","",VLOOKUP(Y22,'【記載例】シフト記号表（勤務時間帯）'!$C$4:$K$35,9,FALSE)) -> 8 | Z23: =IF(Z22="","",VLOOKUP(Z22,'【記載例】シフト記号表（勤務時間帯）'!$C$4:$K$35,9,FALSE)) -> - | AA23: =IF(AA22="","",VLOOKUP(AA22,'【記載例】シフト記号表（勤務時間帯）'!$C$4:$K$35,9,FALSE)) -> 8 | AB23: =IF(AB22="","",VLOOKUP(AB22,'【記載例】シフト記号表（勤務時間帯）'!$C$4:$K$35,9,FALSE)) -> 8 | AC23: =IF(AC22="","",VLOOKUP(AC22,'【記載例】シフト記号表（勤務時間帯）'!$C$4:$K$35,9,FALSE)) -> - | AD23: =IF(AD22="","",VLOOKUP(AD22,'【記載例】シフト記号表（勤務時間帯）'!$C$4:$K$35,9,FALSE)) -> - | AE23: =IF(AE22="","",VLOOKUP(AE22,'【記載例】シフト記号表（勤務時間帯）'!$C$4:$K$35,9,FALSE)) -> 8 | AF23: =IF(AF22="","",VLOOKUP(AF22,'【記載例】シフト記号表（勤務時間帯）'!$C$4:$K$35,9,FALSE)) -> 8 | AG23: =IF(AG22="","",VLOOKUP(AG22,'【記載例】シフト記号表（勤務時間帯）'!$C$4:$K$35,9,FALSE)) -> - | AH23: =IF(AH22="","",VLOOKUP(AH22,'【記載例】シフト記号表（勤務時間帯）'!$C$4:$K$35,9,FALSE)) -> 8 | AI23: =IF(AI22="","",VLOOKUP(AI22,'【記載例】シフト記号表（勤務時間帯）'!$C$4:$K$35,9,FALSE)) -> 8 | AJ23: =IF(AJ22="","",VLOOKUP(AJ22,'【記載例】シフト記号表（勤務時間帯）'!$C$4:$K$35,9,FALSE)) -> - | AK23: =IF(AK22="","",VLOOKUP(AK22,'【記載例】シフト記号表（勤務時間帯）'!$C$4:$K$35,9,FALSE)) -> - | AL23: =IF(AL22="","",VLOOKUP(AL22,'【記載例】シフト記号表（勤務時間帯）'!$C$4:$K$35,9,FALSE)) -> 8 | AM23: =IF(AM22="","",VLOOKUP(AM22,'【記載例】シフト記号表（勤務時間帯）'!$C$4:$K$35,9,FALSE)) -> 8 | AN23: =IF(AN22="","",VLOOKUP(AN22,'【記載例】シフト記号表（勤務時間帯）'!$C$4:$K$35,9,FALSE)) -> - | AO23: =IF(AO22="","",VLOOKUP(AO22,'【記載例】シフト記号表（勤務時間帯）'!$C$4:$K$35,9,FALSE)) -> 8 | AP23: =IF(AP22="","",VLOOKUP(AP22,'【記載例】シフト記号表（勤務時間帯）'!$C$4:$K$35,9,FALSE)) -> 8 | AQ23: =IF(AQ22="","",VLOOKUP(AQ22,'【記載例】シフト記号表（勤務時間帯）'!$C$4:$K$35,9,FALSE)) -> - | AR23: =IF(AR22="","",VLOOKUP(AR22,'【記載例】シフト記号表（勤務時間帯）'!$C$4:$K$35,9,FALSE)) -> - | AS23: =IF(AS22="","",VLOOKUP(AS22,'【記載例】シフト記号表（勤務時間帯）'!$C$4:$K$35,9,FALSE)) -> 8 | AT23: =IF(AT22="","",VLOOKUP(AT22,'【記載例】シフト記号表（勤務時間帯）'!$C$4:$K$35,9,FALSE)) -> 8 | AU23: =IF(AU22="","",VLOOKUP(AU22,'【記載例】シフト記号表（勤務時間帯）'!$C$4:$K$35,9,FALSE)) ->  | AV23: =IF(AV22="","",VLOOKUP(AV22,'【記載例】シフト記号表（勤務時間帯）'!$C$4:$K$35,9,FALSE)) ->  | AW23: =IF(AW22="","",VLOOKUP(AW22,'【記載例】シフト記号表（勤務時間帯）'!$C$4:$K$35,9,FALSE)) -> 
B24: =B22+1 -> 5 | P24: シフト記号 | AX24: =IF($BC$3="計画",SUM(S25:AT25),IF($BC$3="実績",SUM(S25:AW25),"")) -> 0 | AZ24: =IF($BC$3="計画",AX24/4,IF($BC$3="実績",AX24/($BA$7/7),"")) -> 0
P25: 勤務時間数 | S25: =IF(S24="","",VLOOKUP(S24,'【記載例】シフト記号表（勤務時間帯）'!$C$4:$K$35,9,FALSE)) ->  | T25: =IF(T24="","",VLOOKUP(T24,'【記載例】シフト記号表（勤務時間帯）'!$C$4:$K$35,9,FALSE)) ->  | U25: =IF(U24="","",VLOOKUP(U24,'【記載例】シフト記号表（勤務時間帯）'!$C$4:$K$35,9,FALSE)) ->  | V25: =IF(V24="","",VLOOKUP(V24,'【記載例】シフト記号表（勤務時間帯）'!$C$4:$K$35,9,FALSE)) ->  | W25: =IF(W24="","",VLOOKUP(W24,'【記載例】シフト記号表（勤務時間帯）'!$C$4:$K$35,9,FALSE)) ->  | X25: =IF(X24="","",VLOOKUP(X24,'【記載例】シフト記号表（勤務時間帯）'!$C$4:$K$35,9,FALSE)) ->  | Y25: =IF(Y24="","",VLOOKUP(Y24,'【記載例】シフト記号表（勤務時間帯）'!$C$4:$K$35,9,FALSE)) ->  | Z25: =IF(Z24="","",VLOOKUP(Z24,'【記載例】シフト記号表（勤務時間帯）'!$C$4:$K$35,9,FALSE)) ->  | AA25: =IF(AA24="","",VLOOKUP(AA24,'【記載例】シフト記号表（勤務時間帯）'!$C$4:$K$35,9,FALSE)) ->  | AB25: =IF(AB24="","",VLOOKUP(AB24,'【記載例】シフト記号表（勤務時間帯）'!$C$4:$K$35,9,FALSE)) ->  | AC25: =IF(AC24="","",VLOOKUP(AC24,'【記載例】シフト記号表（勤務時間帯）'!$C$4:$K$35,9,FALSE)) ->  | AD25: =IF(AD24="","",VLOOKUP(AD24,'【記載例】シフト記号表（勤務時間帯）'!$C$4:$K$35,9,FALSE)) ->  | AE25: =IF(AE24="","",VLOOKUP(AE24,'【記載例】シフト記号表（勤務時間帯）'!$C$4:$K$35,9,FALSE)) ->  | AF25: =IF(AF24="","",VLOOKUP(AF24,'【記載例】シフト記号表（勤務時間帯）'!$C$4:$K$35,9,FALSE)) ->  | AG25: =IF(AG24="","",VLOOKUP(AG24,'【記載例】シフト記号表（勤務時間帯）'!$C$4:$K$35,9,FALSE)) ->  | AH25: =IF(AH24="","",VLOOKUP(AH24,'【記載例】シフト記号表（勤務時間帯）'!$C$4:$K$35,9,FALSE)) ->  | AI25: =IF(AI24="","",VLOOKUP(AI24,'【記載例】シフト記号表（勤務時間帯）'!$C$4:$K$35,9,FALSE)) ->  | AJ25: =IF(AJ24="","",VLOOKUP(AJ24,'【記載例】シフト記号表（勤務時間帯）'!$C$4:$K$35,9,FALSE)) ->  | AK25: =IF(AK24="","",VLOOKUP(AK24,'【記載例】シフト記号表（勤務時間帯）'!$C$4:$K$35,9,FALSE)) ->  | AL25: =IF(AL24="","",VLOOKUP(AL24,'【記載例】シフト記号表（勤務時間帯）'!$C$4:$K$35,9,FALSE)) ->  | AM25: =IF(AM24="","",VLOOKUP(AM24,'【記載例】シフト記号表（勤務時間帯）'!$C$4:$K$35,9,FALSE)) ->  | AN25: =IF(AN24="","",VLOOKUP(AN24,'【記載例】シフト記号表（勤務時間帯）'!$C$4:$K$35,9,FALSE)) ->  | AO25: =IF(AO24="","",VLOOKUP(AO24,'【記載例】シフト記号表（勤務時間帯）'!$C$4:$K$35,9,FALSE)) ->  | AP25: =IF(AP24="","",VLOOKUP(AP24,'【記載例】シフト記号表（勤務時間帯）'!$C$4:$K$35,9,FALSE)) ->  | AQ25: =IF(AQ24="","",VLOOKUP(AQ24,'【記載例】シフト記号表（勤務時間帯）'!$C$4:$K$35,9,FALSE)) ->  | AR25: =IF(AR24="","",VLOOKUP(AR24,'【記載例】シフト記号表（勤務時間帯）'!$C$4:$K$35,9,FALSE)) ->  | AS25: =IF(AS24="","",VLOOKUP(AS24,'【記載例】シフト記号表（勤務時間帯）'!$C$4:$K$35,9,FALSE)) ->  | AT25: =IF(AT24="","",VLOOKUP(AT24,'【記載例】シフト記号表（勤務時間帯）'!$C$4:$K$35,9,FALSE)) ->  | AU25: =IF(AU24="","",VLOOKUP(AU24,'【記載例】シフト記号表（勤務時間帯）'!$C$4:$K$35,9,FALSE)) ->  | AV25: =IF(AV24="","",VLOOKUP(AV24,'【記載例】シフト記号表（勤務時間帯）'!$C$4:$K$35,9,FALSE)) ->  | AW25: =IF(AW24="","",VLOOKUP(AW24,'【記載例】シフト記号表（勤務時間帯）'!$C$4:$K$35,9,FALSE)) -> 
B26: =B24+1 -> 6 | P26: シフト記号 | AX26: =IF($BC$3="計画",SUM(S27:AT27),IF($BC$3="実績",SUM(S27:AW27),"")) -> 0 | AZ26: =IF($BC$3="計画",AX26/4,IF($BC$3="実績",AX26/($BA$7/7),"")) -> 0
P27: 勤務時間数 | S27: =IF(S26="","",VLOOKUP(S26,'【記載例】シフト記号表（勤務時間帯）'!$C$4:$K$35,9,FALSE)) ->  | T27: =IF(T26="","",VLOOKUP(T26,'【記載例】シフト記号表（勤務時間帯）'!$C$4:$K$35,9,FALSE)) ->  | U27: =IF(U26="","",VLOOKUP(U26,'【記載例】シフト記号表（勤務時間帯）'!$C$4:$K$35,9,FALSE)) ->  | V27: =IF(V26="","",VLOOKUP(V26,'【記載例】シフト記号表（勤務時間帯）'!$C$4:$K$35,9,FALSE)) ->  | W27: =IF(W26="","",VLOOKUP(W26,'【記載例】シフト記号表（勤務時間帯）'!$C$4:$K$35,9,FALSE)) ->  | X27: =IF(X26="","",VLOOKUP(X26,'【記載例】シフト記号表（勤務時間帯）'!$C$4:$K$35,9,FALSE)) ->  | Y27: =IF(Y26="","",VLOOKUP(Y26,'【記載例】シフト記号表（勤務時間帯）'!$C$4:$K$35,9,FALSE)) ->  | Z27: =IF(Z26="","",VLOOKUP(Z26,'【記載例】シフト記号表（勤務時間帯）'!$C$4:$K$35,9,FALSE)) ->  | AA27: =IF(AA26="","",VLOOKUP(AA26,'【記載例】シフト記号表（勤務時間帯）'!$C$4:$K$35,9,FALSE)) ->  | AB27: =IF(AB26="","",VLOOKUP(AB26,'【記載例】シフト記号表（勤務時間帯）'!$C$4:$K$35,9,FALSE)) ->  | AC27: =IF(AC26="","",VLOOKUP(AC26,'【記載例】シフト記号表（勤務時間帯）'!$C$4:$K$35,9,FALSE)) ->  | AD27: =IF(AD26="","",VLOOKUP(AD26,'【記載例】シフト記号表（勤務時間帯）'!$C$4:$K$35,9,FALSE)) ->  | AE27: =IF(AE26="","",VLOOKUP(AE26,'【記載例】シフト記号表（勤務時間帯）'!$C$4:$K$35,9,FALSE)) ->  | AF27: =IF(AF26="","",VLOOKUP(AF26,'【記載例】シフト記号表（勤務時間帯）'!$C$4:$K$35,9,FALSE)) ->  | AG27: =IF(AG26="","",VLOOKUP(AG26,'【記載例】シフト記号表（勤務時間帯）'!$C$4:$K$35,9,FALSE)) ->  | AH27: =IF(AH26="","",VLOOKUP(AH26,'【記載例】シフト記号表（勤務時間帯）'!$C$4:$K$35,9,FALSE)) ->  | AI27: =IF(AI26="","",VLOOKUP(AI26,'【記載例】シフト記号表（勤務時間帯）'!$C$4:$K$35,9,FALSE)) ->  | AJ27: =IF(AJ26="","",VLOOKUP(AJ26,'【記載例】シフト記号表（勤務時間帯）'!$C$4:$K$35,9,FALSE)) ->  | AK27: =IF(AK26="","",VLOOKUP(AK26,'【記載例】シフト記号表（勤務時間帯）'!$C$4:$K$35,9,FALSE)) ->  | AL27: =IF(AL26="","",VLOOKUP(AL26,'【記載例】シフト記号表（勤務時間帯）'!$C$4:$K$35,9,FALSE)) ->  | AM27: =IF(AM26="","",VLOOKUP(AM26,'【記載例】シフト記号表（勤務時間帯）'!$C$4:$K$35,9,FALSE)) ->  | AN27: =IF(AN26="","",VLOOKUP(AN26,'【記載例】シフト記号表（勤務時間帯）'!$C$4:$K$35,9,FALSE)) ->  | AO27: =IF(AO26="","",VLOOKUP(AO26,'【記載例】シフト記号表（勤務時間帯）'!$C$4:$K$35,9,FALSE)) ->  | AP27: =IF(AP26="","",VLOOKUP(AP26,'【記載例】シフト記号表（勤務時間帯）'!$C$4:$K$35,9,FALSE)) ->  | AQ27: =IF(AQ26="","",VLOOKUP(AQ26,'【記載例】シフト記号表（勤務時間帯）'!$C$4:$K$35,9,FALSE)) ->  | AR27: =IF(AR26="","",VLOOKUP(AR26,'【記載例】シフト記号表（勤務時間帯）'!$C$4:$K$35,9,FALSE)) ->  | AS27: =IF(AS26="","",VLOOKUP(AS26,'【記載例】シフト記号表（勤務時間帯）'!$C$4:$K$35,9,FALSE)) ->  | AT27: =IF(AT26="","",VLOOKUP(AT26,'【記載例】シフト記号表（勤務時間帯）'!$C$4:$K$35,9,FALSE)) ->  | AU27: =IF(AU26="","",VLOOKUP(AU26,'【記載例】シフト記号表（勤務時間帯）'!$C$4:$K$35,9,FALSE)) ->  | AV27: =IF(AV26="","",VLOOKUP(AV26,'【記載例】シフト記号表（勤務時間帯）'!$C$4:$K$35,9,FALSE)) ->  | AW27: =IF(AW26="","",VLOOKUP(AW26,'【記載例】シフト記号表（勤務時間帯）'!$C$4:$K$35,9,FALSE)) -> 
B28: =B26+1 -> 7 | P28: シフト記号 | AX28: =IF($BC$3="計画",SUM(S29:AT29),IF($BC$3="実績",SUM(S29:AW29),"")) -> 0 | AZ28: =IF($BC$3="計画",AX28/4,IF($BC$3="実績",AX28/($BA$7/7),"")) -> 0
P29: 勤務時間数 | S29: =IF(S28="","",VLOOKUP(S28,'【記載例】シフト記号表（勤務時間帯）'!$C$4:$K$35,9,FALSE)) ->  | T29: =IF(T28="","",VLOOKUP(T28,'【記載例】シフト記号表（勤務時間帯）'!$C$4:$K$35,9,FALSE)) ->  | U29: =IF(U28="","",VLOOKUP(U28,'【記載例】シフト記号表（勤務時間帯）'!$C$4:$K$35,9,FALSE)) ->  | V29: =IF(V28="","",VLOOKUP(V28,'【記載例】シフト記号表（勤務時間帯）'!$C$4:$K$35,9,FALSE)) ->  | W29: =IF(W28="","",VLOOKUP(W28,'【記載例】シフト記号表（勤務時間帯）'!$C$4:$K$35,9,FALSE)) ->  | X29: =IF(X28="","",VLOOKUP(X28,'【記載例】シフト記号表（勤務時間帯）'!$C$4:$K$35,9,FALSE)) ->  | Y29: =IF(Y28="","",VLOOKUP(Y28,'【記載例】シフト記号表（勤務時間帯）'!$C$4:$K$35,9,FALSE)) ->  | Z29: =IF(Z28="","",VLOOKUP(Z28,'【記載例】シフト記号表（勤務時間帯）'!$C$4:$K$35,9,FALSE)) ->  | AA29: =IF(AA28="","",VLOOKUP(AA28,'【記載例】シフト記号表（勤務時間帯）'!$C$4:$K$35,9,FALSE)) ->  | AB29: =IF(AB28="","",VLOOKUP(AB28,'【記載例】シフト記号表（勤務時間帯）'!$C$4:$K$35,9,FALSE)) ->  | AC29: =IF(AC28="","",VLOOKUP(AC28,'【記載例】シフト記号表（勤務時間帯）'!$C$4:$K$35,9,FALSE)) ->  | AD29: =IF(AD28="","",VLOOKUP(AD28,'【記載例】シフト記号表（勤務時間帯）'!$C$4:$K$35,9,FALSE)) ->  | AE29: =IF(AE28="","",VLOOKUP(AE28,'【記載例】シフト記号表（勤務時間帯）'!$C$4:$K$35,9,FALSE)) ->  | AF29: =IF(AF28="","",VLOOKUP(AF28,'【記載例】シフト記号表（勤務時間帯）'!$C$4:$K$35,9,FALSE)) ->  | AG29: =IF(AG28="","",VLOOKUP(AG28,'【記載例】シフト記号表（勤務時間帯）'!$C$4:$K$35,9,FALSE)) ->  | AH29: =IF(AH28="","",VLOOKUP(AH28,'【記載例】シフト記号表（勤務時間帯）'!$C$4:$K$35,9,FALSE)) ->  | AI29: =IF(AI28="","",VLOOKUP(AI28,'【記載例】シフト記号表（勤務時間帯）'!$C$4:$K$35,9,FALSE)) ->  | AJ29: =IF(AJ28="","",VLOOKUP(AJ28,'【記載例】シフト記号表（勤務時間帯）'!$C$4:$K$35,9,FALSE)) ->  | AK29: =IF(AK28="","",VLOOKUP(AK28,'【記載例】シフト記号表（勤務時間帯）'!$C$4:$K$35,9,FALSE)) ->  | AL29: =IF(AL28="","",VLOOKUP(AL28,'【記載例】シフト記号表（勤務時間帯）'!$C$4:$K$35,9,FALSE)) ->  | AM29: =IF(AM28="","",VLOOKUP(AM28,'【記載例】シフト記号表（勤務時間帯）'!$C$4:$K$35,9,FALSE)) ->  | AN29: =IF(AN28="","",VLOOKUP(AN28,'【記載例】シフト記号表（勤務時間帯）'!$C$4:$K$35,9,FALSE)) ->  | AO29: =IF(AO28="","",VLOOKUP(AO28,'【記載例】シフト記号表（勤務時間帯）'!$C$4:$K$35,9,FALSE)) ->  | AP29: =IF(AP28="","",VLOOKUP(AP28,'【記載例】シフト記号表（勤務時間帯）'!$C$4:$K$35,9,FALSE)) ->  | AQ29: =IF(AQ28="","",VLOOKUP(AQ28,'【記載例】シフト記号表（勤務時間帯）'!$C$4:$K$35,9,FALSE)) ->  | AR29: =IF(AR28="","",VLOOKUP(AR28,'【記載例】シフト記号表（勤務時間帯）'!$C$4:$K$35,9,FALSE)) ->  | AS29: =IF(AS28="","",VLOOKUP(AS28,'【記載例】シフト記号表（勤務時間帯）'!$C$4:$K$35,9,FALSE)) ->  | AT29: =IF(AT28="","",VLOOKUP(AT28,'【記載例】シフト記号表（勤務時間帯）'!$C$4:$K$35,9,FALSE)) ->  | AU29: =IF(AU28="","",VLOOKUP(AU28,'【記載例】シフト記号表（勤務時間帯）'!$C$4:$K$35,9,FALSE)) ->  | AV29: =IF(AV28="","",VLOOKUP(AV28,'【記載例】シフト記号表（勤務時間帯）'!$C$4:$K$35,9,FALSE)) ->  | AW29: =IF(AW28="","",VLOOKUP(AW28,'【記載例】シフト記号表（勤務時間帯）'!$C$4:$K$35,9,FALSE)) -> 
B30: =B28+1 -> 8 | P30: シフト記号 | AX30: =IF($BC$3="計画",SUM(S31:AT31),IF($BC$3="実績",SUM(S31:AW31),"")) -> 0 | AZ30: =IF($BC$3="計画",AX30/4,IF($BC$3="実績",AX30/($BA$7/7),"")) -> 0
P31: 勤務時間数 | S31: =IF(S30="","",VLOOKUP(S30,'【記載例】シフト記号表（勤務時間帯）'!$C$4:$K$35,9,FALSE)) ->  | T31: =IF(T30="","",VLOOKUP(T30,'【記載例】シフト記号表（勤務時間帯）'!$C$4:$K$35,9,FALSE)) ->  | U31: =IF(U30="","",VLOOKUP(U30,'【記載例】シフト記号表（勤務時間帯）'!$C$4:$K$35,9,FALSE)) ->  | V31: =IF(V30="","",VLOOKUP(V30,'【記載例】シフト記号表（勤務時間帯）'!$C$4:$K$35,9,FALSE)) ->  | W31: =IF(W30="","",VLOOKUP(W30,'【記載例】シフト記号表（勤務時間帯）'!$C$4:$K$35,9,FALSE)) ->  | X31: =IF(X30="","",VLOOKUP(X30,'【記載例】シフト記号表（勤務時間帯）'!$C$4:$K$35,9,FALSE)) ->  | Y31: =IF(Y30="","",VLOOKUP(Y30,'【記載例】シフト記号表（勤務時間帯）'!$C$4:$K$35,9,FALSE)) ->  | Z31: =IF(Z30="","",VLOOKUP(Z30,'【記載例】シフト記号表（勤務時間帯）'!$C$4:$K$35,9,FALSE)) ->  | AA31: =IF(AA30="","",VLOOKUP(AA30,'【記載例】シフト記号表（勤務時間帯）'!$C$4:$K$35,9,FALSE)) ->  | AB31: =IF(AB30="","",VLOOKUP(AB30,'【記載例】シフト記号表（勤務時間帯）'!$C$4:$K$35,9,FALSE)) ->  | AC31: =IF(AC30="","",VLOOKUP(AC30,'【記載例】シフト記号表（勤務時間帯）'!$C$4:$K$35,9,FALSE)) ->  | AD31: =IF(AD30="","",VLOOKUP(AD30,'【記載例】シフト記号表（勤務時間帯）'!$C$4:$K$35,9,FALSE)) ->  | AE31: =IF(AE30="","",VLOOKUP(AE30,'【記載例】シフト記号表（勤務時間帯）'!$C$4:$K$35,9,FALSE)) ->  | AF31: =IF(AF30="","",VLOOKUP(AF30,'【記載例】シフト記号表（勤務時間帯）'!$C$4:$K$35,9,FALSE)) ->  | AG31: =IF(AG30="","",VLOOKUP(AG30,'【記載例】シフト記号表（勤務時間帯）'!$C$4:$K$35,9,FALSE)) ->  | AH31: =IF(AH30="","",VLOOKUP(AH30,'【記載例】シフト記号表（勤務時間帯）'!$C$4:$K$35,9,FALSE)) ->  | AI31: =IF(AI30="","",VLOOKUP(AI30,'【記載例】シフト記号表（勤務時間帯）'!$C$4:$K$35,9,FALSE)) ->  | AJ31: =IF(AJ30="","",VLOOKUP(AJ30,'【記載例】シフト記号表（勤務時間帯）'!$C$4:$K$35,9,FALSE)) ->  | AK31: =IF(AK30="","",VLOOKUP(AK30,'【記載例】シフト記号表（勤務時間帯）'!$C$4:$K$35,9,FALSE)) ->  | AL31: =IF(AL30="","",VLOOKUP(AL30,'【記載例】シフト記号表（勤務時間帯）'!$C$4:$K$35,9,FALSE)) ->  | AM31: =IF(AM30="","",VLOOKUP(AM30,'【記載例】シフト記号表（勤務時間帯）'!$C$4:$K$35,9,FALSE)) ->  | AN31: =IF(AN30="","",VLOOKUP(AN30,'【記載例】シフト記号表（勤務時間帯）'!$C$4:$K$35,9,FALSE)) ->  | AO31: =IF(AO30="","",VLOOKUP(AO30,'【記載例】シフト記号表（勤務時間帯）'!$C$4:$K$35,9,FALSE)) ->  | AP31: =IF(AP30="","",VLOOKUP(AP30,'【記載例】シフト記号表（勤務時間帯）'!$C$4:$K$35,9,FALSE)) ->  | AQ31: =IF(AQ30="","",VLOOKUP(AQ30,'【記載例】シフト記号表（勤務時間帯）'!$C$4:$K$35,9,FALSE)) ->  | AR31: =IF(AR30="","",VLOOKUP(AR30,'【記載例】シフト記号表（勤務時間帯）'!$C$4:$K$35,9,FALSE)) ->  | AS31: =IF(AS30="","",VLOOKUP(AS30,'【記載例】シフト記号表（勤務時間帯）'!$C$4:$K$35,9,FALSE)) ->  | AT31: =IF(AT30="","",VLOOKUP(AT30,'【記載例】シフト記号表（勤務時間帯）'!$C$4:$K$35,9,FALSE)) ->  | AU31: =IF(AU30="","",VLOOKUP(AU30,'【記載例】シフト記号表（勤務時間帯）'!$C$4:$K$35,9,FALSE)) ->  | AV31: =IF(AV30="","",VLOOKUP(AV30,'【記載例】シフト記号表（勤務時間帯）'!$C$4:$K$35,9,FALSE)) ->  | AW31: =IF(AW30="","",VLOOKUP(AW30,'【記載例】シフト記号表（勤務時間帯）'!$C$4:$K$35,9,FALSE)) -> 
B32: =B30+1 -> 9 | P32: シフト記号 | AX32: =IF($BC$3="計画",SUM(S33:AT33),IF($BC$3="実績",SUM(S33:AW33),"")) -> 0 | AZ32: =IF($BC$3="計画",AX32/4,IF($BC$3="実績",AX32/($BA$7/7),"")) -> 0
P33: 勤務時間数 | S33: =IF(S32="","",VLOOKUP(S32,'【記載例】シフト記号表（勤務時間帯）'!$C$4:$K$35,9,FALSE)) ->  | T33: =IF(T32="","",VLOOKUP(T32,'【記載例】シフト記号表（勤務時間帯）'!$C$4:$K$35,9,FALSE)) ->  | U33: =IF(U32="","",VLOOKUP(U32,'【記載例】シフト記号表（勤務時間帯）'!$C$4:$K$35,9,FALSE)) ->  | V33: =IF(V32="","",VLOOKUP(V32,'【記載例】シフト記号表（勤務時間帯）'!$C$4:$K$35,9,FALSE)) ->  | W33: =IF(W32="","",VLOOKUP(W32,'【記載例】シフト記号表（勤務時間帯）'!$C$4:$K$35,9,FALSE)) ->  | X33: =IF(X32="","",VLOOKUP(X32,'【記載例】シフト記号表（勤務時間帯）'!$C$4:$K$35,9,FALSE)) ->  | Y33: =IF(Y32="","",VLOOKUP(Y32,'【記載例】シフト記号表（勤務時間帯）'!$C$4:$K$35,9,FALSE)) ->  | Z33: =IF(Z32="","",VLOOKUP(Z32,'【記載例】シフト記号表（勤務時間帯）'!$C$4:$K$35,9,FALSE)) ->  | AA33: =IF(AA32="","",VLOOKUP(AA32,'【記載例】シフト記号表（勤務時間帯）'!$C$4:$K$35,9,FALSE)) ->  | AB33: =IF(AB32="","",VLOOKUP(AB32,'【記載例】シフト記号表（勤務時間帯）'!$C$4:$K$35,9,FALSE)) ->  | AC33: =IF(AC32="","",VLOOKUP(AC32,'【記載例】シフト記号表（勤務時間帯）'!$C$4:$K$35,9,FALSE)) ->  | AD33: =IF(AD32="","",VLOOKUP(AD32,'【記載例】シフト記号表（勤務時間帯）'!$C$4:$K$35,9,FALSE)) ->  | AE33: =IF(AE32="","",VLOOKUP(AE32,'【記載例】シフト記号表（勤務時間帯）'!$C$4:$K$35,9,FALSE)) ->  | AF33: =IF(AF32="","",VLOOKUP(AF32,'【記載例】シフト記号表（勤務時間帯）'!$C$4:$K$35,9,FALSE)) ->  | AG33: =IF(AG32="","",VLOOKUP(AG32,'【記載例】シフト記号表（勤務時間帯）'!$C$4:$K$35,9,FALSE)) ->  | AH33: =IF(AH32="","",VLOOKUP(AH32,'【記載例】シフト記号表（勤務時間帯）'!$C$4:$K$35,9,FALSE)) ->  | AI33: =IF(AI32="","",VLOOKUP(AI32,'【記載例】シフト記号表（勤務時間帯）'!$C$4:$K$35,9,FALSE)) ->  | AJ33: =IF(AJ32="","",VLOOKUP(AJ32,'【記載例】シフト記号表（勤務時間帯）'!$C$4:$K$35,9,FALSE)) ->  | AK33: =IF(AK32="","",VLOOKUP(AK32,'【記載例】シフト記号表（勤務時間帯）'!$C$4:$K$35,9,FALSE)) ->  | AL33: =IF(AL32="","",VLOOKUP(AL32,'【記載例】シフト記号表（勤務時間帯）'!$C$4:$K$35,9,FALSE)) ->  | AM33: =IF(AM32="","",VLOOKUP(AM32,'【記載例】シフト記号表（勤務時間帯）'!$C$4:$K$35,9,FALSE)) ->  | AN33: =IF(AN32="","",VLOOKUP(AN32,'【記載例】シフト記号表（勤務時間帯）'!$C$4:$K$35,9,FALSE)) ->  | AO33: =IF(AO32="","",VLOOKUP(AO32,'【記載例】シフト記号表（勤務時間帯）'!$C$4:$K$35,9,FALSE)) ->  | AP33: =IF(AP32="","",VLOOKUP(AP32,'【記載例】シフト記号表（勤務時間帯）'!$C$4:$K$35,9,FALSE)) ->  | AQ33: =IF(AQ32="","",VLOOKUP(AQ32,'【記載例】シフト記号表（勤務時間帯）'!$C$4:$K$35,9,FALSE)) ->  | AR33: =IF(AR32="","",VLOOKUP(AR32,'【記載例】シフト記号表（勤務時間帯）'!$C$4:$K$35,9,FALSE)) ->  | AS33: =IF(AS32="","",VLOOKUP(AS32,'【記載例】シフト記号表（勤務時間帯）'!$C$4:$K$35,9,FALSE)) ->  | AT33: =IF(AT32="","",VLOOKUP(AT32,'【記載例】シフト記号表（勤務時間帯）'!$C$4:$K$35,9,FALSE)) ->  | AU33: =IF(AU32="","",VLOOKUP(AU32,'【記載例】シフト記号表（勤務時間帯）'!$C$4:$K$35,9,FALSE)) ->  | AV33: =IF(AV32="","",VLOOKUP(AV32,'【記載例】シフト記号表（勤務時間帯）'!$C$4:$K$35,9,FALSE)) ->  | AW33: =IF(AW32="","",VLOOKUP(AW32,'【記載例】シフト記号表（勤務時間帯）'!$C$4:$K$35,9,FALSE)) -> 
B34: =B32+1 -> 10 | P34: シフト記号 | AX34: =IF($BC$3="計画",SUM(S35:AT35),IF($BC$3="実績",SUM(S35:AW35),"")) -> 0 | AZ34: =IF($BC$3="計画",AX34/4,IF($BC$3="実績",AX34/($BA$7/7),"")) -> 0
P35: 勤務時間数 | S35: =IF(S34="","",VLOOKUP(S34,'【記載例】シフト記号表（勤務時間帯）'!$C$4:$K$35,9,FALSE)) ->  | T35: =IF(T34="","",VLOOKUP(T34,'【記載例】シフト記号表（勤務時間帯）'!$C$4:$K$35,9,FALSE)) ->  | U35: =IF(U34="","",VLOOKUP(U34,'【記載例】シフト記号表（勤務時間帯）'!$C$4:$K$35,9,FALSE)) ->  | V35: =IF(V34="","",VLOOKUP(V34,'【記載例】シフト記号表（勤務時間帯）'!$C$4:$K$35,9,FALSE)) ->  | W35: =IF(W34="","",VLOOKUP(W34,'【記載例】シフト記号表（勤務時間帯）'!$C$4:$K$35,9,FALSE)) ->  | X35: =IF(X34="","",VLOOKUP(X34,'【記載例】シフト記号表（勤務時間帯）'!$C$4:$K$35,9,FALSE)) ->  | Y35: =IF(Y34="","",VLOOKUP(Y34,'【記載例】シフト記号表（勤務時間帯）'!$C$4:$K$35,9,FALSE)) ->  | Z35: =IF(Z34="","",VLOOKUP(Z34,'【記載例】シフト記号表（勤務時間帯）'!$C$4:$K$35,9,FALSE)) ->  | AA35: =IF(AA34="","",VLOOKUP(AA34,'【記載例】シフト記号表（勤務時間帯）'!$C$4:$K$35,9,FALSE)) ->  | AB35: =IF(AB34="","",VLOOKUP(AB34,'【記載例】シフト記号表（勤務時間帯）'!$C$4:$K$35,9,FALSE)) ->  | AC35: =IF(AC34="","",VLOOKUP(AC34,'【記載例】シフト記号表（勤務時間帯）'!$C$4:$K$35,9,FALSE)) ->  | AD35: =IF(AD34="","",VLOOKUP(AD34,'【記載例】シフト記号表（勤務時間帯）'!$C$4:$K$35,9,FALSE)) ->  | AE35: =IF(AE34="","",VLOOKUP(AE34,'【記載例】シフト記号表（勤務時間帯）'!$C$4:$K$35,9,FALSE)) ->  | AF35: =IF(AF34="","",VLOOKUP(AF34,'【記載例】シフト記号表（勤務時間帯）'!$C$4:$K$35,9,FALSE)) ->  | AG35: =IF(AG34="","",VLOOKUP(AG34,'【記載例】シフト記号表（勤務時間帯）'!$C$4:$K$35,9,FALSE)) ->  | AH35: =IF(AH34="","",VLOOKUP(AH34,'【記載例】シフト記号表（勤務時間帯）'!$C$4:$K$35,9,FALSE)) ->  | AI35: =IF(AI34="","",VLOOKUP(AI34,'【記載例】シフト記号表（勤務時間帯）'!$C$4:$K$35,9,FALSE)) ->  | AJ35: =IF(AJ34="","",VLOOKUP(AJ34,'【記載例】シフト記号表（勤務時間帯）'!$C$4:$K$35,9,FALSE)) ->  | AK35: =IF(AK34="","",VLOOKUP(AK34,'【記載例】シフト記号表（勤務時間帯）'!$C$4:$K$35,9,FALSE)) ->  | AL35: =IF(AL34="","",VLOOKUP(AL34,'【記載例】シフト記号表（勤務時間帯）'!$C$4:$K$35,9,FALSE)) ->  | AM35: =IF(AM34="","",VLOOKUP(AM34,'【記載例】シフト記号表（勤務時間帯）'!$C$4:$K$35,9,FALSE)) ->  | AN35: =IF(AN34="","",VLOOKUP(AN34,'【記載例】シフト記号表（勤務時間帯）'!$C$4:$K$35,9,FALSE)) ->  | AO35: =IF(AO34="","",VLOOKUP(AO34,'【記載例】シフト記号表（勤務時間帯）'!$C$4:$K$35,9,FALSE)) ->  | AP35: =IF(AP34="","",VLOOKUP(AP34,'【記載例】シフト記号表（勤務時間帯）'!$C$4:$K$35,9,FALSE)) ->  | AQ35: =IF(AQ34="","",VLOOKUP(AQ34,'【記載例】シフト記号表（勤務時間帯）'!$C$4:$K$35,9,FALSE)) ->  | AR35: =IF(AR34="","",VLOOKUP(AR34,'【記載例】シフト記号表（勤務時間帯）'!$C$4:$K$35,9,FALSE)) ->  | AS35: =IF(AS34="","",VLOOKUP(AS34,'【記載例】シフト記号表（勤務時間帯）'!$C$4:$K$35,9,FALSE)) ->  | AT35: =IF(AT34="","",VLOOKUP(AT34,'【記載例】シフト記号表（勤務時間帯）'!$C$4:$K$35,9,FALSE)) ->  | AU35: =IF(AU34="","",VLOOKUP(AU34,'【記載例】シフト記号表（勤務時間帯）'!$C$4:$K$35,9,FALSE)) ->  | AV35: =IF(AV34="","",VLOOKUP(AV34,'【記載例】シフト記号表（勤務時間帯）'!$C$4:$K$35,9,FALSE)) ->  | AW35: =IF(AW34="","",VLOOKUP(AW34,'【記載例】シフト記号表（勤務時間帯）'!$C$4:$K$35,9,FALSE)) -> 
B36: 11 | P36: シフト記号 | AX36: =IF($BC$3="計画",SUM(S37:AT37),IF($BC$3="実績",SUM(S37:AW37),"")) -> 0 | AZ36: =IF($BC$3="計画",AX36/4,IF($BC$3="実績",AX36/($BA$7/7),"")) -> 0
P37: 勤務時間数 | S37: =IF(S36="","",VLOOKUP(S36,'【記載例】シフト記号表（勤務時間帯）'!$C$4:$K$35,9,FALSE)) ->  | T37: =IF(T36="","",VLOOKUP(T36,'【記載例】シフト記号表（勤務時間帯）'!$C$4:$K$35,9,FALSE)) ->  | U37: =IF(U36="","",VLOOKUP(U36,'【記載例】シフト記号表（勤務時間帯）'!$C$4:$K$35,9,FALSE)) ->  | V37: =IF(V36="","",VLOOKUP(V36,'【記載例】シフト記号表（勤務時間帯）'!$C$4:$K$35,9,FALSE)) ->  | W37: =IF(W36="","",VLOOKUP(W36,'【記載例】シフト記号表（勤務時間帯）'!$C$4:$K$35,9,FALSE)) ->  | X37: =IF(X36="","",VLOOKUP(X36,'【記載例】シフト記号表（勤務時間帯）'!$C$4:$K$35,9,FALSE)) ->  | Y37: =IF(Y36="","",VLOOKUP(Y36,'【記載例】シフト記号表（勤務時間帯）'!$C$4:$K$35,9,FALSE)) ->  | Z37: =IF(Z36="","",VLOOKUP(Z36,'【記載例】シフト記号表（勤務時間帯）'!$C$4:$K$35,9,FALSE)) ->  | AA37: =IF(AA36="","",VLOOKUP(AA36,'【記載例】シフト記号表（勤務時間帯）'!$C$4:$K$35,9,FALSE)) ->  | AB37: =IF(AB36="","",VLOOKUP(AB36,'【記載例】シフト記号表（勤務時間帯）'!$C$4:$K$35,9,FALSE)) ->  | AC37: =IF(AC36="","",VLOOKUP(AC36,'【記載例】シフト記号表（勤務時間帯）'!$C$4:$K$35,9,FALSE)) ->  | AD37: =IF(AD36="","",VLOOKUP(AD36,'【記載例】シフト記号表（勤務時間帯）'!$C$4:$K$35,9,FALSE)) ->  | AE37: =IF(AE36="","",VLOOKUP(AE36,'【記載例】シフト記号表（勤務時間帯）'!$C$4:$K$35,9,FALSE)) ->  | AF37: =IF(AF36="","",VLOOKUP(AF36,'【記載例】シフト記号表（勤務時間帯）'!$C$4:$K$35,9,FALSE)) ->  | AG37: =IF(AG36="","",VLOOKUP(AG36,'【記載例】シフト記号表（勤務時間帯）'!$C$4:$K$35,9,FALSE)) ->  | AH37: =IF(AH36="","",VLOOKUP(AH36,'【記載例】シフト記号表（勤務時間帯）'!$C$4:$K$35,9,FALSE)) ->  | AI37: =IF(AI36="","",VLOOKUP(AI36,'【記載例】シフト記号表（勤務時間帯）'!$C$4:$K$35,9,FALSE)) ->  | AJ37: =IF(AJ36="","",VLOOKUP(AJ36,'【記載例】シフト記号表（勤務時間帯）'!$C$4:$K$35,9,FALSE)) ->  | AK37: =IF(AK36="","",VLOOKUP(AK36,'【記載例】シフト記号表（勤務時間帯）'!$C$4:$K$35,9,FALSE)) ->  | AL37: =IF(AL36="","",VLOOKUP(AL36,'【記載例】シフト記号表（勤務時間帯）'!$C$4:$K$35,9,FALSE)) ->  | AM37: =IF(AM36="","",VLOOKUP(AM36,'【記載例】シフト記号表（勤務時間帯）'!$C$4:$K$35,9,FALSE)) ->  | AN37: =IF(AN36="","",VLOOKUP(AN36,'【記載例】シフト記号表（勤務時間帯）'!$C$4:$K$35,9,FALSE)) ->  | AO37: =IF(AO36="","",VLOOKUP(AO36,'【記載例】シフト記号表（勤務時間帯）'!$C$4:$K$35,9,FALSE)) ->  | AP37: =IF(AP36="","",VLOOKUP(AP36,'【記載例】シフト記号表（勤務時間帯）'!$C$4:$K$35,9,FALSE)) ->  | AQ37: =IF(AQ36="","",VLOOKUP(AQ36,'【記載例】シフト記号表（勤務時間帯）'!$C$4:$K$35,9,FALSE)) ->  | AR37: =IF(AR36="","",VLOOKUP(AR36,'【記載例】シフト記号表（勤務時間帯）'!$C$4:$K$35,9,FALSE)) ->  | AS37: =IF(AS36="","",VLOOKUP(AS36,'【記載例】シフト記号表（勤務時間帯）'!$C$4:$K$35,9,FALSE)) ->  | AT37: =IF(AT36="","",VLOOKUP(AT36,'【記載例】シフト記号表（勤務時間帯）'!$C$4:$K$35,9,FALSE)) ->  | AU37: =IF(AU36="","",VLOOKUP(AU36,'【記載例】シフト記号表（勤務時間帯）'!$C$4:$K$35,9,FALSE)) ->  | AV37: =IF(AV36="","",VLOOKUP(AV36,'【記載例】シフト記号表（勤務時間帯）'!$C$4:$K$35,9,FALSE)) ->  | AW37: =IF(AW36="","",VLOOKUP(AW36,'【記載例】シフト記号表（勤務時間帯）'!$C$4:$K$35,9,FALSE)) -> 
B38: =B36+1 -> 12 | P38: シフト記号 | AX38: =IF($BC$3="計画",SUM(S39:AT39),IF($BC$3="実績",SUM(S39:AW39),"")) -> 0 | AZ38: =IF($BC$3="計画",AX38/4,IF($BC$3="実績",AX38/($BA$7/7),"")) -> 0
P39: 勤務時間数 | S39: =IF(S38="","",VLOOKUP(S38,'【記載例】シフト記号表（勤務時間帯）'!$C$4:$K$35,9,FALSE)) ->  | T39: =IF(T38="","",VLOOKUP(T38,'【記載例】シフト記号表（勤務時間帯）'!$C$4:$K$35,9,FALSE)) ->  | U39: =IF(U38="","",VLOOKUP(U38,'【記載例】シフト記号表（勤務時間帯）'!$C$4:$K$35,9,FALSE)) ->  | V39: =IF(V38="","",VLOOKUP(V38,'【記載例】シフト記号表（勤務時間帯）'!$C$4:$K$35,9,FALSE)) ->  | W39: =IF(W38="","",VLOOKUP(W38,'【記載例】シフト記号表（勤務時間帯）'!$C$4:$K$35,9,FALSE)) ->  | X39: =IF(X38="","",VLOOKUP(X38,'【記載例】シフト記号表（勤務時間帯）'!$C$4:$K$35,9,FALSE)) ->  | Y39: =IF(Y38="","",VLOOKUP(Y38,'【記載例】シフト記号表（勤務時間帯）'!$C$4:$K$35,9,FALSE)) ->  | Z39: =IF(Z38="","",VLOOKUP(Z38,'【記載例】シフト記号表（勤務時間帯）'!$C$4:$K$35,9,FALSE)) ->  | AA39: =IF(AA38="","",VLOOKUP(AA38,'【記載例】シフト記号表（勤務時間帯）'!$C$4:$K$35,9,FALSE)) ->  | AB39: =IF(AB38="","",VLOOKUP(AB38,'【記載例】シフト記号表（勤務時間帯）'!$C$4:$K$35,9,FALSE)) ->  | AC39: =IF(AC38="","",VLOOKUP(AC38,'【記載例】シフト記号表（勤務時間帯）'!$C$4:$K$35,9,FALSE)) ->  | AD39: =IF(AD38="","",VLOOKUP(AD38,'【記載例】シフト記号表（勤務時間帯）'!$C$4:$K$35,9,FALSE)) ->  | AE39: =IF(AE38="","",VLOOKUP(AE38,'【記載例】シフト記号表（勤務時間帯）'!$C$4:$K$35,9,FALSE)) ->  | AF39: =IF(AF38="","",VLOOKUP(AF38,'【記載例】シフト記号表（勤務時間帯）'!$C$4:$K$35,9,FALSE)) ->  | AG39: =IF(AG38="","",VLOOKUP(AG38,'【記載例】シフト記号表（勤務時間帯）'!$C$4:$K$35,9,FALSE)) ->  | AH39: =IF(AH38="","",VLOOKUP(AH38,'【記載例】シフト記号表（勤務時間帯）'!$C$4:$K$35,9,FALSE)) ->  | AI39: =IF(AI38="","",VLOOKUP(AI38,'【記載例】シフト記号表（勤務時間帯）'!$C$4:$K$35,9,FALSE)) ->  | AJ39: =IF(AJ38="","",VLOOKUP(AJ38,'【記載例】シフト記号表（勤務時間帯）'!$C$4:$K$35,9,FALSE)) ->  | AK39: =IF(AK38="","",VLOOKUP(AK38,'【記載例】シフト記号表（勤務時間帯）'!$C$4:$K$35,9,FALSE)) ->  | AL39: =IF(AL38="","",VLOOKUP(AL38,'【記載例】シフト記号表（勤務時間帯）'!$C$4:$K$35,9,FALSE)) ->  | AM39: =IF(AM38="","",VLOOKUP(AM38,'【記載例】シフト記号表（勤務時間帯）'!$C$4:$K$35,9,FALSE)) ->  | AN39: =IF(AN38="","",VLOOKUP(AN38,'【記載例】シフト記号表（勤務時間帯）'!$C$4:$K$35,9,FALSE)) ->  | AO39: =IF(AO38="","",VLOOKUP(AO38,'【記載例】シフト記号表（勤務時間帯）'!$C$4:$K$35,9,FALSE)) ->  | AP39: =IF(AP38="","",VLOOKUP(AP38,'【記載例】シフト記号表（勤務時間帯）'!$C$4:$K$35,9,FALSE)) ->  | AQ39: =IF(AQ38="","",VLOOKUP(AQ38,'【記載例】シフト記号表（勤務時間帯）'!$C$4:$K$35,9,FALSE)) ->  | AR39: =IF(AR38="","",VLOOKUP(AR38,'【記載例】シフト記号表（勤務時間帯）'!$C$4:$K$35,9,FALSE)) ->  | AS39: =IF(AS38="","",VLOOKUP(AS38,'【記載例】シフト記号表（勤務時間帯）'!$C$4:$K$35,9,FALSE)) ->  | AT39: =IF(AT38="","",VLOOKUP(AT38,'【記載例】シフト記号表（勤務時間帯）'!$C$4:$K$35,9,FALSE)) ->  | AU39: =IF(AU38="","",VLOOKUP(AU38,'【記載例】シフト記号表（勤務時間帯）'!$C$4:$K$35,9,FALSE)) ->  | AV39: =IF(AV38="","",VLOOKUP(AV38,'【記載例】シフト記号表（勤務時間帯）'!$C$4:$K$35,9,FALSE)) ->  | AW39: =IF(AW38="","",VLOOKUP(AW38,'【記載例】シフト記号表（勤務時間帯）'!$C$4:$K$35,9,FALSE)) -> 
B40: =B38+1 -> 13 | P40: シフト記号 | AX40: =IF($BC$3="計画",SUM(S41:AT41),IF($BC$3="実績",SUM(S41:AW41),"")) -> 0 | AZ40: =IF($BC$3="計画",AX40/4,IF($BC$3="実績",AX40/($BA$7/7),"")) -> 0
P41: 勤務時間数 | S41: =IF(S40="","",VLOOKUP(S40,'【記載例】シフト記号表（勤務時間帯）'!$C$4:$K$35,9,FALSE)) ->  | T41: =IF(T40="","",VLOOKUP(T40,'【記載例】シフト記号表（勤務時間帯）'!$C$4:$K$35,9,FALSE)) ->  | U41: =IF(U40="","",VLOOKUP(U40,'【記載例】シフト記号表（勤務時間帯）'!$C$4:$K$35,9,FALSE)) ->  | V41: =IF(V40="","",VLOOKUP(V40,'【記載例】シフト記号表（勤務時間帯）'!$C$4:$K$35,9,FALSE)) ->  | W41: =IF(W40="","",VLOOKUP(W40,'【記載例】シフト記号表（勤務時間帯）'!$C$4:$K$35,9,FALSE)) ->  | X41: =IF(X40="","",VLOOKUP(X40,'【記載例】シフト記号表（勤務時間帯）'!$C$4:$K$35,9,FALSE)) ->  | Y41: =IF(Y40="","",VLOOKUP(Y40,'【記載例】シフト記号表（勤務時間帯）'!$C$4:$K$35,9,FALSE)) ->  | Z41: =IF(Z40="","",VLOOKUP(Z40,'【記載例】シフト記号表（勤務時間帯）'!$C$4:$K$35,9,FALSE)) ->  | AA41: =IF(AA40="","",VLOOKUP(AA40,'【記載例】シフト記号表（勤務時間帯）'!$C$4:$K$35,9,FALSE)) ->  | AB41: =IF(AB40="","",VLOOKUP(AB40,'【記載例】シフト記号表（勤務時間帯）'!$C$4:$K$35,9,FALSE)) ->  | AC41: =IF(AC40="","",VLOOKUP(AC40,'【記載例】シフト記号表（勤務時間帯）'!$C$4:$K$35,9,FALSE)) ->  | AD41: =IF(AD40="","",VLOOKUP(AD40,'【記載例】シフト記号表（勤務時間帯）'!$C$4:$K$35,9,FALSE)) ->  | AE41: =IF(AE40="","",VLOOKUP(AE40,'【記載例】シフト記号表（勤務時間帯）'!$C$4:$K$35,9,FALSE)) ->  | AF41: =IF(AF40="","",VLOOKUP(AF40,'【記載例】シフト記号表（勤務時間帯）'!$C$4:$K$35,9,FALSE)) ->  | AG41: =IF(AG40="","",VLOOKUP(AG40,'【記載例】シフト記号表（勤務時間帯）'!$C$4:$K$35,9,FALSE)) ->  | AH41: =IF(AH40="","",VLOOKUP(AH40,'【記載例】シフト記号表（勤務時間帯）'!$C$4:$K$35,9,FALSE)) ->  | AI41: =IF(AI40="","",VLOOKUP(AI40,'【記載例】シフト記号表（勤務時間帯）'!$C$4:$K$35,9,FALSE)) ->  | AJ41: =IF(AJ40="","",VLOOKUP(AJ40,'【記載例】シフト記号表（勤務時間帯）'!$C$4:$K$35,9,FALSE)) ->  | AK41: =IF(AK40="","",VLOOKUP(AK40,'【記載例】シフト記号表（勤務時間帯）'!$C$4:$K$35,9,FALSE)) ->  | AL41: =IF(AL40="","",VLOOKUP(AL40,'【記載例】シフト記号表（勤務時間帯）'!$C$4:$K$35,9,FALSE)) ->  | AM41: =IF(AM40="","",VLOOKUP(AM40,'【記載例】シフト記号表（勤務時間帯）'!$C$4:$K$35,9,FALSE)) ->  | AN41: =IF(AN40="","",VLOOKUP(AN40,'【記載例】シフト記号表（勤務時間帯）'!$C$4:$K$35,9,FALSE)) ->  | AO41: =IF(AO40="","",VLOOKUP(AO40,'【記載例】シフト記号表（勤務時間帯）'!$C$4:$K$35,9,FALSE)) ->  | AP41: =IF(AP40="","",VLOOKUP(AP40,'【記載例】シフト記号表（勤務時間帯）'!$C$4:$K$35,9,FALSE)) ->  | AQ41: =IF(AQ40="","",VLOOKUP(AQ40,'【記載例】シフト記号表（勤務時間帯）'!$C$4:$K$35,9,FALSE)) ->  | AR41: =IF(AR40="","",VLOOKUP(AR40,'【記載例】シフト記号表（勤務時間帯）'!$C$4:$K$35,9,FALSE)) ->  | AS41: =IF(AS40="","",VLOOKUP(AS40,'【記載例】シフト記号表（勤務時間帯）'!$C$4:$K$35,9,FALSE)) ->  | AT41: =IF(AT40="","",VLOOKUP(AT40,'【記載例】シフト記号表（勤務時間帯）'!$C$4:$K$35,9,FALSE)) ->  | AU41: =IF(AU40="","",VLOOKUP(AU40,'【記載例】シフト記号表（勤務時間帯）'!$C$4:$K$35,9,FALSE)) ->  | AV41: =IF(AV40="","",VLOOKUP(AV40,'【記載例】シフト記号表（勤務時間帯）'!$C$4:$K$35,9,FALSE)) ->  | AW41: =IF(AW40="","",VLOOKUP(AW40,'【記載例】シフト記号表（勤務時間帯）'!$C$4:$K$35,9,FALSE)) -> 
B42: =B40+1 -> 14 | P42: シフト記号 | AX42: =IF($BC$3="計画",SUM(S43:AT43),IF($BC$3="実績",SUM(S43:AW43),"")) -> 0 | AZ42: =IF($BC$3="計画",AX42/4,IF($BC$3="実績",AX42/($BA$7/7),"")) -> 0
P43: 勤務時間数 | S43: =IF(S42="","",VLOOKUP(S42,'【記載例】シフト記号表（勤務時間帯）'!$C$4:$K$35,9,FALSE)) ->  | T43: =IF(T42="","",VLOOKUP(T42,'【記載例】シフト記号表（勤務時間帯）'!$C$4:$K$35,9,FALSE)) ->  | U43: =IF(U42="","",VLOOKUP(U42,'【記載例】シフト記号表（勤務時間帯）'!$C$4:$K$35,9,FALSE)) ->  | V43: =IF(V42="","",VLOOKUP(V42,'【記載例】シフト記号表（勤務時間帯）'!$C$4:$K$35,9,FALSE)) ->  | W43: =IF(W42="","",VLOOKUP(W42,'【記載例】シフト記号表（勤務時間帯）'!$C$4:$K$35,9,FALSE)) ->  | X43: =IF(X42="","",VLOOKUP(X42,'【記載例】シフト記号表（勤務時間帯）'!$C$4:$K$35,9,FALSE)) ->  | Y43: =IF(Y42="","",VLOOKUP(Y42,'【記載例】シフト記号表（勤務時間帯）'!$C$4:$K$35,9,FALSE)) ->  | Z43: =IF(Z42="","",VLOOKUP(Z42,'【記載例】シフト記号表（勤務時間帯）'!$C$4:$K$35,9,FALSE)) ->  | AA43: =IF(AA42="","",VLOOKUP(AA42,'【記載例】シフト記号表（勤務時間帯）'!$C$4:$K$35,9,FALSE)) ->  | AB43: =IF(AB42="","",VLOOKUP(AB42,'【記載例】シフト記号表（勤務時間帯）'!$C$4:$K$35,9,FALSE)) ->  | AC43: =IF(AC42="","",VLOOKUP(AC42,'【記載例】シフト記号表（勤務時間帯）'!$C$4:$K$35,9,FALSE)) ->  | AD43: =IF(AD42="","",VLOOKUP(AD42,'【記載例】シフト記号表（勤務時間帯）'!$C$4:$K$35,9,FALSE)) ->  | AE43: =IF(AE42="","",VLOOKUP(AE42,'【記載例】シフト記号表（勤務時間帯）'!$C$4:$K$35,9,FALSE)) ->  | AF43: =IF(AF42="","",VLOOKUP(AF42,'【記載例】シフト記号表（勤務時間帯）'!$C$4:$K$35,9,FALSE)) ->  | AG43: =IF(AG42="","",VLOOKUP(AG42,'【記載例】シフト記号表（勤務時間帯）'!$C$4:$K$35,9,FALSE)) ->  | AH43: =IF(AH42="","",VLOOKUP(AH42,'【記載例】シフト記号表（勤務時間帯）'!$C$4:$K$35,9,FALSE)) ->  | AI43: =IF(AI42="","",VLOOKUP(AI42,'【記載例】シフト記号表（勤務時間帯）'!$C$4:$K$35,9,FALSE)) ->  | AJ43: =IF(AJ42="","",VLOOKUP(AJ42,'【記載例】シフト記号表（勤務時間帯）'!$C$4:$K$35,9,FALSE)) ->  | AK43: =IF(AK42="","",VLOOKUP(AK42,'【記載例】シフト記号表（勤務時間帯）'!$C$4:$K$35,9,FALSE)) ->  | AL43: =IF(AL42="","",VLOOKUP(AL42,'【記載例】シフト記号表（勤務時間帯）'!$C$4:$K$35,9,FALSE)) ->  | AM43: =IF(AM42="","",VLOOKUP(AM42,'【記載例】シフト記号表（勤務時間帯）'!$C$4:$K$35,9,FALSE)) ->  | AN43: =IF(AN42="","",VLOOKUP(AN42,'【記載例】シフト記号表（勤務時間帯）'!$C$4:$K$35,9,FALSE)) ->  | AO43: =IF(AO42="","",VLOOKUP(AO42,'【記載例】シフト記号表（勤務時間帯）'!$C$4:$K$35,9,FALSE)) ->  | AP43: =IF(AP42="","",VLOOKUP(AP42,'【記載例】シフト記号表（勤務時間帯）'!$C$4:$K$35,9,FALSE)) ->  | AQ43: =IF(AQ42="","",VLOOKUP(AQ42,'【記載例】シフト記号表（勤務時間帯）'!$C$4:$K$35,9,FALSE)) ->  | AR43: =IF(AR42="","",VLOOKUP(AR42,'【記載例】シフト記号表（勤務時間帯）'!$C$4:$K$35,9,FALSE)) ->  | AS43: =IF(AS42="","",VLOOKUP(AS42,'【記載例】シフト記号表（勤務時間帯）'!$C$4:$K$35,9,FALSE)) ->  | AT43: =IF(AT42="","",VLOOKUP(AT42,'【記載例】シフト記号表（勤務時間帯）'!$C$4:$K$35,9,FALSE)) ->  | AU43: =IF(AU42="","",VLOOKUP(AU42,'【記載例】シフト記号表（勤務時間帯）'!$C$4:$K$35,9,FALSE)) ->  | AV43: =IF(AV42="","",VLOOKUP(AV42,'【記載例】シフト記号表（勤務時間帯）'!$C$4:$K$35,9,FALSE)) ->  | AW43: =IF(AW42="","",VLOOKUP(AW42,'【記載例】シフト記号表（勤務時間帯）'!$C$4:$K$35,9,FALSE)) -> 
B44: =B42+1 -> 15 | P44: シフト記号 | AX44: =IF($BC$3="計画",SUM(S45:AT45),IF($BC$3="実績",SUM(S45:AW45),"")) -> 0 | AZ44: =IF($BC$3="計画",AX44/4,IF($BC$3="実績",AX44/($BA$7/7),"")) -> 0
P45: 勤務時間数 | S45: =IF(S44="","",VLOOKUP(S44,'【記載例】シフト記号表（勤務時間帯）'!$C$4:$K$35,9,FALSE)) ->  | T45: =IF(T44="","",VLOOKUP(T44,'【記載例】シフト記号表（勤務時間帯）'!$C$4:$K$35,9,FALSE)) ->  | U45: =IF(U44="","",VLOOKUP(U44,'【記載例】シフト記号表（勤務時間帯）'!$C$4:$K$35,9,FALSE)) ->  | V45: =IF(V44="","",VLOOKUP(V44,'【記載例】シフト記号表（勤務時間帯）'!$C$4:$K$35,9,FALSE)) ->  | W45: =IF(W44="","",VLOOKUP(W44,'【記載例】シフト記号表（勤務時間帯）'!$C$4:$K$35,9,FALSE)) ->  | X45: =IF(X44="","",VLOOKUP(X44,'【記載例】シフト記号表（勤務時間帯）'!$C$4:$K$35,9,FALSE)) ->  | Y45: =IF(Y44="","",VLOOKUP(Y44,'【記載例】シフト記号表（勤務時間帯）'!$C$4:$K$35,9,FALSE)) ->  | Z45: =IF(Z44="","",VLOOKUP(Z44,'【記載例】シフト記号表（勤務時間帯）'!$C$4:$K$35,9,FALSE)) ->  | AA45: =IF(AA44="","",VLOOKUP(AA44,'【記載例】シフト記号表（勤務時間帯）'!$C$4:$K$35,9,FALSE)) ->  | AB45: =IF(AB44="","",VLOOKUP(AB44,'【記載例】シフト記号表（勤務時間帯）'!$C$4:$K$35,9,FALSE)) ->  | AC45: =IF(AC44="","",VLOOKUP(AC44,'【記載例】シフト記号表（勤務時間帯）'!$C$4:$K$35,9,FALSE)) ->  | AD45: =IF(AD44="","",VLOOKUP(AD44,'【記載例】シフト記号表（勤務時間帯）'!$C$4:$K$35,9,FALSE)) ->  | AE45: =IF(AE44="","",VLOOKUP(AE44,'【記載例】シフト記号表（勤務時間帯）'!$C$4:$K$35,9,FALSE)) ->  | AF45: =IF(AF44="","",VLOOKUP(AF44,'【記載例】シフト記号表（勤務時間帯）'!$C$4:$K$35,9,FALSE)) ->  | AG45: =IF(AG44="","",VLOOKUP(AG44,'【記載例】シフト記号表（勤務時間帯）'!$C$4:$K$35,9,FALSE)) ->  | AH45: =IF(AH44="","",VLOOKUP(AH44,'【記載例】シフト記号表（勤務時間帯）'!$C$4:$K$35,9,FALSE)) ->  | AI45: =IF(AI44="","",VLOOKUP(AI44,'【記載例】シフト記号表（勤務時間帯）'!$C$4:$K$35,9,FALSE)) ->  | AJ45: =IF(AJ44="","",VLOOKUP(AJ44,'【記載例】シフト記号表（勤務時間帯）'!$C$4:$K$35,9,FALSE)) ->  | AK45: =IF(AK44="","",VLOOKUP(AK44,'【記載例】シフト記号表（勤務時間帯）'!$C$4:$K$35,9,FALSE)) ->  | AL45: =IF(AL44="","",VLOOKUP(AL44,'【記載例】シフト記号表（勤務時間帯）'!$C$4:$K$35,9,FALSE)) ->  | AM45: =IF(AM44="","",VLOOKUP(AM44,'【記載例】シフト記号表（勤務時間帯）'!$C$4:$K$35,9,FALSE)) ->  | AN45: =IF(AN44="","",VLOOKUP(AN44,'【記載例】シフト記号表（勤務時間帯）'!$C$4:$K$35,9,FALSE)) ->  | AO45: =IF(AO44="","",VLOOKUP(AO44,'【記載例】シフト記号表（勤務時間帯）'!$C$4:$K$35,9,FALSE)) ->  | AP45: =IF(AP44="","",VLOOKUP(AP44,'【記載例】シフト記号表（勤務時間帯）'!$C$4:$K$35,9,FALSE)) ->  | AQ45: =IF(AQ44="","",VLOOKUP(AQ44,'【記載例】シフト記号表（勤務時間帯）'!$C$4:$K$35,9,FALSE)) ->  | AR45: =IF(AR44="","",VLOOKUP(AR44,'【記載例】シフト記号表（勤務時間帯）'!$C$4:$K$35,9,FALSE)) ->  | AS45: =IF(AS44="","",VLOOKUP(AS44,'【記載例】シフト記号表（勤務時間帯）'!$C$4:$K$35,9,FALSE)) ->  | AT45: =IF(AT44="","",VLOOKUP(AT44,'【記載例】シフト記号表（勤務時間帯）'!$C$4:$K$35,9,FALSE)) ->  | AU45: =IF(AU44="","",VLOOKUP(AU44,'【記載例】シフト記号表（勤務時間帯）'!$C$4:$K$35,9,FALSE)) ->  | AV45: =IF(AV44="","",VLOOKUP(AV44,'【記載例】シフト記号表（勤務時間帯）'!$C$4:$K$35,9,FALSE)) ->  | AW45: =IF(AW44="","",VLOOKUP(AW44,'【記載例】シフト記号表（勤務時間帯）'!$C$4:$K$35,9,FALSE)) -> 
B46: =B44+1 -> 16 | P46: シフト記号 | AX46: =IF($BC$3="計画",SUM(S47:AT47),IF($BC$3="実績",SUM(S47:AW47),"")) -> 0 | AZ46: =IF($BC$3="計画",AX46/4,IF($BC$3="実績",AX46/($BA$7/7),"")) -> 0
P47: 勤務時間数 | S47: =IF(S46="","",VLOOKUP(S46,'【記載例】シフト記号表（勤務時間帯）'!$C$4:$K$35,9,FALSE)) ->  | T47: =IF(T46="","",VLOOKUP(T46,'【記載例】シフト記号表（勤務時間帯）'!$C$4:$K$35,9,FALSE)) ->  | U47: =IF(U46="","",VLOOKUP(U46,'【記載例】シフト記号表（勤務時間帯）'!$C$4:$K$35,9,FALSE)) ->  | V47: =IF(V46="","",VLOOKUP(V46,'【記載例】シフト記号表（勤務時間帯）'!$C$4:$K$35,9,FALSE)) ->  | W47: =IF(W46="","",VLOOKUP(W46,'【記載例】シフト記号表（勤務時間帯）'!$C$4:$K$35,9,FALSE)) ->  | X47: =IF(X46="","",VLOOKUP(X46,'【記載例】シフト記号表（勤務時間帯）'!$C$4:$K$35,9,FALSE)) ->  | Y47: =IF(Y46="","",VLOOKUP(Y46,'【記載例】シフト記号表（勤務時間帯）'!$C$4:$K$35,9,FALSE)) ->  | Z47: =IF(Z46="","",VLOOKUP(Z46,'【記載例】シフト記号表（勤務時間帯）'!$C$4:$K$35,9,FALSE)) ->  | AA47: =IF(AA46="","",VLOOKUP(AA46,'【記載例】シフト記号表（勤務時間帯）'!$C$4:$K$35,9,FALSE)) ->  | AB47: =IF(AB46="","",VLOOKUP(AB46,'【記載例】シフト記号表（勤務時間帯）'!$C$4:$K$35,9,FALSE)) ->  | AC47: =IF(AC46="","",VLOOKUP(AC46,'【記載例】シフト記号表（勤務時間帯）'!$C$4:$K$35,9,FALSE)) ->  | AD47: =IF(AD46="","",VLOOKUP(AD46,'【記載例】シフト記号表（勤務時間帯）'!$C$4:$K$35,9,FALSE)) ->  | AE47: =IF(AE46="","",VLOOKUP(AE46,'【記載例】シフト記号表（勤務時間帯）'!$C$4:$K$35,9,FALSE)) ->  | AF47: =IF(AF46="","",VLOOKUP(AF46,'【記載例】シフト記号表（勤務時間帯）'!$C$4:$K$35,9,FALSE)) ->  | AG47: =IF(AG46="","",VLOOKUP(AG46,'【記載例】シフト記号表（勤務時間帯）'!$C$4:$K$35,9,FALSE)) ->  | AH47: =IF(AH46="","",VLOOKUP(AH46,'【記載例】シフト記号表（勤務時間帯）'!$C$4:$K$35,9,FALSE)) ->  | AI47: =IF(AI46="","",VLOOKUP(AI46,'【記載例】シフト記号表（勤務時間帯）'!$C$4:$K$35,9,FALSE)) ->  | AJ47: =IF(AJ46="","",VLOOKUP(AJ46,'【記載例】シフト記号表（勤務時間帯）'!$C$4:$K$35,9,FALSE)) ->  | AK47: =IF(AK46="","",VLOOKUP(AK46,'【記載例】シフト記号表（勤務時間帯）'!$C$4:$K$35,9,FALSE)) ->  | AL47: =IF(AL46="","",VLOOKUP(AL46,'【記載例】シフト記号表（勤務時間帯）'!$C$4:$K$35,9,FALSE)) ->  | AM47: =IF(AM46="","",VLOOKUP(AM46,'【記載例】シフト記号表（勤務時間帯）'!$C$4:$K$35,9,FALSE)) ->  | AN47: =IF(AN46="","",VLOOKUP(AN46,'【記載例】シフト記号表（勤務時間帯）'!$C$4:$K$35,9,FALSE)) ->  | AO47: =IF(AO46="","",VLOOKUP(AO46,'【記載例】シフト記号表（勤務時間帯）'!$C$4:$K$35,9,FALSE)) ->  | AP47: =IF(AP46="","",VLOOKUP(AP46,'【記載例】シフト記号表（勤務時間帯）'!$C$4:$K$35,9,FALSE)) ->  | AQ47: =IF(AQ46="","",VLOOKUP(AQ46,'【記載例】シフト記号表（勤務時間帯）'!$C$4:$K$35,9,FALSE)) ->  | AR47: =IF(AR46="","",VLOOKUP(AR46,'【記載例】シフト記号表（勤務時間帯）'!$C$4:$K$35,9,FALSE)) ->  | AS47: =IF(AS46="","",VLOOKUP(AS46,'【記載例】シフト記号表（勤務時間帯）'!$C$4:$K$35,9,FALSE)) ->  | AT47: =IF(AT46="","",VLOOKUP(AT46,'【記載例】シフト記号表（勤務時間帯）'!$C$4:$K$35,9,FALSE)) ->  | AU47: =IF(AU46="","",VLOOKUP(AU46,'【記載例】シフト記号表（勤務時間帯）'!$C$4:$K$35,9,FALSE)) ->  | AV47: =IF(AV46="","",VLOOKUP(AV46,'【記載例】シフト記号表（勤務時間帯）'!$C$4:$K$35,9,FALSE)) ->  | AW47: =IF(AW46="","",VLOOKUP(AW46,'【記載例】シフト記号表（勤務時間帯）'!$C$4:$K$35,9,FALSE)) -> 
B48: =B46+1 -> 17 | P48: シフト記号 | AX48: =IF($BC$3="計画",SUM(S49:AT49),IF($BC$3="実績",SUM(S49:AW49),"")) -> 0 | AZ48: =IF($BC$3="計画",AX48/4,IF($BC$3="実績",AX48/($BA$7/7),"")) -> 0
P49: 勤務時間数 | S49: =IF(S48="","",VLOOKUP(S48,'【記載例】シフト記号表（勤務時間帯）'!$C$4:$K$35,9,FALSE)) ->  | T49: =IF(T48="","",VLOOKUP(T48,'【記載例】シフト記号表（勤務時間帯）'!$C$4:$K$35,9,FALSE)) ->  | U49: =IF(U48="","",VLOOKUP(U48,'【記載例】シフト記号表（勤務時間帯）'!$C$4:$K$35,9,FALSE)) ->  | V49: =IF(V48="","",VLOOKUP(V48,'【記載例】シフト記号表（勤務時間帯）'!$C$4:$K$35,9,FALSE)) ->  | W49: =IF(W48="","",VLOOKUP(W48,'【記載例】シフト記号表（勤務時間帯）'!$C$4:$K$35,9,FALSE)) ->  | X49: =IF(X48="","",VLOOKUP(X48,'【記載例】シフト記号表（勤務時間帯）'!$C$4:$K$35,9,FALSE)) ->  | Y49: =IF(Y48="","",VLOOKUP(Y48,'【記載例】シフト記号表（勤務時間帯）'!$C$4:$K$35,9,FALSE)) ->  | Z49: =IF(Z48="","",VLOOKUP(Z48,'【記載例】シフト記号表（勤務時間帯）'!$C$4:$K$35,9,FALSE)) ->  | AA49: =IF(AA48="","",VLOOKUP(AA48,'【記載例】シフト記号表（勤務時間帯）'!$C$4:$K$35,9,FALSE)) ->  | AB49: =IF(AB48="","",VLOOKUP(AB48,'【記載例】シフト記号表（勤務時間帯）'!$C$4:$K$35,9,FALSE)) ->  | AC49: =IF(AC48="","",VLOOKUP(AC48,'【記載例】シフト記号表（勤務時間帯）'!$C$4:$K$35,9,FALSE)) ->  | AD49: =IF(AD48="","",VLOOKUP(AD48,'【記載例】シフト記号表（勤務時間帯）'!$C$4:$K$35,9,FALSE)) ->  | AE49: =IF(AE48="","",VLOOKUP(AE48,'【記載例】シフト記号表（勤務時間帯）'!$C$4:$K$35,9,FALSE)) ->  | AF49: =IF(AF48="","",VLOOKUP(AF48,'【記載例】シフト記号表（勤務時間帯）'!$C$4:$K$35,9,FALSE)) ->  | AG49: =IF(AG48="","",VLOOKUP(AG48,'【記載例】シフト記号表（勤務時間帯）'!$C$4:$K$35,9,FALSE)) ->  | AH49: =IF(AH48="","",VLOOKUP(AH48,'【記載例】シフト記号表（勤務時間帯）'!$C$4:$K$35,9,FALSE)) ->  | AI49: =IF(AI48="","",VLOOKUP(AI48,'【記載例】シフト記号表（勤務時間帯）'!$C$4:$K$35,9,FALSE)) ->  | AJ49: =IF(AJ48="","",VLOOKUP(AJ48,'【記載例】シフト記号表（勤務時間帯）'!$C$4:$K$35,9,FALSE)) ->  | AK49: =IF(AK48="","",VLOOKUP(AK48,'【記載例】シフト記号表（勤務時間帯）'!$C$4:$K$35,9,FALSE)) ->  | AL49: =IF(AL48="","",VLOOKUP(AL48,'【記載例】シフト記号表（勤務時間帯）'!$C$4:$K$35,9,FALSE)) ->  | AM49: =IF(AM48="","",VLOOKUP(AM48,'【記載例】シフト記号表（勤務時間帯）'!$C$4:$K$35,9,FALSE)) ->  | AN49: =IF(AN48="","",VLOOKUP(AN48,'【記載例】シフト記号表（勤務時間帯）'!$C$4:$K$35,9,FALSE)) ->  | AO49: =IF(AO48="","",VLOOKUP(AO48,'【記載例】シフト記号表（勤務時間帯）'!$C$4:$K$35,9,FALSE)) ->  | AP49: =IF(AP48="","",VLOOKUP(AP48,'【記載例】シフト記号表（勤務時間帯）'!$C$4:$K$35,9,FALSE)) ->  | AQ49: =IF(AQ48="","",VLOOKUP(AQ48,'【記載例】シフト記号表（勤務時間帯）'!$C$4:$K$35,9,FALSE)) ->  | AR49: =IF(AR48="","",VLOOKUP(AR48,'【記載例】シフト記号表（勤務時間帯）'!$C$4:$K$35,9,FALSE)) ->  | AS49: =IF(AS48="","",VLOOKUP(AS48,'【記載例】シフト記号表（勤務時間帯）'!$C$4:$K$35,9,FALSE)) ->  | AT49: =IF(AT48="","",VLOOKUP(AT48,'【記載例】シフト記号表（勤務時間帯）'!$C$4:$K$35,9,FALSE)) ->  | AU49: =IF(AU48="","",VLOOKUP(AU48,'【記載例】シフト記号表（勤務時間帯）'!$C$4:$K$35,9,FALSE)) ->  | AV49: =IF(AV48="","",VLOOKUP(AV48,'【記載例】シフト記号表（勤務時間帯）'!$C$4:$K$35,9,FALSE)) ->  | AW49: =IF(AW48="","",VLOOKUP(AW48,'【記載例】シフト記号表（勤務時間帯）'!$C$4:$K$35,9,FALSE)) -> 
B50: =B48+1 -> 18 | P50: シフト記号 | AX50: =IF($BC$3="計画",SUM(S51:AT51),IF($BC$3="実績",SUM(S51:AW51),"")) -> 0 | AZ50: =IF($BC$3="計画",AX50/4,IF($BC$3="実績",AX50/($BA$7/7),"")) -> 0
P51: 勤務時間数 | S51: =IF(S50="","",VLOOKUP(S50,'【記載例】シフト記号表（勤務時間帯）'!$C$4:$K$35,9,FALSE)) ->  | T51: =IF(T50="","",VLOOKUP(T50,'【記載例】シフト記号表（勤務時間帯）'!$C$4:$K$35,9,FALSE)) ->  | U51: =IF(U50="","",VLOOKUP(U50,'【記載例】シフト記号表（勤務時間帯）'!$C$4:$K$35,9,FALSE)) ->  | V51: =IF(V50="","",VLOOKUP(V50,'【記載例】シフト記号表（勤務時間帯）'!$C$4:$K$35,9,FALSE)) ->  | W51: =IF(W50="","",VLOOKUP(W50,'【記載例】シフト記号表（勤務時間帯）'!$C$4:$K$35,9,FALSE)) ->  | X51: =IF(X50="","",VLOOKUP(X50,'【記載例】シフト記号表（勤務時間帯）'!$C$4:$K$35,9,FALSE)) ->  | Y51: =IF(Y50="","",VLOOKUP(Y50,'【記載例】シフト記号表（勤務時間帯）'!$C$4:$K$35,9,FALSE)) ->  | Z51: =IF(Z50="","",VLOOKUP(Z50,'【記載例】シフト記号表（勤務時間帯）'!$C$4:$K$35,9,FALSE)) ->  | AA51: =IF(AA50="","",VLOOKUP(AA50,'【記載例】シフト記号表（勤務時間帯）'!$C$4:$K$35,9,FALSE)) ->  | AB51: =IF(AB50="","",VLOOKUP(AB50,'【記載例】シフト記号表（勤務時間帯）'!$C$4:$K$35,9,FALSE)) ->  | AC51: =IF(AC50="","",VLOOKUP(AC50,'【記載例】シフト記号表（勤務時間帯）'!$C$4:$K$35,9,FALSE)) ->  | AD51: =IF(AD50="","",VLOOKUP(AD50,'【記載例】シフト記号表（勤務時間帯）'!$C$4:$K$35,9,FALSE)) ->  | AE51: =IF(AE50="","",VLOOKUP(AE50,'【記載例】シフト記号表（勤務時間帯）'!$C$4:$K$35,9,FALSE)) ->  | AF51: =IF(AF50="","",VLOOKUP(AF50,'【記載例】シフト記号表（勤務時間帯）'!$C$4:$K$35,9,FALSE)) ->  | AG51: =IF(AG50="","",VLOOKUP(AG50,'【記載例】シフト記号表（勤務時間帯）'!$C$4:$K$35,9,FALSE)) ->  | AH51: =IF(AH50="","",VLOOKUP(AH50,'【記載例】シフト記号表（勤務時間帯）'!$C$4:$K$35,9,FALSE)) ->  | AI51: =IF(AI50="","",VLOOKUP(AI50,'【記載例】シフト記号表（勤務時間帯）'!$C$4:$K$35,9,FALSE)) ->  | AJ51: =IF(AJ50="","",VLOOKUP(AJ50,'【記載例】シフト記号表（勤務時間帯）'!$C$4:$K$35,9,FALSE)) ->  | AK51: =IF(AK50="","",VLOOKUP(AK50,'【記載例】シフト記号表（勤務時間帯）'!$C$4:$K$35,9,FALSE)) ->  | AL51: =IF(AL50="","",VLOOKUP(AL50,'【記載例】シフト記号表（勤務時間帯）'!$C$4:$K$35,9,FALSE)) ->  | AM51: =IF(AM50="","",VLOOKUP(AM50,'【記載例】シフト記号表（勤務時間帯）'!$C$4:$K$35,9,FALSE)) ->  | AN51: =IF(AN50="","",VLOOKUP(AN50,'【記載例】シフト記号表（勤務時間帯）'!$C$4:$K$35,9,FALSE)) ->  | AO51: =IF(AO50="","",VLOOKUP(AO50,'【記載例】シフト記号表（勤務時間帯）'!$C$4:$K$35,9,FALSE)) ->  | AP51: =IF(AP50="","",VLOOKUP(AP50,'【記載例】シフト記号表（勤務時間帯）'!$C$4:$K$35,9,FALSE)) ->  | AQ51: =IF(AQ50="","",VLOOKUP(AQ50,'【記載例】シフト記号表（勤務時間帯）'!$C$4:$K$35,9,FALSE)) ->  | AR51: =IF(AR50="","",VLOOKUP(AR50,'【記載例】シフト記号表（勤務時間帯）'!$C$4:$K$35,9,FALSE)) ->  | AS51: =IF(AS50="","",VLOOKUP(AS50,'【記載例】シフト記号表（勤務時間帯）'!$C$4:$K$35,9,FALSE)) ->  | AT51: =IF(AT50="","",VLOOKUP(AT50,'【記載例】シフト記号表（勤務時間帯）'!$C$4:$K$35,9,FALSE)) ->  | AU51: =IF(AU50="","",VLOOKUP(AU50,'【記載例】シフト記号表（勤務時間帯）'!$C$4:$K$35,9,FALSE)) ->  | AV51: =IF(AV50="","",VLOOKUP(AV50,'【記載例】シフト記号表（勤務時間帯）'!$C$4:$K$35,9,FALSE)) ->  | AW51: =IF(AW50="","",VLOOKUP(AW50,'【記載例】シフト記号表（勤務時間帯）'!$C$4:$K$35,9,FALSE)) -> 
AX52: =SUM(AX16:AY51) -> 448 | AZ52: =SUM(AZ16:BA51) -> 112
C54: (12)人員基準の確認（福祉用具専門相談員）
D56: 勤務形態 | F56: 勤務時間数合計 | K56: 常勤換算の対象時間数 | P56: 常勤換算方法対象外の
F57: 当月合計 | H57: 週平均 | K57: 当月合計 | M57: 週平均 | P57: 常勤の従業者の人数
D58: A | F58: =SUMIFS($AX$16:$AY$51,$C$16:$D$51,"福祉用具専門相談員",$E$16:$F$51,"A") -> 160 | H58: =SUMIFS($AZ$16:$BA$51,$C$16:$D$51,"福祉用具専門相談員",$E$16:$F$51,"A") -> 40 | K58: 0 | M58: 0 | P58: 1
D59: B | F59: =SUMIFS($AX$16:$AY$51,$C$16:$D$51,"福祉用具専門相談員",$E$16:$F$51,"B") -> 80 | H59: =SUMIFS($AZ$16:$BA$51,$C$16:$D$51,"福祉用具専門相談員",$E$16:$F$51,"B") -> 20 | K59: 80 | M59: 20 | P59: 0
D60: C | F60: =SUMIFS($AX$16:$AY$51,$C$16:$D$51,"福祉用具専門相談員",$E$16:$F$51,"C") -> 128 | H60: =SUMIFS($AZ$16:$BA$51,$C$16:$D$51,"福祉用具専門相談員",$E$16:$F$51,"C") -> 32 | K60: 128 | M60: 32 | P60: -
D61: D | F61: =SUMIFS($AX$16:$AY$51,$C$16:$D$51,"福祉用具専門相談員",$E$16:$F$51,"D") -> 0 | H61: =SUMIFS($AZ$16:$BA$51,$C$16:$D$51,"福祉用具専門相談員",$E$16:$F$51,"D") -> 0 | K61: 0 | M61: 0 | P61: -
D62: 合計 | F62: =SUM(F58:G61) -> 368 | H62: =SUM(H58:I61) -> 92 | K62: =SUM(K58:L61) -> 208 | M62: =SUM(M58:N61) -> 52 | P62: =SUM(P58:Q59) -> 1
D64: ■ 常勤換算方法による人数 | J64: 基準： | K64: 週
D65: 常勤換算の | I65: 常勤の従業者が
D66: =IF(K64="週","対象時間数（週平均）","対象時間数（当月合計）") -> 対象時間数（週平均） | I66: =IF(K64="週","週に勤務すべき時間数","当月に勤務すべき時間数") -> 週に勤務すべき時間数 | N66: 常勤換算後の人数 | U66: （勤務形態の記号）
D67: =IF(K64="週",M62,K62) -> 52 | H67: ÷ | I67: =IF(K64="週",$AW$5,$BA$5) -> 40 | M67: ＝ | N67: =ROUNDDOWN(D67/I67,1) -> 1.3 | U67: 記号 | W67: 区分
N68: （小数点第2位以下切り捨て） | U68: A | W68: 常勤で専従
D69: ■ 福祉用具専門相談員の常勤換算方法による人数 | U69: B | W69: 常勤で兼務
D70: 常勤換算方法対象外の | U70: C | W70: 非常勤で専従
D71: 常勤の従業者の人数 | I71: 常勤換算方法による人数 | N71: 合計 | U71: D | W71: 非常勤で兼務
D72: =P62 -> 1 | H72: ＋ | I72: =N67 -> 1.3 | M72: ＝ | N72: =ROUNDDOWN(D72+I72,1) -> 2.3

Sheet 【記載例】シフト記号表（勤務時間帯）
B1: ≪要 提出≫
B2: ■シフト記号表（勤務時間帯） | E2: ※24時間表記 | I2: 休憩時間1時間は「1:00」、休憩時間45分は「00:45」と入力してください。
B3: （記号の意味） | C3: 記号 | E3: 始業時間 | G3: 終業時間 | I3: うち、休憩時間 | K3: 勤務時間
B4: 休：休暇 | C4: 休 | D4: ： | E4: - | F4: ～ | G4: - | H4: ( | I4: - | J4: ) | K4: -
B5: 出：出張 | C5: 出 | D5: ： | E5: - | F5: ～ | G5: - | H5: ( | I5: - | J5: ) | K5: -
B6: 研：研修 | C6: 研 | D6: ： | E6: - | F6: ～ | G6: - | H6: ( | I6: - | J6: ) | K6: -
C7: a | D7: ： | E7: 08:30:00 | F7: ～ | G7: 17:30:00 | H7: ( | I7: 01:00:00 | J7: ) | K7: =(G7-E7-I7)*24 -> 8
C8: b | D8: ： | E8: 07:00:00 | F8: ～ | G8: 16:00:00 | H8: ( | I8: 01:00:00 | J8: ) | K8: =(G8-E8-I8)*24 -> 8
C9: c | D9: ： | E9: 08:00:00 | F9: ～ | G9: 17:00:00 | H9: ( | I9: 01:00:00 | J9: ) | K9: =(G9-E9-I9)*24 -> 8
C10: d | D10: ： | E10: 08:00:00 | F10: ～ | G10: 12:00:00 | H10: ( | I10: 00:00:00 | J10: ) | K10: 4
C11: e | D11: ： | E11: 13:00:00 | F11: ～ | G11: 17:00:00 | H11: ( | I11: 00:00:00 | J11: ) | K11: 4
C12: f | D12: ： | E12: 10:00:00 | F12: ～ | G12: 14:00:00 | H12: ( | I12: 00:00:00 | J12: ) | K12: 4
C13: g | D13: ： | F13: ～ | H13: ( | J13: ) | K13: 0
C14: h | D14: ： | F14: ～ | H14: ( | J14: ) | K14: 0
C15: i | D15: ： | F15: ～ | H15: ( | J15: ) | K15: 0
C16: j | D16: ： | F16: ～ | H16: ( | J16: ) | K16: 0
C17: k | D17: ： | F17: ～ | H17: ( | J17: ) | K17: 0
C18: l | D18: ： | F18: ～ | H18: ( | J18: ) | K18: 0
C19: m | D19: ： | F19: ～ | H19: ( | J19: ) | K19: 0
C20: n | D20: ： | F20: ～ | H20: ( | J20: ) | K20: 0
C21: o | D21: ： | F21: ～ | H21: ( | J21: ) | K21: 1
C22: p | D22: ： | F22: ～ | H22: ( | J22: ) | K22: 2
C23: q | D23: ： | F23: ～ | H23: ( | J23: ) | K23: 3
C24: r | D24: ： | F24: ～ | H24: ( | J24: ) | K24: 4
C25: s | D25: ： | F25: ～ | H25: ( | J25: ) | K25: 5
C26: t | D26: ： | F26: ～ | H26: ( | J26: ) | K26: 6
C27: u | D27: ： | F27: ～ | H27: ( | J27: ) | K27: 7
C28: v | D28: ： | F28: ～ | H28: ( | J28: ) | K28: 8
C29: w | D29: ： | F29: ～ | H29: ( | J29: )
C30: x | D30: ： | F30: ～ | H30: ( | J30: )
C31: y | D31: ： | F31: ～ | H31: ( | J31: )
C32: z | D32: ： | F32: ～ | H32: ( | J32: ) | K32: =(G32-E32-I32)*24 -> 0
C33: 早退(1) | D33: ： | F33: ～ | H33: ( | J33: ) | K33: =(G33-E33-I33)*24 -> 0 | M33: 実績で早退者がいた場合に使用
C34: 早退(2) | D34: ： | F34: ～ | H34: ( | J34: ) | K34: =(G34-E34-I34)*24 -> 0 | M34: 実績で早退者がいた場合に使用
C35: az | D35: ： | F35: ～ | H35: ( | J35: ) | K35: 0

Sheet 福祉用具
C1: （参考様式） | G1: 従業者の勤務の体制及び勤務形態一覧表 | AN1: サービス種別 | AO1: ( | AP1: 福祉用具貸与 | BE1: ）
W2: 令和 | X2: 2 | Z2: ( | AA2: =IF(X2=0,"",YEAR(DATE(2018+X2,1,1))) -> 2020 | AC2: ) | AD2: 年 | AE2: 4 | AG2: 月 | AN2: 事業所名 | AO2: ( | BE2: ）
BB3: (1) | BC3: 計画
B4: (2)事業所の営業日
B5: 月 | C5: 火 | D5: 水 | E5: 木 | F5: 金 | G5: 土 | H5: 日 | I5: 祝 | K5: 営業時間 | AG5: (3)事業所における常勤の従業者が勤務すべき時間数 | AS5: 8 | AU5: 時間/日 | AW5: 40 | AY5: 時間/週 | BA5: 160 | BC5: 時間/月
B6: ○ | C6: ○ | D6: ○ | E6: ○ | F6: ○ | G6: － | H6: － | I6: ○ | J6: ⇒ | N6: ～ | R6: （計 | S6: =(O6-K6)*24 -> 0 | U6: 時間）
B7: － | C7: － | D7: － | E7: － | F7: － | G7: ○ | H7: ○ | I7: － | J7: ⇒ | N7: ～ | R7: （計 | S7: =(O7-K7)*24 -> 0 | U7: 時間） | AX7: 当月の日数 | BA7: =DAY(EOMONTH(DATE(AA2,AE2,1),0)) -> 30 | BC7: 日
B8: 備考（休業日等）
B11: No | C11: (4) 職種 | E11: (5) 勤務 形態 | G11: (6) 資格 | L11: (7) 氏 名 | S11: (8) 勤 務 時 間 数 | AX11: =IF(BC3="計画","(9)1～4週目の勤務時間数合計","(9)1か月の勤務時間数合計") -> (9)1～4週目の勤務時間数合計 | AZ11: (10) 週平均 勤務時間数 | BB11: (11) 兼務状況 （兼務先／兼務する職務の内容 ／兼務先の勤務時間数）
S12: 1週目 | Z12: 2週目 | AG12: 3週目 | AN12: 4週目 | AU12: 5週目
S13: =DAY(DATE($AA$2,$AE$2,1)) -> 1 | T13: =DAY(DATE($AA$2,$AE$2,2)) -> 2 | U13: =DAY(DATE($AA$2,$AE$2,3)) -> 3 | V13: =DAY(DATE($AA$2,$AE$2,4)) -> 4 | W13: =DAY(DATE($AA$2,$AE$2,5)) -> 5 | X13: =DAY(DATE($AA$2,$AE$2,6)) -> 6 | Y13: =DAY(DATE($AA$2,$AE$2,7)) -> 7 | Z13: =DAY(DATE($AA$2,$AE$2,8)) -> 8 | AA13: =DAY(DATE($AA$2,$AE$2,9)) -> 9 | AB13: =DAY(DATE($AA$2,$AE$2,10)) -> 10 | AC13: =DAY(DATE($AA$2,$AE$2,11)) -> 11 | AD13: =DAY(DATE($AA$2,$AE$2,12)) -> 12 | AE13: =DAY(DATE($AA$2,$AE$2,13)) -> 13 | AF13: =DAY(DATE($AA$2,$AE$2,14)) -> 14 | AG13: =DAY(DATE($AA$2,$AE$2,15)) -> 15 | AH13: =DAY(DATE($AA$2,$AE$2,16)) -> 16 | AI13: =DAY(DATE($AA$2,$AE$2,17)) -> 17 | AJ13: =DAY(DATE($AA$2,$AE$2,18)) -> 18 | AK13: =DAY(DATE($AA$2,$AE$2,19)) -> 19 | AL13: =DAY(DATE($AA$2,$AE$2,20)) -> 20 | AM13: =DAY(DATE($AA$2,$AE$2,21)) -> 21 | AN13: =DAY(DATE($AA$2,$AE$2,22)) -> 22 | AO13: =DAY(DATE($AA$2,$AE$2,23)) -> 23 | AP13: =DAY(DATE($AA$2,$AE$2,24)) -> 24 | AQ13: =DAY(DATE($AA$2,$AE$2,25)) -> 25 | AR13: =DAY(DATE($AA$2,$AE$2,26)) -> 26 | AS13: =DAY(DATE($AA$2,$AE$2,27)) -> 27 | AT13: =DAY(DATE($AA$2,$AE$2,28)) -> 28 | AU13: =IF(BC3="実績",IF(DAY(DATE($AA$2,$AE$2,29))=29,29,""),"") ->  | AV13: =IF(BC3="実績",IF(DAY(DATE($AA$2,$AE$2,30))=30,30,""),"") ->  | AW13: =IF(BC3="実績",IF(DAY(DATE($AA$2,$AE$2,31))=31,31,""),"") -> 
S14: =WEEKDAY(DATE($AA$2,$AE$2,1)) -> 4 | T14: =WEEKDAY(DATE($AA$2,$AE$2,2)) -> 5 | U14: =WEEKDAY(DATE($AA$2,$AE$2,3)) -> 6 | V14: =WEEKDAY(DATE($AA$2,$AE$2,4)) -> 7 | W14: =WEEKDAY(DATE($AA$2,$AE$2,5)) -> 1 | X14: =WEEKDAY(DATE($AA$2,$AE$2,6)) -> 2 | Y14: =WEEKDAY(DATE($AA$2,$AE$2,7)) -> 3 | Z14: =WEEKDAY(DATE($AA$2,$AE$2,8)) -> 4 | AA14: =WEEKDAY(DATE($AA$2,$AE$2,9)) -> 5 | AB14: =WEEKDAY(DATE($AA$2,$AE$2,10)) -> 6 | AC14: =WEEKDAY(DATE($AA$2,$AE$2,11)) -> 7 | AD14: =WEEKDAY(DATE($AA$2,$AE$2,12)) -> 1 | AE14: =WEEKDAY(DATE($AA$2,$AE$2,13)) -> 2 | AF14: =WEEKDAY(DATE($AA$2,$AE$2,14)) -> 3 | AG14: =WEEKDAY(DATE($AA$2,$AE$2,15)) -> 4 | AH14: =WEEKDAY(DATE($AA$2,$AE$2,16)) -> 5 | AI14: =WEEKDAY(DATE($AA$2,$AE$2,17)) -> 6 | AJ14: =WEEKDAY(DATE($AA$2,$AE$2,18)) -> 7 | AK14: =WEEKDAY(DATE($AA$2,$AE$2,19)) -> 1 | AL14: =WEEKDAY(DATE($AA$2,$AE$2,20)) -> 2 | AM14: =WEEKDAY(DATE($AA$2,$AE$2,21)) -> 3 | AN14: =WEEKDAY(DATE($AA$2,$AE$2,22)) -> 4 | AO14: =WEEKDAY(DATE($AA$2,$AE$2,23)) -> 5 | AP14: =WEEKDAY(DATE($AA$2,$AE$2,24)) -> 6 | AQ14: =WEEKDAY(DATE($AA$2,$AE$2,25)) -> 7 | AR14: =WEEKDAY(DATE($AA$2,$AE$2,26)) -> 1 | AS14: =WEEKDAY(DATE($AA$2,$AE$2,27)) -> 2 | AT14: =WEEKDAY(DATE($AA$2,$AE$2,28)) -> 3 | AU14: =IF(AU13=29,WEEKDAY(DATE($AA$2,$AE$2,29)),0) -> 0 | AV14: =IF(AV13=30,WEEKDAY(DATE($AA$2,$AE$2,30)),0) -> 0 | AW14: =IF(AW13=31,WEEKDAY(DATE($AA$2,$AE$2,31)),0) -> 0
S15: =IF(S14=1,"日",IF(S14=2,"月",IF(S14=3,"火",IF(S14=4,"水",IF(S14=5,"木",IF(S14=6,"金","土")))))) -> 水 | T15: =IF(T14=1,"日",IF(T14=2,"月",IF(T14=3,"火",IF(T14=4,"水",IF(T14=5,"木",IF(T14=6,"金","土")))))) -> 木 | U15: 金 | V15: 土 | W15: 日 | X15: 月 | Y15: 火 | Z15: =IF(Z14=1,"日",IF(Z14=2,"月",IF(Z14=3,"火",IF(Z14=4,"水",IF(Z14=5,"木",IF(Z14=6,"金","土")))))) -> 水 | AA15: =IF(AA14=1,"日",IF(AA14=2,"月",IF(AA14=3,"火",IF(AA14=4,"水",IF(AA14=5,"木",IF(AA14=6,"金","土")))))) -> 木 | AB15: =IF(AB14=1,"日",IF(AB14=2,"月",IF(AB14=3,"火",IF(AB14=4,"水",IF(AB14=5,"木",IF(AB14=6,"金","土")))))) -> 金 | AC15: =IF(AC14=1,"日",IF(AC14=2,"月",IF(AC14=3,"火",IF(AC14=4,"水",IF(AC14=5,"木",IF(AC14=6,"金","土")))))) -> 土 | AD15: =IF(AD14=1,"日",IF(AD14=2,"月",IF(AD14=3,"火",IF(AD14=4,"水",IF(AD14=5,"木",IF(AD14=6,"金","土")))))) -> 日 | AE15: =IF(AE14=1,"日",IF(AE14=2,"月",IF(AE14=3,"火",IF(AE14=4,"水",IF(AE14=5,"木",IF(AE14=6,"金","土")))))) -> 月 | AF15: =IF(AF14=1,"日",IF(AF14=2,"月",IF(AF14=3,"火",IF(AF14=4,"水",IF(AF14=5,"木",IF(AF14=6,"金","土")))))) -> 火 | AG15: =IF(AG14=1,"日",IF(AG14=2,"月",IF(AG14=3,"火",IF(AG14=4,"水",IF(AG14=5,"木",IF(AG14=6,"金","土")))))) -> 水 | AH15: =IF(AH14=1,"日",IF(AH14=2,"月",IF(AH14=3,"火",IF(AH14=4,"水",IF(AH14=5,"木",IF(AH14=6,"金","土")))))) -> 木 | AI15: =IF(AI14=1,"日",IF(AI14=2,"月",IF(AI14=3,"火",IF(AI14=4,"水",IF(AI14=5,"木",IF(AI14=6,"金","土")))))) -> 金 | AJ15: =IF(AJ14=1,"日",IF(AJ14=2,"月",IF(AJ14=3,"火",IF(AJ14=4,"水",IF(AJ14=5,"木",IF(AJ14=6,"金","土")))))) -> 土 | AK15: =IF(AK14=1,"日",IF(AK14=2,"月",IF(AK14=3,"火",IF(AK14=4,"水",IF(AK14=5,"木",IF(AK14=6,"金","土")))))) -> 日 | AL15: =IF(AL14=1,"日",IF(AL14=2,"月",IF(AL14=3,"火",IF(AL14=4,"水",IF(AL14=5,"木",IF(AL14=6,"金","土")))))) -> 月 | AM15: =IF(AM14=1,"日",IF(AM14=2,"月",IF(AM14=3,"火",IF(AM14=4,"水",IF(AM14=5,"木",IF(AM14=6,"金","土")))))) -> 火 | AN15: =IF(AN14=1,"日",IF(AN14=2,"月",IF(AN14=3,"火",IF(AN14=4,"水",IF(AN14=5,"木",IF(AN14=6,"金","土")))))) -> 水 | AO15: =IF(AO14=1,"日",IF(AO14=2,"月",IF(AO14=3,"火",IF(AO14=4,"水",IF(AO14=5,"木",IF(AO14=6,"金","土")))))) -> 木 | AP15: =IF(AP14=1,"日",IF(AP14=2,"月",IF(AP14=3,"火",IF(AP14=4,"水",IF(AP14=5,"木",IF(AP14=6,"金","土")))))) -> 金 | AQ15: =IF(AQ14=1,"日",IF(AQ14=2,"月",IF(AQ14=3,"火",IF(AQ14=4,"水",IF(AQ14=5,"木",IF(AQ14=6,"金","土")))))) -> 土 | AR15: =IF(AR14=1,"日",IF(AR14=2,"月",IF(AR14=3,"火",IF(AR14=4,"水",IF(AR14=5,"木",IF(AR14=6,"金","土")))))) -> 日 | AS15: =IF(AS14=1,"日",IF(AS14=2,"月",IF(AS14=3,"火",IF(AS14=4,"水",IF(AS14=5,"木",IF(AS14=6,"金","土")))))) -> 月 | AT15: =IF(AT14=1,"日",IF(AT14=2,"月",IF(AT14=3,"火",IF(AT14=4,"水",IF(AT14=5,"木",IF(AT14=6,"金","土")))))) -> 火 | AU15: =IF(AU14=1,"日",IF(AU14=2,"月",IF(AU14=3,"火",IF(AU14=4,"水",IF(AU14=5,"木",IF(AU14=6,"金",IF(AU14=0,"","土"))))))) ->  | AV15: =IF(AV14=1,"日",IF(AV14=2,"月",IF(AV14=3,"火",IF(AV14=4,"水",IF(AV14=5,"木",IF(AV14=6,"金",IF(AV14=0,"","土"))))))) ->  | AW15: =IF(AW14=1,"日",IF(AW14=2,"月",IF(AW14=3,"火",IF(AW14=4,"水",IF(AW14=5,"木",IF(AW14=6,"金",IF(AW14=0,"","土"))))))) -> 
B16: 1 | P16: シフト記号 | AX16: =IF($BC$3="計画",SUM(S17:AT17),IF($BC$3="実績",SUM(S17:AW17),"")) -> 0 | AZ16: =IF($BC$3="計画",AX16/4,IF($BC$3="実績",AX16/($BA$7/7),"")) -> 0
P17: 勤務時間数 | S17: =IF(S16="","",VLOOKUP(S16,'シフト記号表（勤務時間帯）'!$C$4:$K$35,9,FALSE)) ->  | T17: =IF(T16="","",VLOOKUP(T16,'シフト記号表（勤務時間帯）'!$C$4:$K$35,9,FALSE)) ->  | U17: =IF(U16="","",VLOOKUP(U16,'シフト記号表（勤務時間帯）'!$C$4:$K$35,9,FALSE)) ->  | V17: =IF(V16="","",VLOOKUP(V16,'シフト記号表（勤務時間帯）'!$C$4:$K$35,9,FALSE)) ->  | W17: =IF(W16="","",VLOOKUP(W16,'シフト記号表（勤務時間帯）'!$C$4:$K$35,9,FALSE)) ->  | X17: =IF(X16="","",VLOOKUP(X16,'シフト記号表（勤務時間帯）'!$C$4:$K$35,9,FALSE)) ->  | Y17: =IF(Y16="","",VLOOKUP(Y16,'シフト記号表（勤務時間帯）'!$C$4:$K$35,9,FALSE)) ->  | Z17: =IF(Z16="","",VLOOKUP(Z16,'シフト記号表（勤務時間帯）'!$C$4:$K$35,9,FALSE)) ->  | AA17: =IF(AA16="","",VLOOKUP(AA16,'シフト記号表（勤務時間帯）'!$C$4:$K$35,9,FALSE)) ->  | AB17: =IF(AB16="","",VLOOKUP(AB16,'シフト記号表（勤務時間帯）'!$C$4:$K$35,9,FALSE)) ->  | AC17: =IF(AC16="","",VLOOKUP(AC16,'シフト記号表（勤務時間帯）'!$C$4:$K$35,9,FALSE)) ->  | AD17: =IF(AD16="","",VLOOKUP(AD16,'シフト記号表（勤務時間帯）'!$C$4:$K$35,9,FALSE)) ->  | AE17: =IF(AE16="","",VLOOKUP(AE16,'シフト記号表（勤務時間帯）'!$C$4:$K$35,9,FALSE)) ->  | AF17: =IF(AF16="","",VLOOKUP(AF16,'シフト記号表（勤務時間帯）'!$C$4:$K$35,9,FALSE)) ->  | AG17: =IF(AG16="","",VLOOKUP(AG16,'シフト記号表（勤務時間帯）'!$C$4:$K$35,9,FALSE)) ->  | AH17: =IF(AH16="","",VLOOKUP(AH16,'シフト記号表（勤務時間帯）'!$C$4:$K$35,9,FALSE)) ->  | AI17: =IF(AI16="","",VLOOKUP(AI16,'シフト記号表（勤務時間帯）'!$C$4:$K$35,9,FALSE)) ->  | AJ17: =IF(AJ16="","",VLOOKUP(AJ16,'シフト記号表（勤務時間帯）'!$C$4:$K$35,9,FALSE)) ->  | AK17: =IF(AK16="","",VLOOKUP(AK16,'シフト記号表（勤務時間帯）'!$C$4:$K$35,9,FALSE)) ->  | AL17: =IF(AL16="","",VLOOKUP(AL16,'シフト記号表（勤務時間帯）'!$C$4:$K$35,9,FALSE)) ->  | AM17: =IF(AM16="","",VLOOKUP(AM16,'シフト記号表（勤務時間帯）'!$C$4:$K$35,9,FALSE)) ->  | AN17: =IF(AN16="","",VLOOKUP(AN16,'シフト記号表（勤務時間帯）'!$C$4:$K$35,9,FALSE)) ->  | AO17: =IF(AO16="","",VLOOKUP(AO16,'シフト記号表（勤務時間帯）'!$C$4:$K$35,9,FALSE)) ->  | AP17: =IF(AP16="","",VLOOKUP(AP16,'シフト記号表（勤務時間帯）'!$C$4:$K$35,9,FALSE)) ->  | AQ17: =IF(AQ16="","",VLOOKUP(AQ16,'シフト記号表（勤務時間帯）'!$C$4:$K$35,9,FALSE)) ->  | AR17: =IF(AR16="","",VLOOKUP(AR16,'シフト記号表（勤務時間帯）'!$C$4:$K$35,9,FALSE)) ->  | AS17: =IF(AS16="","",VLOOKUP(AS16,'シフト記号表（勤務時間帯）'!$C$4:$K$35,9,FALSE)) ->  | AT17: =IF(AT16="","",VLOOKUP(AT16,'シフト記号表（勤務時間帯）'!$C$4:$K$35,9,FALSE)) ->  | AU17: =IF(AU16="","",VLOOKUP(AU16,'シフト記号表（勤務時間帯）'!$C$4:$K$35,9,FALSE)) ->  | AV17: =IF(AV16="","",VLOOKUP(AV16,'シフト記号表（勤務時間帯）'!$C$4:$K$35,9,FALSE)) ->  | AW17: =IF(AW16="","",VLOOKUP(AW16,'シフト記号表（勤務時間帯）'!$C$4:$K$35,9,FALSE)) -> 
B18: =B16+1 -> 2 | P18: シフト記号 | AX18: =IF($BC$3="計画",SUM(S19:AT19),IF($BC$3="実績",SUM(S19:AW19),"")) -> 0 | AZ18: =IF($BC$3="計画",AX18/4,IF($BC$3="実績",AX18/($BA$7/7),"")) -> 0
P19: 勤務時間数 | S19: =IF(S18="","",VLOOKUP(S18,'シフト記号表（勤務時間帯）'!$C$4:$K$35,9,FALSE)) ->  | T19: =IF(T18="","",VLOOKUP(T18,'シフト記号表（勤務時間帯）'!$C$4:$K$35,9,FALSE)) ->  | U19: =IF(U18="","",VLOOKUP(U18,'シフト記号表（勤務時間帯）'!$C$4:$K$35,9,FALSE)) ->  | V19: =IF(V18="","",VLOOKUP(V18,'シフト記号表（勤務時間帯）'!$C$4:$K$35,9,FALSE)) ->  | W19: =IF(W18="","",VLOOKUP(W18,'シフト記号表（勤務時間帯）'!$C$4:$K$35,9,FALSE)) ->  | X19: =IF(X18="","",VLOOKUP(X18,'シフト記号表（勤務時間帯）'!$C$4:$K$35,9,FALSE)) ->  | Y19: =IF(Y18="","",VLOOKUP(Y18,'シフト記号表（勤務時間帯）'!$C$4:$K$35,9,FALSE)) ->  | Z19: =IF(Z18="","",VLOOKUP(Z18,'シフト記号表（勤務時間帯）'!$C$4:$K$35,9,FALSE)) ->  | AA19: =IF(AA18="","",VLOOKUP(AA18,'シフト記号表（勤務時間帯）'!$C$4:$K$35,9,FALSE)) ->  | AB19: =IF(AB18="","",VLOOKUP(AB18,'シフト記号表（勤務時間帯）'!$C$4:$K$35,9,FALSE)) ->  | AC19: =IF(AC18="","",VLOOKUP(AC18,'シフト記号表（勤務時間帯）'!$C$4:$K$35,9,FALSE)) ->  | AD19: =IF(AD18="","",VLOOKUP(AD18,'シフト記号表（勤務時間帯）'!$C$4:$K$35,9,FALSE)) ->  | AE19: =IF(AE18="","",VLOOKUP(AE18,'シフト記号表（勤務時間帯）'!$C$4:$K$35,9,FALSE)) ->  | AF19: =IF(AF18="","",VLOOKUP(AF18,'シフト記号表（勤務時間帯）'!$C$4:$K$35,9,FALSE)) ->  | AG19: =IF(AG18="","",VLOOKUP(AG18,'シフト記号表（勤務時間帯）'!$C$4:$K$35,9,FALSE)) ->  | AH19: =IF(AH18="","",VLOOKUP(AH18,'シフト記号表（勤務時間帯）'!$C$4:$K$35,9,FALSE)) ->  | AI19: =IF(AI18="","",VLOOKUP(AI18,'シフト記号表（勤務時間帯）'!$C$4:$K$35,9,FALSE)) ->  | AJ19: =IF(AJ18="","",VLOOKUP(AJ18,'シフト記号表（勤務時間帯）'!$C$4:$K$35,9,FALSE)) ->  | AK19: =IF(AK18="","",VLOOKUP(AK18,'シフト記号表（勤務時間帯）'!$C$4:$K$35,9,FALSE)) ->  | AL19: =IF(AL18="","",VLOOKUP(AL18,'シフト記号表（勤務時間帯）'!$C$4:$K$35,9,FALSE)) ->  | AM19: =IF(AM18="","",VLOOKUP(AM18,'シフト記号表（勤務時間帯）'!$C$4:$K$35,9,FALSE)) ->  | AN19: =IF(AN18="","",VLOOKUP(AN18,'シフト記号表（勤務時間帯）'!$C$4:$K$35,9,FALSE)) ->  | AO19: =IF(AO18="","",VLOOKUP(AO18,'シフト記号表（勤務時間帯）'!$C$4:$K$35,9,FALSE)) ->  | AP19: =IF(AP18="","",VLOOKUP(AP18,'シフト記号表（勤務時間帯）'!$C$4:$K$35,9,FALSE)) ->  | AQ19: =IF(AQ18="","",VLOOKUP(AQ18,'シフト記号表（勤務時間帯）'!$C$4:$K$35,9,FALSE)) ->  | AR19: =IF(AR18="","",VLOOKUP(AR18,'シフト記号表（勤務時間帯）'!$C$4:$K$35,9,FALSE)) ->  | AS19: =IF(AS18="","",VLOOKUP(AS18,'シフト記号表（勤務時間帯）'!$C$4:$K$35,9,FALSE)) ->  | AT19: =IF(AT18="","",VLOOKUP(AT18,'シフト記号表（勤務時間帯）'!$C$4:$K$35,9,FALSE)) ->  | AU19: =IF(AU18="","",VLOOKUP(AU18,'シフト記号表（勤務時間帯）'!$C$4:$K$35,9,FALSE)) ->  | AV19: =IF(AV18="","",VLOOKUP(AV18,'シフト記号表（勤務時間帯）'!$C$4:$K$35,9,FALSE)) ->  | AW19: =IF(AW18="","",VLOOKUP(AW18,'シフト記号表（勤務時間帯）'!$C$4:$K$35,9,FALSE)) -> 
B20: =B18+1 -> 3 | P20: シフト記号 | AX20: =IF($BC$3="計画",SUM(S21:AT21),IF($BC$3="実績",SUM(S21:AW21),"")) -> 0 | AZ20: =IF($BC$3="計画",AX20/4,IF($BC$3="実績",AX20/($BA$7/7),"")) -> 0
P21: 勤務時間数 | S21: =IF(S20="","",VLOOKUP(S20,'シフト記号表（勤務時間帯）'!$C$4:$K$35,9,FALSE)) ->  | T21: =IF(T20="","",VLOOKUP(T20,'シフト記号表（勤務時間帯）'!$C$4:$K$35,9,FALSE)) ->  | U21: =IF(U20="","",VLOOKUP(U20,'シフト記号表（勤務時間帯）'!$C$4:$K$35,9,FALSE)) ->  | V21: =IF(V20="","",VLOOKUP(V20,'シフト記号表（勤務時間帯）'!$C$4:$K$35,9,FALSE)) ->  | W21: =IF(W20="","",VLOOKUP(W20,'シフト記号表（勤務時間帯）'!$C$4:$K$35,9,FALSE)) ->  | X21: =IF(X20="","",VLOOKUP(X20,'シフト記号表（勤務時間帯）'!$C$4:$K$35,9,FALSE)) ->  | Y21: =IF(Y20="","",VLOOKUP(Y20,'シフト記号表（勤務時間帯）'!$C$4:$K$35,9,FALSE)) ->  | Z21: =IF(Z20="","",VLOOKUP(Z20,'シフト記号表（勤務時間帯）'!$C$4:$K$35,9,FALSE)) ->  | AA21: =IF(AA20="","",VLOOKUP(AA20,'シフト記号表（勤務時間帯）'!$C$4:$K$35,9,FALSE)) ->  | AB21: =IF(AB20="","",VLOOKUP(AB20,'シフト記号表（勤務時間帯）'!$C$4:$K$35,9,FALSE)) ->  | AC21: =IF(AC20="","",VLOOKUP(AC20,'シフト記号表（勤務時間帯）'!$C$4:$K$35,9,FALSE)) ->  | AD21: =IF(AD20="","",VLOOKUP(AD20,'シフト記号表（勤務時間帯）'!$C$4:$K$35,9,FALSE)) ->  | AE21: =IF(AE20="","",VLOOKUP(AE20,'シフト記号表（勤務時間帯）'!$C$4:$K$35,9,FALSE)) ->  | AF21: =IF(AF20="","",VLOOKUP(AF20,'シフト記号表（勤務時間帯）'!$C$4:$K$35,9,FALSE)) ->  | AG21: =IF(AG20="","",VLOOKUP(AG20,'シフト記号表（勤務時間帯）'!$C$4:$K$35,9,FALSE)) ->  | AH21: =IF(AH20="","",VLOOKUP(AH20,'シフト記号表（勤務時間帯）'!$C$4:$K$35,9,FALSE)) ->  | AI21: =IF(AI20="","",VLOOKUP(AI20,'シフト記号表（勤務時間帯）'!$C$4:$K$35,9,FALSE)) ->  | AJ21: =IF(AJ20="","",VLOOKUP(AJ20,'シフト記号表（勤務時間帯）'!$C$4:$K$35,9,FALSE)) ->  | AK21: =IF(AK20="","",VLOOKUP(AK20,'シフト記号表（勤務時間帯）'!$C$4:$K$35,9,FALSE)) ->  | AL21: =IF(AL20="","",VLOOKUP(AL20,'シフト記号表（勤務時間帯）'!$C$4:$K$35,9,FALSE)) ->  | AM21: =IF(AM20="","",VLOOKUP(AM20,'シフト記号表（勤務時間帯）'!$C$4:$K$35,9,FALSE)) ->  | AN21: =IF(AN20="","",VLOOKUP(AN20,'シフト記号表（勤務時間帯）'!$C$4:$K$35,9,FALSE)) ->  | AO21: =IF(AO20="","",VLOOKUP(AO20,'シフト記号表（勤務時間帯）'!$C$4:$K$35,9,FALSE)) ->  | AP21: =IF(AP20="","",VLOOKUP(AP20,'シフト記号表（勤務時間帯）'!$C$4:$K$35,9,FALSE)) ->  | AQ21: =IF(AQ20="","",VLOOKUP(AQ20,'シフト記号表（勤務時間帯）'!$C$4:$K$35,9,FALSE)) ->  | AR21: =IF(AR20="","",VLOOKUP(AR20,'シフト記号表（勤務時間帯）'!$C$4:$K$35,9,FALSE)) ->  | AS21: =IF(AS20="","",VLOOKUP(AS20,'シフト記号表（勤務時間帯）'!$C$4:$K$35,9,FALSE)) ->  | AT21: =IF(AT20="","",VLOOKUP(AT20,'シフト記号表（勤務時間帯）'!$C$4:$K$35,9,FALSE)) ->  | AU21: =IF(AU20="","",VLOOKUP(AU20,'シフト記号表（勤務時間帯）'!$C$4:$K$35,9,FALSE)) ->  | AV21: =IF(AV20="","",VLOOKUP(AV20,'シフト記号表（勤務時間帯）'!$C$4:$K$35,9,FALSE)) ->  | AW21: =IF(AW20="","",VLOOKUP(AW20,'シフト記号表（勤務時間帯）'!$C$4:$K$35,9,FALSE)) -> 
B22: =B20+1 -> 4 | P22: シフト記号 | AX22: =IF($BC$3="計画",SUM(S23:AT23),IF($BC$3="実績",SUM(S23:AW23),"")) -> 0 | AZ22: =IF($BC$3="計画",AX22/4,IF($BC$3="実績",AX22/($BA$7/7),"")) -> 0
P23: 勤務時間数 | S23: =IF(S22="","",VLOOKUP(S22,'シフト記号表（勤務時間帯）'!$C$4:$K$35,9,FALSE)) ->  | T23: =IF(T22="","",VLOOKUP(T22,'シフト記号表（勤務時間帯）'!$C$4:$K$35,9,FALSE)) ->  | U23: =IF(U22="","",VLOOKUP(U22,'シフト記号表（勤務時間帯）'!$C$4:$K$35,9,FALSE)) ->  | V23: =IF(V22="","",VLOOKUP(V22,'シフト記号表（勤務時間帯）'!$C$4:$K$35,9,FALSE)) ->  | W23: =IF(W22="","",VLOOKUP(W22,'シフト記号表（勤務時間帯）'!$C$4:$K$35,9,FALSE)) ->  | X23: =IF(X22="","",VLOOKUP(X22,'シフト記号表（勤務時間帯）'!$C$4:$K$35,9,FALSE)) ->  | Y23: =IF(Y22="","",VLOOKUP(Y22,'シフト記号表（勤務時間帯）'!$C$4:$K$35,9,FALSE)) ->  | Z23: =IF(Z22="","",VLOOKUP(Z22,'シフト記号表（勤務時間帯）'!$C$4:$K$35,9,FALSE)) ->  | AA23: =IF(AA22="","",VLOOKUP(AA22,'シフト記号表（勤務時間帯）'!$C$4:$K$35,9,FALSE)) ->  | AB23: =IF(AB22="","",VLOOKUP(AB22,'シフト記号表（勤務時間帯）'!$C$4:$K$35,9,FALSE)) ->  | AC23: =IF(AC22="","",VLOOKUP(AC22,'シフト記号表（勤務時間帯）'!$C$4:$K$35,9,FALSE)) ->  | AD23: =IF(AD22="","",VLOOKUP(AD22,'シフト記号表（勤務時間帯）'!$C$4:$K$35,9,FALSE)) ->  | AE23: =IF(AE22="","",VLOOKUP(AE22,'シフト記号表（勤務時間帯）'!$C$4:$K$35,9,FALSE)) ->  | AF23: =IF(AF22="","",VLOOKUP(AF22,'シフト記号表（勤務時間帯）'!$C$4:$K$35,9,FALSE)) ->  | AG23: =IF(AG22="","",VLOOKUP(AG22,'シフト記号表（勤務時間帯）'!$C$4:$K$35,9,FALSE)) ->  | AH23: =IF(AH22="","",VLOOKUP(AH22,'シフト記号表（勤務時間帯）'!$C$4:$K$35,9,FALSE)) ->  | AI23: =IF(AI22="","",VLOOKUP(AI22,'シフト記号表（勤務時間帯）'!$C$4:$K$35,9,FALSE)) ->  | AJ23: =IF(AJ22="","",VLOOKUP(AJ22,'シフト記号表（勤務時間帯）'!$C$4:$K$35,9,FALSE)) ->  | AK23: =IF(AK22="","",VLOOKUP(AK22,'シフト記号表（勤務時間帯）'!$C$4:$K$35,9,FALSE)) ->  | AL23: =IF(AL22="","",VLOOKUP(AL22,'シフト記号表（勤務時間帯）'!$C$4:$K$35,9,FALSE)) ->  | AM23: =IF(AM22="","",VLOOKUP(AM22,'シフト記号表（勤務時間帯）'!$C$4:$K$35,9,FALSE)) ->  | AN23: =IF(AN22="","",VLOOKUP(AN22,'シフト記号表（勤務時間帯）'!$C$4:$K$35,9,FALSE)) ->  | AO23: =IF(AO22="","",VLOOKUP(AO22,'シフト記号表（勤務時間帯）'!$C$4:$K$35,9,FALSE)) ->  | AP23: =IF(AP22="","",VLOOKUP(AP22,'シフト記号表（勤務時間帯）'!$C$4:$K$35,9,FALSE)) ->  | AQ23: =IF(AQ22="","",VLOOKUP(AQ22,'シフト記号表（勤務時間帯）'!$C$4:$K$35,9,FALSE)) ->  | AR23: =IF(AR22="","",VLOOKUP(AR22,'シフト記号表（勤務時間帯）'!$C$4:$K$35,9,FALSE)) ->  | AS23: =IF(AS22="","",VLOOKUP(AS22,'シフト記号表（勤務時間帯）'!$C$4:$K$35,9,FALSE)) ->  | AT23: =IF(AT22="","",VLOOKUP(AT22,'シフト記号表（勤務時間帯）'!$C$4:$K$35,9,FALSE)) ->  | AU23: =IF(AU22="","",VLOOKUP(AU22,'シフト記号表（勤務時間帯）'!$C$4:$K$35,9,FALSE)) ->  | AV23: =IF(AV22="","",VLOOKUP(AV22,'シフト記号表（勤務時間帯）'!$C$4:$K$35,9,FALSE)) ->  | AW23: =IF(AW22="","",VLOOKUP(AW22,'シフト記号表（勤務時間帯）'!$C$4:$K$35,9,FALSE)) -> 
B24: =B22+1 -> 5 | P24: シフト記号 | AX24: =IF($BC$3="計画",SUM(S25:AT25),IF($BC$3="実績",SUM(S25:AW25),"")) -> 0 | AZ24: =IF($BC$3="計画",AX24/4,IF($BC$3="実績",AX24/($BA$7/7),"")) -> 0
P25: 勤務時間数 | S25: =IF(S24="","",VLOOKUP(S24,'シフト記号表（勤務時間帯）'!$C$4:$K$35,9,FALSE)) ->  | T25: =IF(T24="","",VLOOKUP(T24,'シフト記号表（勤務時間帯）'!$C$4:$K$35,9,FALSE)) ->  | U25: =IF(U24="","",VLOOKUP(U24,'シフト記号表（勤務時間帯）'!$C$4:$K$35,9,FALSE)) ->  | V25: =IF(V24="","",VLOOKUP(V24,'シフト記号表（勤務時間帯）'!$C$4:$K$35,9,FALSE)) ->  | W25: =IF(W24="","",VLOOKUP(W24,'シフト記号表（勤務時間帯）'!$C$4:$K$35,9,FALSE)) ->  | X25: =IF(X24="","",VLOOKUP(X24,'シフト記号表（勤務時間帯）'!$C$4:$K$35,9,FALSE)) ->  | Y25: =IF(Y24="","",VLOOKUP(Y24,'シフト記号表（勤務時間帯）'!$C$4:$K$35,9,FALSE)) ->  | Z25: =IF(Z24="","",VLOOKUP(Z24,'シフト記号表（勤務時間帯）'!$C$4:$K$35,9,FALSE)) ->  | AA25: =IF(AA24="","",VLOOKUP(AA24,'シフト記号表（勤務時間帯）'!$C$4:$K$35,9,FALSE)) ->  | AB25: =IF(AB24="","",VLOOKUP(AB24,'シフト記号表（勤務時間帯）'!$C$4:$K$35,9,FALSE)) ->  | AC25: =IF(AC24="","",VLOOKUP(AC24,'シフト記号表（勤務時間帯）'!$C$4:$K$35,9,FALSE)) ->  | AD25: =IF(AD24="","",VLOOKUP(AD24,'シフト記号表（勤務時間帯）'!$C$4:$K$35,9,FALSE)) ->  | AE25: =IF(AE24="","",VLOOKUP(AE24,'シフト記号表（勤務時間帯）'!$C$4:$K$35,9,FALSE)) ->  | AF25: =IF(AF24="","",VLOOKUP(AF24,'シフト記号表（勤務時間帯）'!$C$4:$K$35,9,FALSE)) ->  | AG25: =IF(AG24="","",VLOOKUP(AG24,'シフト記号表（勤務時間帯）'!$C$4:$K$35,9,FALSE)) ->  | AH25: =IF(AH24="","",VLOOKUP(AH24,'シフト記号表（勤務時間帯）'!$C$4:$K$35,9,FALSE)) ->  | AI25: =IF(AI24="","",VLOOKUP(AI24,'シフト記号表（勤務時間帯）'!$C$4:$K$35,9,FALSE)) ->  | AJ25: =IF(AJ24="","",VLOOKUP(AJ24,'シフト記号表（勤務時間帯）'!$C$4:$K$35,9,FALSE)) ->  | AK25: =IF(AK24="","",VLOOKUP(AK24,'シフト記号表（勤務時間帯）'!$C$4:$K$35,9,FALSE)) ->  | AL25: =IF(AL24="","",VLOOKUP(AL24,'シフト記号表（勤務時間帯）'!$C$4:$K$35,9,FALSE)) ->  | AM25: =IF(AM24="","",VLOOKUP(AM24,'シフト記号表（勤務時間帯）'!$C$4:$K$35,9,FALSE)) ->  | AN25: =IF(AN24="","",VLOOKUP(AN24,'シフト記号表（勤務時間帯）'!$C$4:$K$35,9,FALSE)) ->  | AO25: =IF(AO24="","",VLOOKUP(AO24,'シフト記号表（勤務時間帯）'!$C$4:$K$35,9,FALSE)) ->  | AP25: =IF(AP24="","",VLOOKUP(AP24,'シフト記号表（勤務時間帯）'!$C$4:$K$35,9,FALSE)) ->  | AQ25: =IF(AQ24="","",VLOOKUP(AQ24,'シフト記号表（勤務時間帯）'!$C$4:$K$35,9,FALSE)) ->  | AR25: =IF(AR24="","",VLOOKUP(AR24,'シフト記号表（勤務時間帯）'!$C$4:$K$35,9,FALSE)) ->  | AS25: =IF(AS24="","",VLOOKUP(AS24,'シフト記号表（勤務時間帯）'!$C$4:$K$35,9,FALSE)) ->  | AT25: =IF(AT24="","",VLOOKUP(AT24,'シフト記号表（勤務時間帯）'!$C$4:$K$35,9,FALSE)) ->  | AU25: =IF(AU24="","",VLOOKUP(AU24,'シフト記号表（勤務時間帯）'!$C$4:$K$35,9,FALSE)) ->  | AV25: =IF(AV24="","",VLOOKUP(AV24,'シフト記号表（勤務時間帯）'!$C$4:$K$35,9,FALSE)) ->  | AW25: =IF(AW24="","",VLOOKUP(AW24,'シフト記号表（勤務時間帯）'!$C$4:$K$35,9,FALSE)) -> 
B26: =B24+1 -> 6 | P26: シフト記号 | AX26: =IF($BC$3="計画",SUM(S27:AT27),IF($BC$3="実績",SUM(S27:AW27),"")) -> 0 | AZ26: =IF($BC$3="計画",AX26/4,IF($BC$3="実績",AX26/($BA$7/7),"")) -> 0
P27: 勤務時間数 | S27: =IF(S26="","",VLOOKUP(S26,'シフト記号表（勤務時間帯）'!$C$4:$K$35,9,FALSE)) ->  | T27: =IF(T26="","",VLOOKUP(T26,'シフト記号表（勤務時間帯）'!$C$4:$K$35,9,FALSE)) ->  | U27: =IF(U26="","",VLOOKUP(U26,'シフト記号表（勤務時間帯）'!$C$4:$K$35,9,FALSE)) ->  | V27: =IF(V26="","",VLOOKUP(V26,'シフト記号表（勤務時間帯）'!$C$4:$K$35,9,FALSE)) ->  | W27: =IF(W26="","",VLOOKUP(W26,'シフト記号表（勤務時間帯）'!$C$4:$K$35,9,FALSE)) ->  | X27: =IF(X26="","",VLOOKUP(X26,'シフト記号表（勤務時間帯）'!$C$4:$K$35,9,FALSE)) ->  | Y27: =IF(Y26="","",VLOOKUP(Y26,'シフト記号表（勤務時間帯）'!$C$4:$K$35,9,FALSE)) ->  | Z27: =IF(Z26="","",VLOOKUP(Z26,'シフト記号表（勤務時間帯）'!$C$4:$K$35,9,FALSE)) ->  | AA27: =IF(AA26="","",VLOOKUP(AA26,'シフト記号表（勤務時間帯）'!$C$4:$K$35,9,FALSE)) ->  | AB27: =IF(AB26="","",VLOOKUP(AB26,'シフト記号表（勤務時間帯）'!$C$4:$K$35,9,FALSE)) ->  | AC27: =IF(AC26="","",VLOOKUP(AC26,'シフト記号表（勤務時間帯）'!$C$4:$K$35,9,FALSE)) ->  | AD27: =IF(AD26="","",VLOOKUP(AD26,'シフト記号表（勤務時間帯）'!$C$4:$K$35,9,FALSE)) ->  | AE27: =IF(AE26="","",VLOOKUP(AE26,'シフト記号表（勤務時間帯）'!$C$4:$K$35,9,FALSE)) ->  | AF27: =IF(AF26="","",VLOOKUP(AF26,'シフト記号表（勤務時間帯）'!$C$4:$K$35,9,FALSE)) ->  | AG27: =IF(AG26="","",VLOOKUP(AG26,'シフト記号表（勤務時間帯）'!$C$4:$K$35,9,FALSE)) ->  | AH27: =IF(AH26="","",VLOOKUP(AH26,'シフト記号表（勤務時間帯）'!$C$4:$K$35,9,FALSE)) ->  | AI27: =IF(AI26="","",VLOOKUP(AI26,'シフト記号表（勤務時間帯）'!$C$4:$K$35,9,FALSE)) ->  | AJ27: =IF(AJ26="","",VLOOKUP(AJ26,'シフト記号表（勤務時間帯）'!$C$4:$K$35,9,FALSE)) ->  | AK27: =IF(AK26="","",VLOOKUP(AK26,'シフト記号表（勤務時間帯）'!$C$4:$K$35,9,FALSE)) ->  | AL27: =IF(AL26="","",VLOOKUP(AL26,'シフト記号表（勤務時間帯）'!$C$4:$K$35,9,FALSE)) ->  | AM27: =IF(AM26="","",VLOOKUP(AM26,'シフト記号表（勤務時間帯）'!$C$4:$K$35,9,FALSE)) ->  | AN27: =IF(AN26="","",VLOOKUP(AN26,'シフト記号表（勤務時間帯）'!$C$4:$K$35,9,FALSE)) ->  | AO27: =IF(AO26="","",VLOOKUP(AO26,'シフト記号表（勤務時間帯）'!$C$4:$K$35,9,FALSE)) ->  | AP27: =IF(AP26="","",VLOOKUP(AP26,'シフト記号表（勤務時間帯）'!$C$4:$K$35,9,FALSE)) ->  | AQ27: =IF(AQ26="","",VLOOKUP(AQ26,'シフト記号表（勤務時間帯）'!$C$4:$K$35,9,FALSE)) ->  | AR27: =IF(AR26="","",VLOOKUP(AR26,'シフト記号表（勤務時間帯）'!$C$4:$K$35,9,FALSE)) ->  | AS27: =IF(AS26="","",VLOOKUP(AS26,'シフト記号表（勤務時間帯）'!$C$4:$K$35,9,FALSE)) ->  | AT27: =IF(AT26="","",VLOOKUP(AT26,'シフト記号表（勤務時間帯）'!$C$4:$K$35,9,FALSE)) ->  | AU27: =IF(AU26="","",VLOOKUP(AU26,'シフト記号表（勤務時間帯）'!$C$4:$K$35,9,FALSE)) ->  | AV27: =IF(AV26="","",VLOOKUP(AV26,'シフト記号表（勤務時間帯）'!$C$4:$K$35,9,FALSE)) ->  | AW27: =IF(AW26="","",VLOOKUP(AW26,'シフト記号表（勤務時間帯）'!$C$4:$K$35,9,FALSE)) -> 
B28: =B26+1 -> 7 | P28: シフト記号 | AX28: =IF($BC$3="計画",SUM(S29:AT29),IF($BC$3="実績",SUM(S29:AW29),"")) -> 0 | AZ28: =IF($BC$3="計画",AX28/4,IF($BC$3="実績",AX28/($BA$7/7),"")) -> 0
P29: 勤務時間数 | S29: =IF(S28="","",VLOOKUP(S28,'シフト記号表（勤務時間帯）'!$C$4:$K$35,9,FALSE)) ->  | T29: =IF(T28="","",VLOOKUP(T28,'シフト記号表（勤務時間帯）'!$C$4:$K$35,9,FALSE)) ->  | U29: =IF(U28="","",VLOOKUP(U28,'シフト記号表（勤務時間帯）'!$C$4:$K$35,9,FALSE)) ->  | V29: =IF(V28="","",VLOOKUP(V28,'シフト記号表（勤務時間帯）'!$C$4:$K$35,9,FALSE)) ->  | W29: =IF(W28="","",VLOOKUP(W28,'シフト記号表（勤務時間帯）'!$C$4:$K$35,9,FALSE)) ->  | X29: =IF(X28="","",VLOOKUP(X28,'シフト記号表（勤務時間帯）'!$C$4:$K$35,9,FALSE)) ->  | Y29: =IF(Y28="","",VLOOKUP(Y28,'シフト記号表（勤務時間帯）'!$C$4:$K$35,9,FALSE)) ->  | Z29: =IF(Z28="","",VLOOKUP(Z28,'シフト記号表（勤務時間帯）'!$C$4:$K$35,9,FALSE)) ->  | AA29: =IF(AA28="","",VLOOKUP(AA28,'シフト記号表（勤務時間帯）'!$C$4:$K$35,9,FALSE)) ->  | AB29: =IF(AB28="","",VLOOKUP(AB28,'シフト記号表（勤務時間帯）'!$C$4:$K$35,9,FALSE)) ->  | AC29: =IF(AC28="","",VLOOKUP(AC28,'シフト記号表（勤務時間帯）'!$C$4:$K$35,9,FALSE)) ->  | AD29: =IF(AD28="","",VLOOKUP(AD28,'シフト記号表（勤務時間帯）'!$C$4:$K$35,9,FALSE)) ->  | AE29: =IF(AE28="","",VLOOKUP(AE28,'シフト記号表（勤務時間帯）'!$C$4:$K$35,9,FALSE)) ->  | AF29: =IF(AF28="","",VLOOKUP(AF28,'シフト記号表（勤務時間帯）'!$C$4:$K$35,9,FALSE)) ->  | AG29: =IF(AG28="","",VLOOKUP(AG28,'シフト記号表（勤務時間帯）'!$C$4:$K$35,9,FALSE)) ->  | AH29: =IF(AH28="","",VLOOKUP(AH28,'シフト記号表（勤務時間帯）'!$C$4:$K$35,9,FALSE)) ->  | AI29: =IF(AI28="","",VLOOKUP(AI28,'シフト記号表（勤務時間帯）'!$C$4:$K$35,9,FALSE)) ->  | AJ29: =IF(AJ28="","",VLOOKUP(AJ28,'シフト記号表（勤務時間帯）'!$C$4:$K$35,9,FALSE)) ->  | AK29: =IF(AK28="","",VLOOKUP(AK28,'シフト記号表（勤務時間帯）'!$C$4:$K$35,9,FALSE)) ->  | AL29: =IF(AL28="","",VLOOKUP(AL28,'シフト記号表（勤務時間帯）'!$C$4:$K$35,9,FALSE)) ->  | AM29: =IF(AM28="","",VLOOKUP(AM28,'シフト記号表（勤務時間帯）'!$C$4:$K$35,9,FALSE)) ->  | AN29: =IF(AN28="","",VLOOKUP(AN28,'シフト記号表（勤務時間帯）'!$C$4:$K$35,9,FALSE)) ->  | AO29: =IF(AO28="","",VLOOKUP(AO28,'シフト記号表（勤務時間帯）'!$C$4:$K$35,9,FALSE)) ->  | AP29: =IF(AP28="","",VLOOKUP(AP28,'シフト記号表（勤務時間帯）'!$C$4:$K$35,9,FALSE)) ->  | AQ29: =IF(AQ28="","",VLOOKUP(AQ28,'シフト記号表（勤務時間帯）'!$C$4:$K$35,9,FALSE)) ->  | AR29: =IF(AR28="","",VLOOKUP(AR28,'シフト記号表（勤務時間帯）'!$C$4:$K$35,9,FALSE)) ->  | AS29: =IF(AS28="","",VLOOKUP(AS28,'シフト記号表（勤務時間帯）'!$C$4:$K$35,9,FALSE)) ->  | AT29: =IF(AT28="","",VLOOKUP(AT28,'シフト記号表（勤務時間帯）'!$C$4:$K$35,9,FALSE)) ->  | AU29: =IF(AU28="","",VLOOKUP(AU28,'シフト記号表（勤務時間帯）'!$C$4:$K$35,9,FALSE)) ->  | AV29: =IF(AV28="","",VLOOKUP(AV28,'シフト記号表（勤務時間帯）'!$C$4:$K$35,9,FALSE)) ->  | AW29: =IF(AW28="","",VLOOKUP(AW28,'シフト記号表（勤務時間帯）'!$C$4:$K$35,9,FALSE)) -> 
B30: =B28+1 -> 8 | P30: シフト記号 | AX30: =IF($BC$3="計画",SUM(S31:AT31),IF($BC$3="実績",SUM(S31:AW31),"")) -> 0 | AZ30: =IF($BC$3="計画",AX30/4,IF($BC$3="実績",AX30/($BA$7/7),"")) -> 0
P31: 勤務時間数 | S31: =IF(S30="","",VLOOKUP(S30,'シフト記号表（勤務時間帯）'!$C$4:$K$35,9,FALSE)) ->  | T31: =IF(T30="","",VLOOKUP(T30,'シフト記号表（勤務時間帯）'!$C$4:$K$35,9,FALSE)) ->  | U31: =IF(U30="","",VLOOKUP(U30,'シフト記号表（勤務時間帯）'!$C$4:$K$35,9,FALSE)) ->  | V31: =IF(V30="","",VLOOKUP(V30,'シフト記号表（勤務時間帯）'!$C$4:$K$35,9,FALSE)) ->  | W31: =IF(W30="","",VLOOKUP(W30,'シフト記号表（勤務時間帯）'!$C$4:$K$35,9,FALSE)) ->  | X31: =IF(X30="","",VLOOKUP(X30,'シフト記号表（勤務時間帯）'!$C$4:$K$35,9,FALSE)) ->  | Y31: =IF(Y30="","",VLOOKUP(Y30,'シフト記号表（勤務時間帯）'!$C$4:$K$35,9,FALSE)) ->  | Z31: =IF(Z30="","",VLOOKUP(Z30,'シフト記号表（勤務時間帯）'!$C$4:$K$35,9,FALSE)) ->  | AA31: =IF(AA30="","",VLOOKUP(AA30,'シフト記号表（勤務時間帯）'!$C$4:$K$35,9,FALSE)) ->  | AB31: =IF(AB30="","",VLOOKUP(AB30,'シフト記号表（勤務時間帯）'!$C$4:$K$35,9,FALSE)) ->  | AC31: =IF(AC30="","",VLOOKUP(AC30,'シフト記号表（勤務時間帯）'!$C$4:$K$35,9,FALSE)) ->  | AD31: =IF(AD30="","",VLOOKUP(AD30,'シフト記号表（勤務時間帯）'!$C$4:$K$35,9,FALSE)) ->  | AE31: =IF(AE30="","",VLOOKUP(AE30,'シフト記号表（勤務時間帯）'!$C$4:$K$35,9,FALSE)) ->  | AF31: =IF(AF30="","",VLOOKUP(AF30,'シフト記号表（勤務時間帯）'!$C$4:$K$35,9,FALSE)) ->  | AG31: =IF(AG30="","",VLOOKUP(AG30,'シフト記号表（勤務時間帯）'!$C$4:$K$35,9,FALSE)) ->  | AH31: =IF(AH30="","",VLOOKUP(AH30,'シフト記号表（勤務時間帯）'!$C$4:$K$35,9,FALSE)) ->  | AI31: =IF(AI30="","",VLOOKUP(AI30,'シフト記号表（勤務時間帯）'!$C$4:$K$35,9,FALSE)) ->  | AJ31: =IF(AJ30="","",VLOOKUP(AJ30,'シフト記号表（勤務時間帯）'!$C$4:$K$35,9,FALSE)) ->  | AK31: =IF(AK30="","",VLOOKUP(AK30,'シフト記号表（勤務時間帯）'!$C$4:$K$35,9,FALSE)) ->  | AL31: =IF(AL30="","",VLOOKUP(AL30,'シフト記号表（勤務時間帯）'!$C$4:$K$35,9,FALSE)) ->  | AM31: =IF(AM30="","",VLOOKUP(AM30,'シフト記号表（勤務時間帯）'!$C$4:$K$35,9,FALSE)) ->  | AN31: =IF(AN30="","",VLOOKUP(AN30,'シフト記号表（勤務時間帯）'!$C$4:$K$35,9,FALSE)) ->  | AO31: =IF(AO30="","",VLOOKUP(AO30,'シフト記号表（勤務時間帯）'!$C$4:$K$35,9,FALSE)) ->  | AP31: =IF(AP30="","",VLOOKUP(AP30,'シフト記号表（勤務時間帯）'!$C$4:$K$35,9,FALSE)) ->  | AQ31: =IF(AQ30="","",VLOOKUP(AQ30,'シフト記号表（勤務時間帯）'!$C$4:$K$35,9,FALSE)) ->  | AR31: =IF(AR30="","",VLOOKUP(AR30,'シフト記号表（勤務時間帯）'!$C$4:$K$35,9,FALSE)) ->  | AS31: =IF(AS30="","",VLOOKUP(AS30,'シフト記号表（勤務時間帯）'!$C$4:$K$35,9,FALSE)) ->  | AT31: =IF(AT30="","",VLOOKUP(AT30,'シフト記号表（勤務時間帯）'!$C$4:$K$35,9,FALSE)) ->  | AU31: =IF(AU30="","",VLOOKUP(AU30,'シフト記号表（勤務時間帯）'!$C$4:$K$35,9,FALSE)) ->  | AV31: =IF(AV30="","",VLOOKUP(AV30,'シフト記号表（勤務時間帯）'!$C$4:$K$35,9,FALSE)) ->  | AW31: =IF(AW30="","",VLOOKUP(AW30,'シフト記号表（勤務時間帯）'!$C$4:$K$35,9,FALSE)) -> 
B32: =B30+1 -> 9 | P32: シフト記号 | AX32: =IF($BC$3="計画",SUM(S33:AT33),IF($BC$3="実績",SUM(S33:AW33),"")) -> 0 | AZ32: =IF($BC$3="計画",AX32/4,IF($BC$3="実績",AX32/($BA$7/7),"")) -> 0
P33: 勤務時間数 | S33: =IF(S32="","",VLOOKUP(S32,'シフト記号表（勤務時間帯）'!$C$4:$K$35,9,FALSE)) ->  | T33: =IF(T32="","",VLOOKUP(T32,'シフト記号表（勤務時間帯）'!$C$4:$K$35,9,FALSE)) ->  | U33: =IF(U32="","",VLOOKUP(U32,'シフト記号表（勤務時間帯）'!$C$4:$K$35,9,FALSE)) ->  | V33: =IF(V32="","",VLOOKUP(V32,'シフト記号表（勤務時間帯）'!$C$4:$K$35,9,FALSE)) ->  | W33: =IF(W32="","",VLOOKUP(W32,'シフト記号表（勤務時間帯）'!$C$4:$K$35,9,FALSE)) ->  | X33: =IF(X32="","",VLOOKUP(X32,'シフト記号表（勤務時間帯）'!$C$4:$K$35,9,FALSE)) ->  | Y33: =IF(Y32="","",VLOOKUP(Y32,'シフト記号表（勤務時間帯）'!$C$4:$K$35,9,FALSE)) ->  | Z33: =IF(Z32="","",VLOOKUP(Z32,'シフト記号表（勤務時間帯）'!$C$4:$K$35,9,FALSE)) ->  | AA33: =IF(AA32="","",VLOOKUP(AA32,'シフト記号表（勤務時間帯）'!$C$4:$K$35,9,FALSE)) ->  | AB33: =IF(AB32="","",VLOOKUP(AB32,'シフト記号表（勤務時間帯）'!$C$4:$K$35,9,FALSE)) ->  | AC33: =IF(AC32="","",VLOOKUP(AC32,'シフト記号表（勤務時間帯）'!$C$4:$K$35,9,FALSE)) ->  | AD33: =IF(AD32="","",VLOOKUP(AD32,'シフト記号表（勤務時間帯）'!$C$4:$K$35,9,FALSE)) ->  | AE33: =IF(AE32="","",VLOOKUP(AE32,'シフト記号表（勤務時間帯）'!$C$4:$K$35,9,FALSE)) ->  | AF33: =IF(AF32="","",VLOOKUP(AF32,'シフト記号表（勤務時間帯）'!$C$4:$K$35,9,FALSE)) ->  | AG33: =IF(AG32="","",VLOOKUP(AG32,'シフト記号表（勤務時間帯）'!$C$4:$K$35,9,FALSE)) ->  | AH33: =IF(AH32="","",VLOOKUP(AH32,'シフト記号表（勤務時間帯）'!$C$4:$K$35,9,FALSE)) ->  | AI33: =IF(AI32="","",VLOOKUP(AI32,'シフト記号表（勤務時間帯）'!$C$4:$K$35,9,FALSE)) ->  | AJ33: =IF(AJ32="","",VLOOKUP(AJ32,'シフト記号表（勤務時間帯）'!$C$4:$K$35,9,FALSE)) ->  | AK33: =IF(AK32="","",VLOOKUP(AK32,'シフト記号表（勤務時間帯）'!$C$4:$K$35,9,FALSE)) ->  | AL33: =IF(AL32="","",VLOOKUP(AL32,'シフト記号表（勤務時間帯）'!$C$4:$K$35,9,FALSE)) ->  | AM33: =IF(AM32="","",VLOOKUP(AM32,'シフト記号表（勤務時間帯）'!$C$4:$K$35,9,FALSE)) ->  | AN33: =IF(AN32="","",VLOOKUP(AN32,'シフト記号表（勤務時間帯）'!$C$4:$K$35,9,FALSE)) ->  | AO33: =IF(AO32="","",VLOOKUP(AO32,'シフト記号表（勤務時間帯）'!$C$4:$K$35,9,FALSE)) ->  | AP33: =IF(AP32="","",VLOOKUP(AP32,'シフト記号表（勤務時間帯）'!$C$4:$K$35,9,FALSE)) ->  | AQ33: =IF(AQ32="","",VLOOKUP(AQ32,'シフト記号表（勤務時間帯）'!$C$4:$K$35,9,FALSE)) ->  | AR33: =IF(AR32="","",VLOOKUP(AR32,'シフト記号表（勤務時間帯）'!$C$4:$K$35,9,FALSE)) ->  | AS33: =IF(AS32="","",VLOOKUP(AS32,'シフト記号表（勤務時間帯）'!$C$4:$K$35,9,FALSE)) ->  | AT33: =IF(AT32="","",VLOOKUP(AT32,'シフト記号表（勤務時間帯）'!$C$4:$K$35,9,FALSE)) ->  | AU33: =IF(AU32="","",VLOOKUP(AU32,'シフト記号表（勤務時間帯）'!$C$4:$K$35,9,FALSE)) ->  | AV33: =IF(AV32="","",VLOOKUP(AV32,'シフト記号表（勤務時間帯）'!$C$4:$K$35,9,FALSE)) ->  | AW33: =IF(AW32="","",VLOOKUP(AW32,'シフト記号表（勤務時間帯）'!$C$4:$K$35,9,FALSE)) -> 
B34: =B32+1 -> 10 | P34: シフト記号 | AX34: =IF($BC$3="計画",SUM(S35:AT35),IF($BC$3="実績",SUM(S35:AW35),"")) -> 0 | AZ34: =IF($BC$3="計画",AX34/4,IF($BC$3="実績",AX34/($BA$7/7),"")) -> 0
P35: 勤務時間数 | S35: =IF(S34="","",VLOOKUP(S34,'シフト記号表（勤務時間帯）'!$C$4:$K$35,9,FALSE)) ->  | T35: =IF(T34="","",VLOOKUP(T34,'シフト記号表（勤務時間帯）'!$C$4:$K$35,9,FALSE)) ->  | U35: =IF(U34="","",VLOOKUP(U34,'シフト記号表（勤務時間帯）'!$C$4:$K$35,9,FALSE)) ->  | V35: =IF(V34="","",VLOOKUP(V34,'シフト記号表（勤務時間帯）'!$C$4:$K$35,9,FALSE)) ->  | W35: =IF(W34="","",VLOOKUP(W34,'シフト記号表（勤務時間帯）'!$C$4:$K$35,9,FALSE)) ->  | X35: =IF(X34="","",VLOOKUP(X34,'シフト記号表（勤務時間帯）'!$C$4:$K$35,9,FALSE)) ->  | Y35: =IF(Y34="","",VLOOKUP(Y34,'シフト記号表（勤務時間帯）'!$C$4:$K$35,9,FALSE)) ->  | Z35: =IF(Z34="","",VLOOKUP(Z34,'シフト記号表（勤務時間帯）'!$C$4:$K$35,9,FALSE)) ->  | AA35: =IF(AA34="","",VLOOKUP(AA34,'シフト記号表（勤務時間帯）'!$C$4:$K$35,9,FALSE)) ->  | AB35: =IF(AB34="","",VLOOKUP(AB34,'シフト記号表（勤務時間帯）'!$C$4:$K$35,9,FALSE)) ->  | AC35: =IF(AC34="","",VLOOKUP(AC34,'シフト記号表（勤務時間帯）'!$C$4:$K$35,9,FALSE)) ->  | AD35: =IF(AD34="","",VLOOKUP(AD34,'シフト記号表（勤務時間帯）'!$C$4:$K$35,9,FALSE)) ->  | AE35: =IF(AE34="","",VLOOKUP(AE34,'シフト記号表（勤務時間帯）'!$C$4:$K$35,9,FALSE)) ->  | AF35: =IF(AF34="","",VLOOKUP(AF34,'シフト記号表（勤務時間帯）'!$C$4:$K$35,9,FALSE)) ->  | AG35: =IF(AG34="","",VLOOKUP(AG34,'シフト記号表（勤務時間帯）'!$C$4:$K$35,9,FALSE)) ->  | AH35: =IF(AH34="","",VLOOKUP(AH34,'シフト記号表（勤務時間帯）'!$C$4:$K$35,9,FALSE)) ->  | AI35: =IF(AI34="","",VLOOKUP(AI34,'シフト記号表（勤務時間帯）'!$C$4:$K$35,9,FALSE)) ->  | AJ35: =IF(AJ34="","",VLOOKUP(AJ34,'シフト記号表（勤務時間帯）'!$C$4:$K$35,9,FALSE)) ->  | AK35: =IF(AK34="","",VLOOKUP(AK34,'シフト記号表（勤務時間帯）'!$C$4:$K$35,9,FALSE)) ->  | AL35: =IF(AL34="","",VLOOKUP(AL34,'シフト記号表（勤務時間帯）'!$C$4:$K$35,9,FALSE)) ->  | AM35: =IF(AM34="","",VLOOKUP(AM34,'シフト記号表（勤務時間帯）'!$C$4:$K$35,9,FALSE)) ->  | AN35: =IF(AN34="","",VLOOKUP(AN34,'シフト記号表（勤務時間帯）'!$C$4:$K$35,9,FALSE)) ->  | AO35: =IF(AO34="","",VLOOKUP(AO34,'シフト記号表（勤務時間帯）'!$C$4:$K$35,9,FALSE)) ->  | AP35: =IF(AP34="","",VLOOKUP(AP34,'シフト記号表（勤務時間帯）'!$C$4:$K$35,9,FALSE)) ->  | AQ35: =IF(AQ34="","",VLOOKUP(AQ34,'シフト記号表（勤務時間帯）'!$C$4:$K$35,9,FALSE)) ->  | AR35: =IF(AR34="","",VLOOKUP(AR34,'シフト記号表（勤務時間帯）'!$C$4:$K$35,9,FALSE)) ->  | AS35: =IF(AS34="","",VLOOKUP(AS34,'シフト記号表（勤務時間帯）'!$C$4:$K$35,9,FALSE)) ->  | AT35: =IF(AT34="","",VLOOKUP(AT34,'シフト記号表（勤務時間帯）'!$C$4:$K$35,9,FALSE)) ->  | AU35: =IF(AU34="","",VLOOKUP(AU34,'シフト記号表（勤務時間帯）'!$C$4:$K$35,9,FALSE)) ->  | AV35: =IF(AV34="","",VLOOKUP(AV34,'シフト記号表（勤務時間帯）'!$C$4:$K$35,9,FALSE)) ->  | AW35: =IF(AW34="","",VLOOKUP(AW34,'シフト記号表（勤務時間帯）'!$C$4:$K$35,9,FALSE)) -> 
B36: 11 | P36: シフト記号 | AX36: =IF($BC$3="計画",SUM(S37:AT37),IF($BC$3="実績",SUM(S37:AW37),"")) -> 0 | AZ36: =IF($BC$3="計画",AX36/4,IF($BC$3="実績",AX36/($BA$7/7),"")) -> 0
P37: 勤務時間数 | S37: =IF(S36="","",VLOOKUP(S36,'シフト記号表（勤務時間帯）'!$C$4:$K$35,9,FALSE)) ->  | T37: =IF(T36="","",VLOOKUP(T36,'シフト記号表（勤務時間帯）'!$C$4:$K$35,9,FALSE)) ->  | U37: =IF(U36="","",VLOOKUP(U36,'シフト記号表（勤務時間帯）'!$C$4:$K$35,9,FALSE)) ->  | V37: =IF(V36="","",VLOOKUP(V36,'シフト記号表（勤務時間帯）'!$C$4:$K$35,9,FALSE)) ->  | W37: =IF(W36="","",VLOOKUP(W36,'シフト記号表（勤務時間帯）'!$C$4:$K$35,9,FALSE)) ->  | X37: =IF(X36="","",VLOOKUP(X36,'シフト記号表（勤務時間帯）'!$C$4:$K$35,9,FALSE)) ->  | Y37: =IF(Y36="","",VLOOKUP(Y36,'シフト記号表（勤務時間帯）'!$C$4:$K$35,9,FALSE)) ->  | Z37: =IF(Z36="","",VLOOKUP(Z36,'シフト記号表（勤務時間帯）'!$C$4:$K$35,9,FALSE)) ->  | AA37: =IF(AA36="","",VLOOKUP(AA36,'シフト記号表（勤務時間帯）'!$C$4:$K$35,9,FALSE)) ->  | AB37: =IF(AB36="","",VLOOKUP(AB36,'シフト記号表（勤務時間帯）'!$C$4:$K$35,9,FALSE)) ->  | AC37: =IF(AC36="","",VLOOKUP(AC36,'シフト記号表（勤務時間帯）'!$C$4:$K$35,9,FALSE)) ->  | AD37: =IF(AD36="","",VLOOKUP(AD36,'シフト記号表（勤務時間帯）'!$C$4:$K$35,9,FALSE)) ->  | AE37: =IF(AE36="","",VLOOKUP(AE36,'シフト記号表（勤務時間帯）'!$C$4:$K$35,9,FALSE)) ->  | AF37: =IF(AF36="","",VLOOKUP(AF36,'シフト記号表（勤務時間帯）'!$C$4:$K$35,9,FALSE)) ->  | AG37: =IF(AG36="","",VLOOKUP(AG36,'シフト記号表（勤務時間帯）'!$C$4:$K$35,9,FALSE)) ->  | AH37: =IF(AH36="","",VLOOKUP(AH36,'シフト記号表（勤務時間帯）'!$C$4:$K$35,9,FALSE)) ->  | AI37: =IF(AI36="","",VLOOKUP(AI36,'シフト記号表（勤務時間帯）'!$C$4:$K$35,9,FALSE)) ->  | AJ37: =IF(AJ36="","",VLOOKUP(AJ36,'シフト記号表（勤務時間帯）'!$C$4:$K$35,9,FALSE)) ->  | AK37: =IF(AK36="","",VLOOKUP(AK36,'シフト記号表（勤務時間帯）'!$C$4:$K$35,9,FALSE)) ->  | AL37: =IF(AL36="","",VLOOKUP(AL36,'シフト記号表（勤務時間帯）'!$C$4:$K$35,9,FALSE)) ->  | AM37: =IF(AM36="","",VLOOKUP(AM36,'シフト記号表（勤務時間帯）'!$C$4:$K$35,9,FALSE)) ->  | AN37: =IF(AN36="","",VLOOKUP(AN36,'シフト記号表（勤務時間帯）'!$C$4:$K$35,9,FALSE)) ->  | AO37: =IF(AO36="","",VLOOKUP(AO36,'シフト記号表（勤務時間帯）'!$C$4:$K$35,9,FALSE)) ->  | AP37: =IF(AP36="","",VLOOKUP(AP36,'シフト記号表（勤務時間帯）'!$C$4:$K$35,9,FALSE)) ->  | AQ37: =IF(AQ36="","",VLOOKUP(AQ36,'シフト記号表（勤務時間帯）'!$C$4:$K$35,9,FALSE)) ->  | AR37: =IF(AR36="","",VLOOKUP(AR36,'シフト記号表（勤務時間帯）'!$C$4:$K$35,9,FALSE)) ->  | AS37: =IF(AS36="","",VLOOKUP(AS36,'シフト記号表（勤務時間帯）'!$C$4:$K$35,9,FALSE)) ->  | AT37: =IF(AT36="","",VLOOKUP(AT36,'シフト記号表（勤務時間帯）'!$C$4:$K$35,9,FALSE)) ->  | AU37: =IF(AU36="","",VLOOKUP(AU36,'シフト記号表（勤務時間帯）'!$C$4:$K$35,9,FALSE)) ->  | AV37: =IF(AV36="","",VLOOKUP(AV36,'シフト記号表（勤務時間帯）'!$C$4:$K$35,9,FALSE)) ->  | AW37: =IF(AW36="","",VLOOKUP(AW36,'シフト記号表（勤務時間帯）'!$C$4:$K$35,9,FALSE)) -> 
B38: =B36+1 -> 12 | P38: シフト記号 | AX38: =IF($BC$3="計画",SUM(S39:AT39),IF($BC$3="実績",SUM(S39:AW39),"")) -> 0 | AZ38: =IF($BC$3="計画",AX38/4,IF($BC$3="実績",AX38/($BA$7/7),"")) -> 0
P39: 勤務時間数 | S39: =IF(S38="","",VLOOKUP(S38,'シフト記号表（勤務時間帯）'!$C$4:$K$35,9,FALSE)) ->  | T39: =IF(T38="","",VLOOKUP(T38,'シフト記号表（勤務時間帯）'!$C$4:$K$35,9,FALSE)) ->  | U39: =IF(U38="","",VLOOKUP(U38,'シフト記号表（勤務時間帯）'!$C$4:$K$35,9,FALSE)) ->  | V39: =IF(V38="","",VLOOKUP(V38,'シフト記号表（勤務時間帯）'!$C$4:$K$35,9,FALSE)) ->  | W39: =IF(W38="","",VLOOKUP(W38,'シフト記号表（勤務時間帯）'!$C$4:$K$35,9,FALSE)) ->  | X39: =IF(X38="","",VLOOKUP(X38,'シフト記号表（勤務時間帯）'!$C$4:$K$35,9,FALSE)) ->  | Y39: =IF(Y38="","",VLOOKUP(Y38,'シフト記号表（勤務時間帯）'!$C$4:$K$35,9,FALSE)) ->  | Z39: =IF(Z38="","",VLOOKUP(Z38,'シフト記号表（勤務時間帯）'!$C$4:$K$35,9,FALSE)) ->  | AA39: =IF(AA38="","",VLOOKUP(AA38,'シフト記号表（勤務時間帯）'!$C$4:$K$35,9,FALSE)) ->  | AB39: =IF(AB38="","",VLOOKUP(AB38,'シフト記号表（勤務時間帯）'!$C$4:$K$35,9,FALSE)) ->  | AC39: =IF(AC38="","",VLOOKUP(AC38,'シフト記号表（勤務時間帯）'!$C$4:$K$35,9,FALSE)) ->  | AD39: =IF(AD38="","",VLOOKUP(AD38,'シフト記号表（勤務時間帯）'!$C$4:$K$35,9,FALSE)) ->  | AE39: =IF(AE38="","",VLOOKUP(AE38,'シフト記号表（勤務時間帯）'!$C$4:$K$35,9,FALSE)) ->  | AF39: =IF(AF38="","",VLOOKUP(AF38,'シフト記号表（勤務時間帯）'!$C$4:$K$35,9,FALSE)) ->  | AG39: =IF(AG38="","",VLOOKUP(AG38,'シフト記号表（勤務時間帯）'!$C$4:$K$35,9,FALSE)) ->  | AH39: =IF(AH38="","",VLOOKUP(AH38,'シフト記号表（勤務時間帯）'!$C$4:$K$35,9,FALSE)) ->  | AI39: =IF(AI38="","",VLOOKUP(AI38,'シフト記号表（勤務時間帯）'!$C$4:$K$35,9,FALSE)) ->  | AJ39: =IF(AJ38="","",VLOOKUP(AJ38,'シフト記号表（勤務時間帯）'!$C$4:$K$35,9,FALSE)) ->  | AK39: =IF(AK38="","",VLOOKUP(AK38,'シフト記号表（勤務時間帯）'!$C$4:$K$35,9,FALSE)) ->  | AL39: =IF(AL38="","",VLOOKUP(AL38,'シフト記号表（勤務時間帯）'!$C$4:$K$35,9,FALSE)) ->  | AM39: =IF(AM38="","",VLOOKUP(AM38,'シフト記号表（勤務時間帯）'!$C$4:$K$35,9,FALSE)) ->  | AN39: =IF(AN38="","",VLOOKUP(AN38,'シフト記号表（勤務時間帯）'!$C$4:$K$35,9,FALSE)) ->  | AO39: =IF(AO38="","",VLOOKUP(AO38,'シフト記号表（勤務時間帯）'!$C$4:$K$35,9,FALSE)) ->  | AP39: =IF(AP38="","",VLOOKUP(AP38,'シフト記号表（勤務時間帯）'!$C$4:$K$35,9,FALSE)) ->  | AQ39: =IF(AQ38="","",VLOOKUP(AQ38,'シフト記号表（勤務時間帯）'!$C$4:$K$35,9,FALSE)) ->  | AR39: =IF(AR38="","",VLOOKUP(AR38,'シフト記号表（勤務時間帯）'!$C$4:$K$35,9,FALSE)) ->  | AS39: =IF(AS38="","",VLOOKUP(AS38,'シフト記号表（勤務時間帯）'!$C$4:$K$35,9,FALSE)) ->  | AT39: =IF(AT38="","",VLOOKUP(AT38,'シフト記号表（勤務時間帯）'!$C$4:$K$35,9,FALSE)) ->  | AU39: =IF(AU38="","",VLOOKUP(AU38,'シフト記号表（勤務時間帯）'!$C$4:$K$35,9,FALSE)) ->  | AV39: =IF(AV38="","",VLOOKUP(AV38,'シフト記号表（勤務時間帯）'!$C$4:$K$35,9,FALSE)) ->  | AW39: =IF(AW38="","",VLOOKUP(AW38,'シフト記号表（勤務時間帯）'!$C$4:$K$35,9,FALSE)) -> 
B40: =B38+1 -> 13 | P40: シフト記号 | AX40: =IF($BC$3="計画",SUM(S41:AT41),IF($BC$3="実績",SUM(S41:AW41),"")) -> 0 | AZ40: =IF($BC$3="計画",AX40/4,IF($BC$3="実績",AX40/($BA$7/7),"")) -> 0
P41: 勤務時間数 | S41: =IF(S40="","",VLOOKUP(S40,'シフト記号表（勤務時間帯）'!$C$4:$K$35,9,FALSE)) ->  | T41: =IF(T40="","",VLOOKUP(T40,'シフト記号表（勤務時間帯）'!$C$4:$K$35,9,FALSE)) ->  | U41: =IF(U40="","",VLOOKUP(U40,'シフト記号表（勤務時間帯）'!$C$4:$K$35,9,FALSE)) ->  | V41: =IF(V40="","",VLOOKUP(V40,'シフト記号表（勤務時間帯）'!$C$4:$K$35,9,FALSE)) ->  | W41: =IF(W40="","",VLOOKUP(W40,'シフト記号表（勤務時間帯）'!$C$4:$K$35,9,FALSE)) ->  | X41: =IF(X40="","",VLOOKUP(X40,'シフト記号表（勤務時間帯）'!$C$4:$K$35,9,FALSE)) ->  | Y41: =IF(Y40="","",VLOOKUP(Y40,'シフト記号表（勤務時間帯）'!$C$4:$K$35,9,FALSE)) ->  | Z41: =IF(Z40="","",VLOOKUP(Z40,'シフト記号表（勤務時間帯）'!$C$4:$K$35,9,FALSE)) ->  | AA41: =IF(AA40="","",VLOOKUP(AA40,'シフト記号表（勤務時間帯）'!$C$4:$K$35,9,FALSE)) ->  | AB41: =IF(AB40="","",VLOOKUP(AB40,'シフト記号表（勤務時間帯）'!$C$4:$K$35,9,FALSE)) ->  | AC41: =IF(AC40="","",VLOOKUP(AC40,'シフト記号表（勤務時間帯）'!$C$4:$K$35,9,FALSE)) ->  | AD41: =IF(AD40="","",VLOOKUP(AD40,'シフト記号表（勤務時間帯）'!$C$4:$K$35,9,FALSE)) ->  | AE41: =IF(AE40="","",VLOOKUP(AE40,'シフト記号表（勤務時間帯）'!$C$4:$K$35,9,FALSE)) ->  | AF41: =IF(AF40="","",VLOOKUP(AF40,'シフト記号表（勤務時間帯）'!$C$4:$K$35,9,FALSE)) ->  | AG41: =IF(AG40="","",VLOOKUP(AG40,'シフト記号表（勤務時間帯）'!$C$4:$K$35,9,FALSE)) ->  | AH41: =IF(AH40="","",VLOOKUP(AH40,'シフト記号表（勤務時間帯）'!$C$4:$K$35,9,FALSE)) ->  | AI41: =IF(AI40="","",VLOOKUP(AI40,'シフト記号表（勤務時間帯）'!$C$4:$K$35,9,FALSE)) ->  | AJ41: =IF(AJ40="","",VLOOKUP(AJ40,'シフト記号表（勤務時間帯）'!$C$4:$K$35,9,FALSE)) ->  | AK41: =IF(AK40="","",VLOOKUP(AK40,'シフト記号表（勤務時間帯）'!$C$4:$K$35,9,FALSE)) ->  | AL41: =IF(AL40="","",VLOOKUP(AL40,'シフト記号表（勤務時間帯）'!$C$4:$K$35,9,FALSE)) ->  | AM41: =IF(AM40="","",VLOOKUP(AM40,'シフト記号表（勤務時間帯）'!$C$4:$K$35,9,FALSE)) ->  | AN41: =IF(AN40="","",VLOOKUP(AN40,'シフト記号表（勤務時間帯）'!$C$4:$K$35,9,FALSE)) ->  | AO41: =IF(AO40="","",VLOOKUP(AO40,'シフト記号表（勤務時間帯）'!$C$4:$K$35,9,FALSE)) ->  | AP41: =IF(AP40="","",VLOOKUP(AP40,'シフト記号表（勤務時間帯）'!$C$4:$K$35,9,FALSE)) ->  | AQ41: =IF(AQ40="","",VLOOKUP(AQ40,'シフト記号表（勤務時間帯）'!$C$4:$K$35,9,FALSE)) ->  | AR41: =IF(AR40="","",VLOOKUP(AR40,'シフト記号表（勤務時間帯）'!$C$4:$K$35,9,FALSE)) ->  | AS41: =IF(AS40="","",VLOOKUP(AS40,'シフト記号表（勤務時間帯）'!$C$4:$K$35,9,FALSE)) ->  | AT41: =IF(AT40="","",VLOOKUP(AT40,'シフト記号表（勤務時間帯）'!$C$4:$K$35,9,FALSE)) ->  | AU41: =IF(AU40="","",VLOOKUP(AU40,'シフト記号表（勤務時間帯）'!$C$4:$K$35,9,FALSE)) ->  | AV41: =IF(AV40="","",VLOOKUP(AV40,'シフト記号表（勤務時間帯）'!$C$4:$K$35,9,FALSE)) ->  | AW41: =IF(AW40="","",VLOOKUP(AW40,'シフト記号表（勤務時間帯）'!$C$4:$K$35,9,FALSE)) -> 
B42: =B40+1 -> 14 | P42: シフト記号 | AX42: =IF($BC$3="計画",SUM(S43:AT43),IF($BC$3="実績",SUM(S43:AW43),"")) -> 0 | AZ42: =IF($BC$3="計画",AX42/4,IF($BC$3="実績",AX42/($BA$7/7),"")) -> 0
P43: 勤務時間数 | S43: =IF(S42="","",VLOOKUP(S42,'シフト記号表（勤務時間帯）'!$C$4:$K$35,9,FALSE)) ->  | T43: =IF(T42="","",VLOOKUP(T42,'シフト記号表（勤務時間帯）'!$C$4:$K$35,9,FALSE)) ->  | U43: =IF(U42="","",VLOOKUP(U42,'シフト記号表（勤務時間帯）'!$C$4:$K$35,9,FALSE)) ->  | V43: =IF(V42="","",VLOOKUP(V42,'シフト記号表（勤務時間帯）'!$C$4:$K$35,9,FALSE)) ->  | W43: =IF(W42="","",VLOOKUP(W42,'シフト記号表（勤務時間帯）'!$C$4:$K$35,9,FALSE)) ->  | X43: =IF(X42="","",VLOOKUP(X42,'シフト記号表（勤務時間帯）'!$C$4:$K$35,9,FALSE)) ->  | Y43: =IF(Y42="","",VLOOKUP(Y42,'シフト記号表（勤務時間帯）'!$C$4:$K$35,9,FALSE)) ->  | Z43: =IF(Z42="","",VLOOKUP(Z42,'シフト記号表（勤務時間帯）'!$C$4:$K$35,9,FALSE)) ->  | AA43: =IF(AA42="","",VLOOKUP(AA42,'シフト記号表（勤務時間帯）'!$C$4:$K$35,9,FALSE)) ->  | AB43: =IF(AB42="","",VLOOKUP(AB42,'シフト記号表（勤務時間帯）'!$C$4:$K$35,9,FALSE)) ->  | AC43: =IF(AC42="","",VLOOKUP(AC42,'シフト記号表（勤務時間帯）'!$C$4:$K$35,9,FALSE)) ->  | AD43: =IF(AD42="","",VLOOKUP(AD42,'シフト記号表（勤務時間帯）'!$C$4:$K$35,9,FALSE)) ->  | AE43: =IF(AE42="","",VLOOKUP(AE42,'シフト記号表（勤務時間帯）'!$C$4:$K$35,9,FALSE)) ->  | AF43: =IF(AF42="","",VLOOKUP(AF42,'シフト記号表（勤務時間帯）'!$C$4:$K$35,9,FALSE)) ->  | AG43: =IF(AG42="","",VLOOKUP(AG42,'シフト記号表（勤務時間帯）'!$C$4:$K$35,9,FALSE)) ->  | AH43: =IF(AH42="","",VLOOKUP(AH42,'シフト記号表（勤務時間帯）'!$C$4:$K$35,9,FALSE)) ->  | AI43: =IF(AI42="","",VLOOKUP(AI42,'シフト記号表（勤務時間帯）'!$C$4:$K$35,9,FALSE)) ->  | AJ43: =IF(AJ42="","",VLOOKUP(AJ42,'シフト記号表（勤務時間帯）'!$C$4:$K$35,9,FALSE)) ->  | AK43: =IF(AK42="","",VLOOKUP(AK42,'シフト記号表（勤務時間帯）'!$C$4:$K$35,9,FALSE)) ->  | AL43: =IF(AL42="","",VLOOKUP(AL42,'シフト記号表（勤務時間帯）'!$C$4:$K$35,9,FALSE)) ->  | AM43: =IF(AM42="","",VLOOKUP(AM42,'シフト記号表（勤務時間帯）'!$C$4:$K$35,9,FALSE)) ->  | AN43: =IF(AN42="","",VLOOKUP(AN42,'シフト記号表（勤務時間帯）'!$C$4:$K$35,9,FALSE)) ->  | AO43: =IF(AO42="","",VLOOKUP(AO42,'シフト記号表（勤務時間帯）'!$C$4:$K$35,9,FALSE)) ->  | AP43: =IF(AP42="","",VLOOKUP(AP42,'シフト記号表（勤務時間帯）'!$C$4:$K$35,9,FALSE)) ->  | AQ43: =IF(AQ42="","",VLOOKUP(AQ42,'シフト記号表（勤務時間帯）'!$C$4:$K$35,9,FALSE)) ->  | AR43: =IF(AR42="","",VLOOKUP(AR42,'シフト記号表（勤務時間帯）'!$C$4:$K$35,9,FALSE)) ->  | AS43: =IF(AS42="","",VLOOKUP(AS42,'シフト記号表（勤務時間帯）'!$C$4:$K$35,9,FALSE)) ->  | AT43: =IF(AT42="","",VLOOKUP(AT42,'シフト記号表（勤務時間帯）'!$C$4:$K$35,9,FALSE)) ->  | AU43: =IF(AU42="","",VLOOKUP(AU42,'シフト記号表（勤務時間帯）'!$C$4:$K$35,9,FALSE)) ->  | AV43: =IF(AV42="","",VLOOKUP(AV42,'シフト記号表（勤務時間帯）'!$C$4:$K$35,9,FALSE)) ->  | AW43: =IF(AW42="","",VLOOKUP(AW42,'シフト記号表（勤務時間帯）'!$C$4:$K$35,9,FALSE)) -> 
B44: =B42+1 -> 15 | P44: シフト記号 | AX44: =IF($BC$3="計画",SUM(S45:AT45),IF($BC$3="実績",SUM(S45:AW45),"")) -> 0 | AZ44: =IF($BC$3="計画",AX44/4,IF($BC$3="実績",AX44/($BA$7/7),"")) -> 0
P45: 勤務時間数 | S45: =IF(S44="","",VLOOKUP(S44,'シフト記号表（勤務時間帯）'!$C$4:$K$35,9,FALSE)) ->  | T45: =IF(T44="","",VLOOKUP(T44,'シフト記号表（勤務時間帯）'!$C$4:$K$35,9,FALSE)) ->  | U45: =IF(U44="","",VLOOKUP(U44,'シフト記号表（勤務時間帯）'!$C$4:$K$35,9,FALSE)) ->  | V45: =IF(V44="","",VLOOKUP(V44,'シフト記号表（勤務時間帯）'!$C$4:$K$35,9,FALSE)) ->  | W45: =IF(W44="","",VLOOKUP(W44,'シフト記号表（勤務時間帯）'!$C$4:$K$35,9,FALSE)) ->  | X45: =IF(X44="","",VLOOKUP(X44,'シフト記号表（勤務時間帯）'!$C$4:$K$35,9,FALSE)) ->  | Y45: =IF(Y44="","",VLOOKUP(Y44,'シフト記号表（勤務時間帯）'!$C$4:$K$35,9,FALSE)) ->  | Z45: =IF(Z44="","",VLOOKUP(Z44,'シフト記号表（勤務時間帯）'!$C$4:$K$35,9,FALSE)) ->  | AA45: =IF(AA44="","",VLOOKUP(AA44,'シフト記号表（勤務時間帯）'!$C$4:$K$35,9,FALSE)) ->  | AB45: =IF(AB44="","",VLOOKUP(AB44,'シフト記号表（勤務時間帯）'!$C$4:$K$35,9,FALSE)) ->  | AC45: =IF(AC44="","",VLOOKUP(AC44,'シフト記号表（勤務時間帯）'!$C$4:$K$35,9,FALSE)) ->  | AD45: =IF(AD44="","",VLOOKUP(AD44,'シフト記号表（勤務時間帯）'!$C$4:$K$35,9,FALSE)) ->  | AE45: =IF(AE44="","",VLOOKUP(AE44,'シフト記号表（勤務時間帯）'!$C$4:$K$35,9,FALSE)) ->  | AF45: =IF(AF44="","",VLOOKUP(AF44,'シフト記号表（勤務時間帯）'!$C$4:$K$35,9,FALSE)) ->  | AG45: =IF(AG44="","",VLOOKUP(AG44,'シフト記号表（勤務時間帯）'!$C$4:$K$35,9,FALSE)) ->  | AH45: =IF(AH44="","",VLOOKUP(AH44,'シフト記号表（勤務時間帯）'!$C$4:$K$35,9,FALSE)) ->  | AI45: =IF(AI44="","",VLOOKUP(AI44,'シフト記号表（勤務時間帯）'!$C$4:$K$35,9,FALSE)) ->  | AJ45: =IF(AJ44="","",VLOOKUP(AJ44,'シフト記号表（勤務時間帯）'!$C$4:$K$35,9,FALSE)) ->  | AK45: =IF(AK44="","",VLOOKUP(AK44,'シフト記号表（勤務時間帯）'!$C$4:$K$35,9,FALSE)) ->  | AL45: =IF(AL44="","",VLOOKUP(AL44,'シフト記号表（勤務時間帯）'!$C$4:$K$35,9,FALSE)) ->  | AM45: =IF(AM44="","",VLOOKUP(AM44,'シフト記号表（勤務時間帯）'!$C$4:$K$35,9,FALSE)) ->  | AN45: =IF(AN44="","",VLOOKUP(AN44,'シフト記号表（勤務時間帯）'!$C$4:$K$35,9,FALSE)) ->  | AO45: =IF(AO44="","",VLOOKUP(AO44,'シフト記号表（勤務時間帯）'!$C$4:$K$35,9,FALSE)) ->  | AP45: =IF(AP44="","",VLOOKUP(AP44,'シフト記号表（勤務時間帯）'!$C$4:$K$35,9,FALSE)) ->  | AQ45: =IF(AQ44="","",VLOOKUP(AQ44,'シフト記号表（勤務時間帯）'!$C$4:$K$35,9,FALSE)) ->  | AR45: =IF(AR44="","",VLOOKUP(AR44,'シフト記号表（勤務時間帯）'!$C$4:$K$35,9,FALSE)) ->  | AS45: =IF(AS44="","",VLOOKUP(AS44,'シフト記号表（勤務時間帯）'!$C$4:$K$35,9,FALSE)) ->  | AT45: =IF(AT44="","",VLOOKUP(AT44,'シフト記号表（勤務時間帯）'!$C$4:$K$35,9,FALSE)) ->  | AU45: =IF(AU44="","",VLOOKUP(AU44,'シフト記号表（勤務時間帯）'!$C$4:$K$35,9,FALSE)) ->  | AV45: =IF(AV44="","",VLOOKUP(AV44,'シフト記号表（勤務時間帯）'!$C$4:$K$35,9,FALSE)) ->  | AW45: =IF(AW44="","",VLOOKUP(AW44,'シフト記号表（勤務時間帯）'!$C$4:$K$35,9,FALSE)) -> 
B46: =B44+1 -> 16 | P46: シフト記号 | AX46: =IF($BC$3="計画",SUM(S47:AT47),IF($BC$3="実績",SUM(S47:AW47),"")) -> 0 | AZ46: =IF($BC$3="計画",AX46/4,IF($BC$3="実績",AX46/($BA$7/7),"")) -> 0
P47: 勤務時間数 | S47: =IF(S46="","",VLOOKUP(S46,'シフト記号表（勤務時間帯）'!$C$4:$K$35,9,FALSE)) ->  | T47: =IF(T46="","",VLOOKUP(T46,'シフト記号表（勤務時間帯）'!$C$4:$K$35,9,FALSE)) ->  | U47: =IF(U46="","",VLOOKUP(U46,'シフト記号表（勤務時間帯）'!$C$4:$K$35,9,FALSE)) ->  | V47: =IF(V46="","",VLOOKUP(V46,'シフト記号表（勤務時間帯）'!$C$4:$K$35,9,FALSE)) ->  | W47: =IF(W46="","",VLOOKUP(W46,'シフト記号表（勤務時間帯）'!$C$4:$K$35,9,FALSE)) ->  | X47: =IF(X46="","",VLOOKUP(X46,'シフト記号表（勤務時間帯）'!$C$4:$K$35,9,FALSE)) ->  | Y47: =IF(Y46="","",VLOOKUP(Y46,'シフト記号表（勤務時間帯）'!$C$4:$K$35,9,FALSE)) ->  | Z47: =IF(Z46="","",VLOOKUP(Z46,'シフト記号表（勤務時間帯）'!$C$4:$K$35,9,FALSE)) ->  | AA47: =IF(AA46="","",VLOOKUP(AA46,'シフト記号表（勤務時間帯）'!$C$4:$K$35,9,FALSE)) ->  | AB47: =IF(AB46="","",VLOOKUP(AB46,'シフト記号表（勤務時間帯）'!$C$4:$K$35,9,FALSE)) ->  | AC47: =IF(AC46="","",VLOOKUP(AC46,'シフト記号表（勤務時間帯）'!$C$4:$K$35,9,FALSE)) ->  | AD47: =IF(AD46="","",VLOOKUP(AD46,'シフト記号表（勤務時間帯）'!$C$4:$K$35,9,FALSE)) ->  | AE47: =IF(AE46="","",VLOOKUP(AE46,'シフト記号表（勤務時間帯）'!$C$4:$K$35,9,FALSE)) ->  | AF47: =IF(AF46="","",VLOOKUP(AF46,'シフト記号表（勤務時間帯）'!$C$4:$K$35,9,FALSE)) ->  | AG47: =IF(AG46="","",VLOOKUP(AG46,'シフト記号表（勤務時間帯）'!$C$4:$K$35,9,FALSE)) ->  | AH47: =IF(AH46="","",VLOOKUP(AH46,'シフト記号表（勤務時間帯）'!$C$4:$K$35,9,FALSE)) ->  | AI47: =IF(AI46="","",VLOOKUP(AI46,'シフト記号表（勤務時間帯）'!$C$4:$K$35,9,FALSE)) ->  | AJ47: =IF(AJ46="","",VLOOKUP(AJ46,'シフト記号表（勤務時間帯）'!$C$4:$K$35,9,FALSE)) ->  | AK47: =IF(AK46="","",VLOOKUP(AK46,'シフト記号表（勤務時間帯）'!$C$4:$K$35,9,FALSE)) ->  | AL47: =IF(AL46="","",VLOOKUP(AL46,'シフト記号表（勤務時間帯）'!$C$4:$K$35,9,FALSE)) ->  | AM47: =IF(AM46="","",VLOOKUP(AM46,'シフト記号表（勤務時間帯）'!$C$4:$K$35,9,FALSE)) ->  | AN47: =IF(AN46="","",VLOOKUP(AN46,'シフト記号表（勤務時間帯）'!$C$4:$K$35,9,FALSE)) ->  | AO47: =IF(AO46="","",VLOOKUP(AO46,'シフト記号表（勤務時間帯）'!$C$4:$K$35,9,FALSE)) ->  | AP47: =IF(AP46="","",VLOOKUP(AP46,'シフト記号表（勤務時間帯）'!$C$4:$K$35,9,FALSE)) ->  | AQ47: =IF(AQ46="","",VLOOKUP(AQ46,'シフト記号表（勤務時間帯）'!$C$4:$K$35,9,FALSE)) ->  | AR47: =IF(AR46="","",VLOOKUP(AR46,'シフト記号表（勤務時間帯）'!$C$4:$K$35,9,FALSE)) ->  | AS47: =IF(AS46="","",VLOOKUP(AS46,'シフト記号表（勤務時間帯）'!$C$4:$K$35,9,FALSE)) ->  | AT47: =IF(AT46="","",VLOOKUP(AT46,'シフト記号表（勤務時間帯）'!$C$4:$K$35,9,FALSE)) ->  | AU47: =IF(AU46="","",VLOOKUP(AU46,'シフト記号表（勤務時間帯）'!$C$4:$K$35,9,FALSE)) ->  | AV47: =IF(AV46="","",VLOOKUP(AV46,'シフト記号表（勤務時間帯）'!$C$4:$K$35,9,FALSE)) ->  | AW47: =IF(AW46="","",VLOOKUP(AW46,'シフト記号表（勤務時間帯）'!$C$4:$K$35,9,FALSE)) -> 
B48: =B46+1 -> 17 | P48: シフト記号 | AX48: =IF($BC$3="計画",SUM(S49:AT49),IF($BC$3="実績",SUM(S49:AW49),"")) -> 0 | AZ48: =IF($BC$3="計画",AX48/4,IF($BC$3="実績",AX48/($BA$7/7),"")) -> 0
P49: 勤務時間数 | S49: =IF(S48="","",VLOOKUP(S48,'シフト記号表（勤務時間帯）'!$C$4:$K$35,9,FALSE)) ->  | T49: =IF(T48="","",VLOOKUP(T48,'シフト記号表（勤務時間帯）'!$C$4:$K$35,9,FALSE)) ->  | U49: =IF(U48="","",VLOOKUP(U48,'シフト記号表（勤務時間帯）'!$C$4:$K$35,9,FALSE)) ->  | V49: =IF(V48="","",VLOOKUP(V48,'シフト記号表（勤務時間帯）'!$C$4:$K$35,9,FALSE)) ->  | W49: =IF(W48="","",VLOOKUP(W48,'シフト記号表（勤務時間帯）'!$C$4:$K$35,9,FALSE)) ->  | X49: =IF(X48="","",VLOOKUP(X48,'シフト記号表（勤務時間帯）'!$C$4:$K$35,9,FALSE)) ->  | Y49: =IF(Y48="","",VLOOKUP(Y48,'シフト記号表（勤務時間帯）'!$C$4:$K$35,9,FALSE)) ->  | Z49: =IF(Z48="","",VLOOKUP(Z48,'シフト記号表（勤務時間帯）'!$C$4:$K$35,9,FALSE)) ->  | AA49: =IF(AA48="","",VLOOKUP(AA48,'シフト記号表（勤務時間帯）'!$C$4:$K$35,9,FALSE)) ->  | AB49: =IF(AB48="","",VLOOKUP(AB48,'シフト記号表（勤務時間帯）'!$C$4:$K$35,9,FALSE)) ->  | AC49: =IF(AC48="","",VLOOKUP(AC48,'シフト記号表（勤務時間帯）'!$C$4:$K$35,9,FALSE)) ->  | AD49: =IF(AD48="","",VLOOKUP(AD48,'シフト記号表（勤務時間帯）'!$C$4:$K$35,9,FALSE)) ->  | AE49: =IF(AE48="","",VLOOKUP(AE48,'シフト記号表（勤務時間帯）'!$C$4:$K$35,9,FALSE)) ->  | AF49: =IF(AF48="","",VLOOKUP(AF48,'シフト記号表（勤務時間帯）'!$C$4:$K$35,9,FALSE)) ->  | AG49: =IF(AG48="","",VLOOKUP(AG48,'シフト記号表（勤務時間帯）'!$C$4:$K$35,9,FALSE)) ->  | AH49: =IF(AH48="","",VLOOKUP(AH48,'シフト記号表（勤務時間帯）'!$C$4:$K$35,9,FALSE)) ->  | AI49: =IF(AI48="","",VLOOKUP(AI48,'シフト記号表（勤務時間帯）'!$C$4:$K$35,9,FALSE)) ->  | AJ49: =IF(AJ48="","",VLOOKUP(AJ48,'シフト記号表（勤務時間帯）'!$C$4:$K$35,9,FALSE)) ->  | AK49: =IF(AK48="","",VLOOKUP(AK48,'シフト記号表（勤務時間帯）'!$C$4:$K$35,9,FALSE)) ->  | AL49: =IF(AL48="","",VLOOKUP(AL48,'シフト記号表（勤務時間帯）'!$C$4:$K$35,9,FALSE)) ->  | AM49: =IF(AM48="","",VLOOKUP(AM48,'シフト記号表（勤務時間帯）'!$C$4:$K$35,9,FALSE)) ->  | AN49: =IF(AN48="","",VLOOKUP(AN48,'シフト記号表（勤務時間帯）'!$C$4:$K$35,9,FALSE)) ->  | AO49: =IF(AO48="","",VLOOKUP(AO48,'シフト記号表（勤務時間帯）'!$C$4:$K$35,9,FALSE)) ->  | AP49: =IF(AP48="","",VLOOKUP(AP48,'シフト記号表（勤務時間帯）'!$C$4:$K$35,9,FALSE)) ->  | AQ49: =IF(AQ48="","",VLOOKUP(AQ48,'シフト記号表（勤務時間帯）'!$C$4:$K$35,9,FALSE)) ->  | AR49: =IF(AR48="","",VLOOKUP(AR48,'シフト記号表（勤務時間帯）'!$C$4:$K$35,9,FALSE)) ->  | AS49: =IF(AS48="","",VLOOKUP(AS48,'シフト記号表（勤務時間帯）'!$C$4:$K$35,9,FALSE)) ->  | AT49: =IF(AT48="","",VLOOKUP(AT48,'シフト記号表（勤務時間帯）'!$C$4:$K$35,9,FALSE)) ->  | AU49: =IF(AU48="","",VLOOKUP(AU48,'シフト記号表（勤務時間帯）'!$C$4:$K$35,9,FALSE)) ->  | AV49: =IF(AV48="","",VLOOKUP(AV48,'シフト記号表（勤務時間帯）'!$C$4:$K$35,9,FALSE)) ->  | AW49: =IF(AW48="","",VLOOKUP(AW48,'シフト記号表（勤務時間帯）'!$C$4:$K$35,9,FALSE)) -> 
B50: =B48+1 -> 18 | P50: シフト記号 | AX50: =IF($BC$3="計画",SUM(S51:AT51),IF($BC$3="実績",SUM(S51:AW51),"")) -> 0 | AZ50: =IF($BC$3="計画",AX50/4,IF($BC$3="実績",AX50/($BA$7/7),"")) -> 0
P51: 勤務時間数 | S51: =IF(S50="","",VLOOKUP(S50,'シフト記号表（勤務時間帯）'!$C$4:$K$35,9,FALSE)) ->  | T51: =IF(T50="","",VLOOKUP(T50,'シフト記号表（勤務時間帯）'!$C$4:$K$35,9,FALSE)) ->  | U51: =IF(U50="","",VLOOKUP(U50,'シフト記号表（勤務時間帯）'!$C$4:$K$35,9,FALSE)) ->  | V51: =IF(V50="","",VLOOKUP(V50,'シフト記号表（勤務時間帯）'!$C$4:$K$35,9,FALSE)) ->  | W51: =IF(W50="","",VLOOKUP(W50,'シフト記号表（勤務時間帯）'!$C$4:$K$35,9,FALSE)) ->  | X51: =IF(X50="","",VLOOKUP(X50,'シフト記号表（勤務時間帯）'!$C$4:$K$35,9,FALSE)) ->  | Y51: =IF(Y50="","",VLOOKUP(Y50,'シフト記号表（勤務時間帯）'!$C$4:$K$35,9,FALSE)) ->  | Z51: =IF(Z50="","",VLOOKUP(Z50,'シフト記号表（勤務時間帯）'!$C$4:$K$35,9,FALSE)) ->  | AA51: =IF(AA50="","",VLOOKUP(AA50,'シフト記号表（勤務時間帯）'!$C$4:$K$35,9,FALSE)) ->  | AB51: =IF(AB50="","",VLOOKUP(AB50,'シフト記号表（勤務時間帯）'!$C$4:$K$35,9,FALSE)) ->  | AC51: =IF(AC50="","",VLOOKUP(AC50,'シフト記号表（勤務時間帯）'!$C$4:$K$35,9,FALSE)) ->  | AD51: =IF(AD50="","",VLOOKUP(AD50,'シフト記号表（勤務時間帯）'!$C$4:$K$35,9,FALSE)) ->  | AE51: =IF(AE50="","",VLOOKUP(AE50,'シフト記号表（勤務時間帯）'!$C$4:$K$35,9,FALSE)) ->  | AF51: =IF(AF50="","",VLOOKUP(AF50,'シフト記号表（勤務時間帯）'!$C$4:$K$35,9,FALSE)) ->  | AG51: =IF(AG50="","",VLOOKUP(AG50,'シフト記号表（勤務時間帯）'!$C$4:$K$35,9,FALSE)) ->  | AH51: =IF(AH50="","",VLOOKUP(AH50,'シフト記号表（勤務時間帯）'!$C$4:$K$35,9,FALSE)) ->  | AI51: =IF(AI50="","",VLOOKUP(AI50,'シフト記号表（勤務時間帯）'!$C$4:$K$35,9,FALSE)) ->  | AJ51: =IF(AJ50="","",VLOOKUP(AJ50,'シフト記号表（勤務時間帯）'!$C$4:$K$35,9,FALSE)) ->  | AK51: =IF(AK50="","",VLOOKUP(AK50,'シフト記号表（勤務時間帯）'!$C$4:$K$35,9,FALSE)) ->  | AL51: =IF(AL50="","",VLOOKUP(AL50,'シフト記号表（勤務時間帯）'!$C$4:$K$35,9,FALSE)) ->  | AM51: =IF(AM50="","",VLOOKUP(AM50,'シフト記号表（勤務時間帯）'!$C$4:$K$35,9,FALSE)) ->  | AN51: =IF(AN50="","",VLOOKUP(AN50,'シフト記号表（勤務時間帯）'!$C$4:$K$35,9,FALSE)) ->  | AO51: =IF(AO50="","",VLOOKUP(AO50,'シフト記号表（勤務時間帯）'!$C$4:$K$35,9,FALSE)) ->  | AP51: =IF(AP50="","",VLOOKUP(AP50,'シフト記号表（勤務時間帯）'!$C$4:$K$35,9,FALSE)) ->  | AQ51: =IF(AQ50="","",VLOOKUP(AQ50,'シフト記号表（勤務時間帯）'!$C$4:$K$35,9,FALSE)) ->  | AR51: =IF(AR50="","",VLOOKUP(AR50,'シフト記号表（勤務時間帯）'!$C$4:$K$35,9,FALSE)) ->  | AS51: =IF(AS50="","",VLOOKUP(AS50,'シフト記号表（勤務時間帯）'!$C$4:$K$35,9,FALSE)) ->  | AT51: =IF(AT50="","",VLOOKUP(AT50,'シフト記号表（勤務時間帯）'!$C$4:$K$35,9,FALSE)) ->  | AU51: =IF(AU50="","",VLOOKUP(AU50,'シフト記号表（勤務時間帯）'!$C$4:$K$35,9,FALSE)) ->  | AV51: =IF(AV50="","",VLOOKUP(AV50,'シフト記号表（勤務時間帯）'!$C$4:$K$35,9,FALSE)) ->  | AW51: =IF(AW50="","",VLOOKUP(AW50,'シフト記号表（勤務時間帯）'!$C$4:$K$35,9,FALSE)) -> 
AX52: =SUM(AX16:AY51) -> 0 | AZ52: =SUM(AZ16:BA51) -> 0
C54: (12)人員基準の確認（福祉用具専門相談員）
D56: 勤務形態 | F56: 勤務時間数合計 | K56: 常勤換算の対象時間数 | P56: 常勤換算方法対象外の
F57: 当月合計 | H57: 週平均 | K57: 当月合計 | M57: 週平均 | P57: 常勤の従業者の人数
D58: A | F58: =SUMIFS($AX$16:$AY$51,$C$16:$D$51,"福祉用具専門相談員",$E$16:$F$51,"A") -> 0 | H58: =SUMIFS($AZ$16:$BA$51,$C$16:$D$51,"福祉用具専門相談員",$E$16:$F$51,"A") -> 0 | K58: 0 | M58: 0 | P58: 0
D59: B | F59: =SUMIFS($AX$16:$AY$51,$C$16:$D$51,"福祉用具専門相談員",$E$16:$F$51,"B") -> 0 | H59: =SUMIFS($AZ$16:$BA$51,$C$16:$D$51,"福祉用具専門相談員",$E$16:$F$51,"B") -> 0 | K59: 0 | M59: 0 | P59: 0
D60: C | F60: =SUMIFS($AX$16:$AY$51,$C$16:$D$51,"福祉用具専門相談員",$E$16:$F$51,"C") -> 0 | H60: =SUMIFS($AZ$16:$BA$51,$C$16:$D$51,"福祉用具専門相談員",$E$16:$F$51,"C") -> 0 | K60: 0 | M60: 0 | P60: -
D61: D | F61: =SUMIFS($AX$16:$AY$51,$C$16:$D$51,"福祉用具専門相談員",$E$16:$F$51,"D") -> 0 | H61: =SUMIFS($AZ$16:$BA$51,$C$16:$D$51,"福祉用具専門相談員",$E$16:$F$51,"D") -> 0 | K61: 0 | M61: 0 | P61: -
D62: 合計 | F62: =SUM(F58:G61) -> 0 | H62: =SUM(H58:I61) -> 0 | K62: =SUM(K58:L61) -> 0 | M62: =SUM(M58:N61) -> 0 | P62: =SUM(P58:Q59) -> 0
D64: ■ 常勤換算方法による人数 | J64: 基準： | K64: 週
D65: 常勤換算の | I65: 常勤の従業者が
D66: =IF(K64="週","対象時間数（週平均）","対象時間数（当月合計）") -> 対象時間数（週平均） | I66: =IF(K64="週","週に勤務すべき時間数","当月に勤務すべき時間数") -> 週に勤務すべき時間数 | N66: 常勤換算後の人数 | U66: （勤務形態の記号）
D67: =IF(K64="週",M62,K62) -> 0 | H67: ÷ | I67: =IF(K64="週",$AW$5,$BA$5) -> 40 | M67: ＝ | N67: =ROUNDDOWN(D67/I67,1) -> 0 | U67: 記号 | W67: 区分
N68: （小数点第2位以下切り捨て） | U68: A | W68: 常勤で専従
D69: ■ 福祉用具専門相談員の常勤換算方法による人数 | U69: B | W69: 常勤で兼務
D70: 常勤換算方法対象外の | U70: C | W70: 非常勤で専従
D71: 常勤の従業者の人数 | I71: 常勤換算方法による人数 | N71: 合計 | U71: D | W71: 非常勤で兼務
D72: =P62 -> 0 | H72: ＋ | I72: =N67 -> 0 | M72: ＝ | N72: =ROUNDDOWN(D72+I72,1) -> 0

Sheet シフト記号表（勤務時間帯）
B1: ≪要 提出≫
B2: ■シフト記号表（勤務時間帯） | E2: ※24時間表記 | I2: 休憩時間1時間は「1:00」、休憩時間45分は「00:45」と入力してください。
B3: （記号の意味） | C3: 記号 | E3: 始業時間 | G3: 終業時間 | I3: うち、休憩時間 | K3: 勤務時間
B4: 休：休暇 | C4: 休 | D4: ： | E4: - | F4: ～ | G4: - | H4: ( | I4: - | J4: ) | K4: -
B5: 出：出張 | C5: 出 | D5: ： | E5: - | F5: ～ | G5: - | H5: ( | I5: - | J5: ) | K5: -
B6: 研：研修 | C6: 研 | D6: ： | E6: - | F6: ～ | G6: - | H6: ( | I6: - | J6: ) | K6: -
C7: a | D7: ： | E7: 09:00:00 | F7: ～ | G7: 18:00:00 | H7: ( | I7: 01:00:00 | J7: ) | K7: =(G7-E7-I7)*24 -> 8
C8: b | D8: ： | E8: 07:00:00 | F8: ～ | G8: 16:00:00 | H8: ( | I8: 01:00:00 | J8: ) | K8: =(G8-E8-I8)*24 -> 8
C9: c | D9: ： | E9: 08:00:00 | F9: ～ | G9: 17:00:00 | H9: ( | I9: 01:00:00 | J9: ) | K9: =(G9-E9-I9)*24 -> 8
C10: d | D10: ： | E10: 08:00:00 | F10: ～ | G10: 12:00:00 | H10: ( | I10: 00:00:00 | J10: ) | K10: 4
C11: e | D11: ： | E11: 13:00:00 | F11: ～ | G11: 17:00:00 | H11: ( | I11: 00:00:00 | J11: ) | K11: 4
C12: f | D12: ： | E12: 10:00:00 | F12: ～ | G12: 14:00:00 | H12: ( | I12: 00:00:00 | J12: ) | K12: 4
C13: g | D13: ： | F13: ～ | H13: ( | J13: ) | K13: 0
C14: h | D14: ： | F14: ～ | H14: ( | J14: ) | K14: 0
C15: i | D15: ： | F15: ～ | H15: ( | J15: ) | K15: 0
C16: j | D16: ： | F16: ～ | H16: ( | J16: ) | K16: 0
C17: k | D17: ： | F17: ～ | H17: ( | J17: ) | K17: 0
C18: l | D18: ： | F18: ～ | H18: ( | J18: ) | K18: 0
C19: m | D19: ： | F19: ～ | H19: ( | J19: ) | K19: 0
C20: n | D20: ： | F20: ～ | H20: ( | J20: ) | K20: 0
C21: o | D21: ： | F21: ～ | H21: ( | J21: ) | K21: 1
C22: p | D22: ： | F22: ～ | H22: ( | J22: ) | K22: 2
C23: q | D23: ： | F23: ～ | H23: ( | J23: ) | K23: 3
C24: r | D24: ： | F24: ～ | H24: ( | J24: ) | K24: 4
C25: s | D25: ： | F25: ～ | H25: ( | J25: ) | K25: 5
C26: t | D26: ： | F26: ～ | H26: ( | J26: ) | K26: 6
C27: u | D27: ： | F27: ～ | H27: ( | J27: ) | K27: 7
C28: v | D28: ： | F28: ～ | H28: ( | J28: ) | K28: 8
C29: w | D29: ： | F29: ～ | H29: ( | J29: )
C30: x | D30: ： | F30: ～ | H30: ( | J30: )
C31: y | D31: ： | F31: ～ | H31: ( | J31: )
C32: z | D32: ： | F32: ～ | H32: ( | J32: ) | K32: =(G32-E32-I32)*24 -> 0
C33: 早退(1) | D33: ： | F33: ～ | H33: ( | J33: ) | K33: 0 | M33: 実績で早退者がいた場合に使用
C34: 早退(2) | D34: ： | F34: ～ | H34: ( | J34: ) | K34: 0 | M34: 実績で早退者がいた場合に使用
C35: az | D35: ： | F35: ～ | H35: ( | J35: ) | K35: 0

Sheet 記入方法
B1: ≪提出不要≫
B2: 従業者の勤務の体制及び勤務形態一覧表 記入方法 （福祉用具貸与・特定福祉用具販売）
C4: ・・・直接入力する必要がある箇所です。 | F4: 下記の記入方法に従って、入力してください。
C5: ・・・プルダウンから選択して入力する必要がある箇所です。
B6: なお、「従業者の勤務の体制及び勤務形態一覧表」に「シフト記号表（勤務時間帯）」も必ず添付して提出してください。
B8: ・最初に「年月欄」「サービス種別」「事業所名」を入力してください。
B10: (1) 「計画」・「実績」のいずれかを選択してください。
B11: 指定基準の確認に際しては、「計画」を選択し、４週分の勤務時間を入力してください。
B12: 実績を表す場合は、「実績」を選択し、暦月分で勤務時間を入力してください。
B14: (2) 事業所の営業日及び営業時間を入力してください。
B16: (3) 事業所における常勤の従業者が勤務すべき時間数を入力してください。
B18: (4) 従業者の職種について、下記のうち該当する職種をプルダウンより選択してください。
B19: 記入の順序は、職種ごとにまとめてください。
C21: No | D21: 職種名
C22: 1 | D22: 管理者
C23: 2 | D23: 福祉用具専門相談員
B25: (5) 従業者の勤務形態について、下記のうち該当する区分の記号をプルダウンより選択してください。
B26: 記入の順序は、各職種の中で勤務形態の区分ごとにまとめてください。
C28: 記号 | D28: 区分
C29: A | D29: 常勤で専従
C30: B | D30: 常勤で兼務
C31: C | D31: 非常勤で専従
C32: D | D32: 非常勤で兼務
C34: （注）常勤・非常勤の区分について
C35: 当該事業所における勤務時間が、当該事業所において定められている常勤の従業者が勤務すべき時間数に達していることをいいます。雇用の形態は考慮しません。
C36: （例えば、常勤者は週に40時間勤務することとされた事業所であれば、非正規雇用であっても、週40時間勤務する従業者は常勤扱いとなります。）
B39: (6) 従業者の保有する資格について、該当する資格名称をプルダウンより選択してください。
B40: 保有資格を全て記入するのではなく、人員基準上、求められる資格等を入力してください。
B41: ※選択した資格及び研修に関して、必要に応じて、資格証又は研修修了証等の写しを添付資料として提出してください。
B43: (7) 従業者の氏名を記入してください。
B45: (8) 申請する事業に係る従業者（管理者を含む。）の1ヶ月分の勤務時間数を入力してください。（別シートの「シフト記号表」を作成し、シフト記号を選択してください。）
B46: ※指定基準の確認に際しては、4週分の入力で可とします。実績を表す場合には、暦月で入力ください。
B48: (9) 従業者ごとに、合計勤務時間数が自動計算されますので、誤りがないか確認してください。
B49: ※入力することができる時間数は、当該事業所において常勤の従業者が勤務すべき勤務時間数を上限とします。
B51: (10) 従業者ごとに、週平均の勤務時間数が自動計算されますので、誤りがないか確認してください。
B53: (11) 申請する事業所以外の事業所・施設との兼務がある場合は、兼務先の事業所・施設の名称、兼務する職務の内容及び勤務時間数について記入してください。
B54: 同一事業所内の兼務についても兼務する職務の内容を記入してください。
B56: (12) 常勤換算による配置が求められる職種について、各欄に該当する数字を入力し、常勤換算後の人数を算出してください。

Sheet プルダウン・リスト
B1: １．サービス種別
B3: No | C3: サービス種別名
B4: 1 | C4: 福祉用具貸与
B5: 2 | C5: 特定福祉用具販売
B6: 3 | C6: 介護予防福祉用具貸与
B7: 4 | C7: 特定介護予防福祉用具販売
B8: 5 | C8: 福祉用具貸与・介護予防福祉用具貸与
B9: 6 | C9: 特定福祉用具販売・特定介護予防福祉用具販売
B10: 7
B12: ２．職種名・資格名称
B14: 職種名 | C14: 管理者 | D14: 福祉用具専門相談員
B15: 資格 | C15: ー | D15: 福祉用具専門相談員指定講習修了者
D16: 保健師
D17: 看護師
D18: 准看護師
D19: 理学療法士
D20: 作業療法士
D21: 社会福祉士
D22: 介護福祉士
D23: 義肢装具士
C30: 【自治体の皆様へ】
C31: ※ INDIRECT関数使用のため、以下のとおりセルに「名前の定義」をしています。
C32: 14行目・・・「職種」
C33: C列・・・「管理者」
C34: D列・・・「福祉用具専門相談員」
C35: ※自治体の条例により定められた資格等、自治体独自の資格を追加する必要がある場合は、上表の空欄に資格名称を追加してください。
C36: 行が足りない場合は、適宜追加してください。
C38: ※職種を追加したい場合は、14行目に職種名を追加し、それぞれの列に必要資格を入力してください。
C39: その後、以下の手順で必要資格について「名前の定義」をします。
C40: ・「数式」タブ ⇒ 「名前の定義」を選択
C41: ・「名前」に職種名を入力
C42: ・「参照範囲」にその職種の必要資格を範囲設定する ⇒ OKボタン
C43: 編集したい場合は、「数式」タブ ⇒ 「名前の管理」で編集してください。
